Workbook

Sheet scenario 6 - template
A1: Predicting Arrival Flow at the Downstream Signalized Intersection
A3: Upstream Signal | E3: Platoon Dispersion Model | I3: Downstream Signal | M3: Downstream Signal Timing
A4: Cycle length, C | C4: sec | E4: Speed | G4: mi/hr | I4: Distance | K4: ft | M4: GreenStart1
A5: Effective green, g | C5: sec | E5: tR | G5: sec | I5: Offset | K5: sec | M5: GreenEnd1
A6: Effective red, r | C6: sec | E6: tprime | G6: sec | I6: Cycle length, C | K6: sec | M6: RedStart1
A7: Saturation flow rate, s | C7: veh/hr-g | E7: F | I7: Effective green, g | K7: sec | M7: RedEnd1
A8: ArrFlow | C8: veh/hr | I8: Effective red, r | K8: sec | M8: GreenStart2
A9: Queue service time, gs | C9: sec | I9: Queue service time, gs | K9: =C9 -> sec | M9: GreenEnd2
M10: RedStart2
M11: RedEnd2
A12: Flow Profile Departing | D12: Flow Profile Arriving | M12: GreenStart3
A13: Time i | B13: DepFlowi | D13: Time i | E13: ArrFlowj | F13: ArrFlowj | G13: QueueStatus | H13: Queue | M13: GreenEnd3
M14: RedStart3
M15: RedEnd3
M16: GreenStart4
M17: GreenEnd4

Sheet example 18 formulas
A1: Predicting Arrival Flow at the Downstream Signalized Intersection
A3: Upstream Signal | E3: Platoon Dispersion Model | I3: Downstream Signal | M3: Downstream Signal Timing | Q3: Delay
A4: Cycle length, C | B4: 60 | C4: sec | E4: Speed | F4: 25 | G4: mi/hr | I4: Distance | J4: 1000 | K4: ft | M4: GreenStart1 | N4: =N8-J6 -> -30 | O4: 5 | Q4: Total | R4: =SUM(H14:H214) -> 211.6791662 | S4: sec
A5: Effective green, g | B5: 30 | C5: sec | E5: tR | F5: =(J4)/(1.47*F4) -> 27.21088435 | G5: sec | I5: Offset | J5: 0 | K5: sec | M5: GreenEnd1 | N5: =N9-J6 -> 0 | O5: 5 | Q5: Average | R5: =R4/(B9*B4) -> 21.16791662 | S5: sec/veh
A6: Effective red, r | B6: =B4-B5 -> 30 | C6: sec | E6: tprime | F6: =tprime(F5,F7) -> 23.39078231 | G6: sec | I6: Cycle length, C | J6: =B4 -> 60 | K6: sec | M6: RedStart1 | N6: =N10-J6 -> 0 | O6: 5
A7: Saturation flow rate, s | B7: 1900 | C7: veh/hr-g | E7: F | F7: =F(F5) -> 0.1972346892 | I7: Effective green, g | J7: =B5 -> 30 | K7: sec | M7: RedEnd1 | N7: =N11-J6 -> 30 | O7: 5
A8: ArrFlow | B8: 600 | C8: veh/hr | I8: Effective red, r | J8: =B6 -> 30 | K8: sec | M8: GreenStart2 | N8: =B5+J5 -> 30 | O8: 5
A9: ArrFlow | B9: =B8/3600 -> 0.1666666667 | C9: veh/sec | I9: Queue service time, gs | J9: =B10 -> 13.84615385 | K9: =C10 -> sec | M9: GreenEnd2 | N9: =N8+J7 -> 60 | O9: 5
A10: Queue service time, gs | B10: =(B8*B6)/(B7-B8) -> 13.84615385 | C10: sec | M10: RedStart2 | N10: =N9 -> 60 | O10: 5
M11: RedEnd2 | N11: =N10+J8 -> 90 | O11: 5
A12: Flow Profile Departing | D12: Flow Profile Arriving | M12: GreenStart3 | N12: =N8+J6 -> 90 | O12: 5
A13: Time i | B13: DepFlowi | D13: Time i | E13: ArrFlowj | F13: ArrFlowj | G13: QueueStatus | H13: Queue | M13: GreenEnd3 | N13: =N9+J6 -> 120 | O13: 5
A14: 0 | B14: =DepFlowi($B$10,$B$5,$B$4,$B$8,$B$7,A14) -> 0 | D14: 0 | E14: =IF(A14>$F$6+$B$6,ArrFlow_j(INDIRECT("b"&ROW()-INT($F$6)),E13,$F$7),0) -> 0 | F14: =E14/3600 -> 0 | G14: =QueueStatus(D14,F14,$N$10,$N$11,$J$9,$N$13,H13) -> 0 | M14: RedStart3 | N14: =N10+J6 -> 120 | O14: 5
A15: 1 | B15: 0 | D15: 1 | E15: =IF(A15>$F$6+$B$6,ArrFlow_j(INDIRECT("b"&ROW()-INT($F$6)),E14,$F$7),0) -> 0 | F15: =E15/3600 -> 0 | G15: =QueueStatus(D15,F15,$N$10,$N$11,$J$9,$N$13,H14) -> 0 | H15: =QueueLength(D15,$N$10,$N$11,H14,G15,$J$9) -> 0 | M15: RedEnd3 | N15: =N11+J6 -> 150 | O15: 5
A16: 2 | B16: 0 | D16: 2 | E16: =IF(A16>$F$6+$B$6,ArrFlow_j(INDIRECT("b"&ROW()-INT($F$6)),E15,$F$7),0) -> 0 | F16: 0 | G16: =QueueStatus(D16,F16,$N$10,$N$11,$J$9,$N$13,H15) -> 0 | H16: =QueueLength(D16,$N$10,$N$11,H15,G16,$J$9) -> 0 | M16: GreenStart4 | N16: =N12+J6 -> 150 | O16: 5
A17: 3 | B17: 0 | D17: 3 | E17: =IF(A17>$F$6+$B$6,ArrFlow_j(INDIRECT("b"&ROW()-INT($F$6)),E16,$F$7),0) -> 0 | F17: 0 | G17: 0 | H17: 0 | M17: GreenEnd4 | N17: =N13+J6 -> 180 | O17: 5
A18: 4 | B18: 0 | D18: 4 | E18: =IF(A18>$F$6+$B$6,ArrFlow_j(INDIRECT("b"&ROW()-INT($F$6)),E17,$F$7),0) -> 0 | F18: 0 | G18: 0 | H18: 0
A19: 5 | B19: 0 | D19: 5 | E19: =IF(A19>$F$6+$B$6,ArrFlow_j(INDIRECT("b"&ROW()-INT($F$6)),E18,$F$7),0) -> 0 | F19: 0 | G19: 0 | H19: 0
A20: 6 | B20: 0 | D20: 6 | E20: =IF(A20>$F$6+$B$6,ArrFlow_j(INDIRECT("b"&ROW()-INT($F$6)),E19,$F$7),0) -> 0 | F20: 0 | G20: 0 | H20: 0
A21: 7 | B21: 0 | D21: 7 | E21: =IF(A21>$F$6+$B$6,ArrFlow_j(INDIRECT("b"&ROW()-INT($F$6)),E20,$F$7),0) -> 0 | F21: 0 | G21: 0 | H21: 0
A22: 8 | B22: 0 | D22: 8 | E22: =IF(A22>$F$6+$B$6,ArrFlow_j(INDIRECT("b"&ROW()-INT($F$6)),E21,$F$7),0) -> 0 | F22: 0 | G22: 0 | H22: 0
A23: 9 | B23: 0 | D23: 9 | E23: =IF(A23>$F$6+$B$6,ArrFlow_j(INDIRECT("b"&ROW()-INT($F$6)),E22,$F$7),0) -> 0 | F23: 0 | G23: 0 | H23: 0
A24: 10 | B24: 0 | D24: 10 | E24: =IF(A24>$F$6+$B$6,ArrFlow_j(INDIRECT("b"&ROW()-INT($F$6)),E23,$F$7),0) -> 0 | F24: 0 | G24: 0 | H24: 0
A25: 11 | B25: 0 | D25: 11 | E25: =IF(A25>$F$6+$B$6,ArrFlow_j(INDIRECT("b"&ROW()-INT($F$6)),E24,$F$7),0) -> 0 | F25: 0 | G25: 0 | H25: 0
A26: 12 | B26: 0 | D26: 12 | E26: =IF(A26>$F$6+$B$6,ArrFlow_j(INDIRECT("b"&ROW()-INT($F$6)),E25,$F$7),0) -> 0 | F26: 0 | G26: 0 | H26: 0
A27: 13 | B27: 0 | D27: 13 | E27: =IF(A27>$F$6+$B$6,ArrFlow_j(INDIRECT("b"&ROW()-INT($F$6)),E26,$F$7),0) -> 0 | F27: 0 | G27: 0 | H27: 0
A28: 14 | B28: 0 | D28: 14 | E28: =IF(A28>$F$6+$B$6,ArrFlow_j(INDIRECT("b"&ROW()-INT($F$6)),E27,$F$7),0) -> 0 | F28: 0 | G28: 0 | H28: 0
A29: 15 | B29: 0 | D29: 15 | E29: =IF(A29>$F$6+$B$6,ArrFlow_j(INDIRECT("b"&ROW()-INT($F$6)),E28,$F$7),0) -> 0 | F29: 0 | G29: 0 | H29: 0
A30: 16 | B30: 0 | D30: 16 | E30: =IF(A30>$F$6+$B$6,ArrFlow_j(INDIRECT("b"&ROW()-INT($F$6)),E29,$F$7),0) -> 0 | F30: 0 | G30: 0 | H30: 0
A31: 17 | B31: 0 | D31: 17 | E31: =IF(A31>$F$6+$B$6,ArrFlow_j(INDIRECT("b"&ROW()-INT($F$6)),E30,$F$7),0) -> 0 | F31: 0 | G31: 0 | H31: 0
A32: 18 | B32: 0 | D32: 18 | E32: =IF(A32>$F$6+$B$6,ArrFlow_j(INDIRECT("b"&ROW()-INT($F$6)),E31,$F$7),0) -> 0 | F32: 0 | G32: 0 | H32: 0
A33: 19 | B33: 0 | D33: 19 | E33: =IF(A33>$F$6+$B$6,ArrFlow_j(INDIRECT("b"&ROW()-INT($F$6)),E32,$F$7),0) -> 0 | F33: 0 | G33: 0 | H33: 0 | Q33: Cycle Range Line
A34: 20 | B34: 0 | D34: 20 | E34: =IF(A34>$F$6+$B$6,ArrFlow_j(INDIRECT("b"&ROW()-INT($F$6)),E33,$F$7),0) -> 0 | F34: 0 | G34: 0 | H34: 0 | Q34: RedStart2 | R34: =N10 -> 60 | S34: 0
A35: 21 | B35: 0 | D35: 21 | E35: =IF(A35>$F$6+$B$6,ArrFlow_j(INDIRECT("b"&ROW()-INT($F$6)),E34,$F$7),0) -> 0 | F35: 0 | G35: 0 | H35: 0 | Q35: RedEnd2 | R35: =N11 -> 90 | S35: 0
A36: 22 | B36: 0 | D36: 22 | E36: =IF(A36>$F$6+$B$6,ArrFlow_j(INDIRECT("b"&ROW()-INT($F$6)),E35,$F$7),0) -> 0 | F36: 0 | G36: 0 | H36: 0 | Q36: GreenStart3 | R36: =N12 -> 90 | S36: 0
A37: 23 | B37: 0 | D37: 23 | E37: =IF(A37>$F$6+$B$6,ArrFlow_j(INDIRECT("b"&ROW()-INT($F$6)),E36,$F$7),0) -> 0 | F37: 0 | G37: 0 | H37: 0 | Q37: GreenEnd3 | R37: =N13 -> 120 | S37: 0
A38: 24 | B38: 0 | D38: 24 | E38: =IF(A38>$F$6+$B$6,ArrFlow_j(INDIRECT("b"&ROW()-INT($F$6)),E37,$F$7),0) -> 0 | F38: 0 | G38: 0 | H38: 0
A39: 25 | B39: 0 | D39: 25 | E39: =IF(A39>$F$6+$B$6,ArrFlow_j(INDIRECT("b"&ROW()-INT($F$6)),E38,$F$7),0) -> 0 | F39: 0 | G39: 0 | H39: 0
A40: 26 | B40: 0 | D40: 26 | E40: =IF(A40>$F$6+$B$6,ArrFlow_j(INDIRECT("b"&ROW()-INT($F$6)),E39,$F$7),0) -> 0 | F40: 0 | G40: 0 | H40: 0
A41: 27 | B41: 0 | D41: 27 | E41: =IF(A41>$F$6+$B$6,ArrFlow_j(INDIRECT("b"&ROW()-INT($F$6)),E40,$F$7),0) -> 0 | F41: 0 | G41: 0 | H41: 0
A42: 28 | B42: 0 | D42: 28 | E42: =IF(A42>$F$6+$B$6,ArrFlow_j(INDIRECT("b"&ROW()-INT($F$6)),E41,$F$7),0) -> 0 | F42: 0 | G42: 0 | H42: 0
A43: 29 | B43: 0 | D43: 29 | E43: =IF(A43>$F$6+$B$6,ArrFlow_j(INDIRECT("b"&ROW()-INT($F$6)),E42,$F$7),0) -> 0 | F43: 0 | G43: 0 | H43: 0
A44: 30 | B44: 1900 | D44: 30 | E44: =IF(A44>$F$6+$B$6,ArrFlow_j(INDIRECT("b"&ROW()-INT($F$6)),E43,$F$7),0) -> 0 | F44: 0 | G44: 0 | H44: 0
A45: 31 | B45: 1900 | D45: 31 | E45: =IF(A45>$F$6+$B$6,ArrFlow_j(INDIRECT("b"&ROW()-INT($F$6)),E44,$F$7),0) -> 0 | F45: 0 | G45: 0 | H45: 0
A46: 32 | B46: 1900 | D46: 32 | E46: =IF(A46>$F$6+$B$6,ArrFlow_j(INDIRECT("b"&ROW()-INT($F$6)),E45,$F$7),0) -> 0 | F46: 0 | G46: 0 | H46: 0
A47: 33 | B47: 1900 | D47: 33 | E47: =IF(A47>$F$6+$B$6,ArrFlow_j(INDIRECT("b"&ROW()-INT($F$6)),E46,$F$7),0) -> 0 | F47: 0 | G47: 0 | H47: 0
A48: 34 | B48: 1900 | D48: 34 | E48: =IF(A48>$F$6+$B$6,ArrFlow_j(INDIRECT("b"&ROW()-INT($F$6)),E47,$F$7),0) -> 0 | F48: 0 | G48: 0 | H48: 0
A49: 35 | B49: 1900 | D49: 35 | E49: =IF(A49>$F$6+$B$6,ArrFlow_j(INDIRECT("b"&ROW()-INT($F$6)),E48,$F$7),0) -> 0 | F49: 0 | G49: 0 | H49: 0
A50: 36 | B50: 1900 | D50: 36 | E50: =IF(A50>$F$6+$B$6,ArrFlow_j(INDIRECT("b"&ROW()-INT($F$6)),E49,$F$7),0) -> 0 | F50: 0 | G50: 0 | H50: 0
A51: 37 | B51: 1900 | D51: 37 | E51: =IF(A51>$F$6+$B$6,ArrFlow_j(INDIRECT("b"&ROW()-INT($F$6)),E50,$F$7),0) -> 0 | F51: 0 | G51: 0 | H51: 0
A52: 38 | B52: 1900 | D52: 38 | E52: =IF(A52>$F$6+$B$6,ArrFlow_j(INDIRECT("b"&ROW()-INT($F$6)),E51,$F$7),0) -> 0 | F52: 0 | G52: 0 | H52: 0
A53: 39 | B53: 1900 | D53: 39 | E53: =IF(A53>$F$6+$B$6,ArrFlow_j(INDIRECT("b"&ROW()-INT($F$6)),E52,$F$7),0) -> 0 | F53: 0 | G53: 0 | H53: 0
A54: 40 | B54: 1900 | D54: 40 | E54: =IF(A54>$F$6+$B$6,ArrFlow_j(INDIRECT("b"&ROW()-INT($F$6)),E53,$F$7),0) -> 0 | F54: 0 | G54: 0 | H54: 0
A55: 41 | B55: 1900 | D55: 41 | E55: =IF(A55>$F$6+$B$6,ArrFlow_j(INDIRECT("b"&ROW()-INT($F$6)),E54,$F$7),0) -> 0 | F55: 0 | G55: 0 | H55: 0
A56: 42 | B56: 1900 | D56: 42 | E56: =IF(A56>$F$6+$B$6,ArrFlow_j(INDIRECT("b"&ROW()-INT($F$6)),E55,$F$7),0) -> 0 | F56: 0 | G56: 0 | H56: 0
A57: 43 | B57: 1900 | D57: 43 | E57: =IF(A57>$F$6+$B$6,ArrFlow_j(INDIRECT("b"&ROW()-INT($F$6)),E56,$F$7),0) -> 0 | F57: 0 | G57: 0 | H57: 0
A58: 44 | B58: 600 | D58: 44 | E58: =IF(A58>$F$6+$B$6,ArrFlow_j(INDIRECT("b"&ROW()-INT($F$6)),E57,$F$7),0) -> 0 | F58: 0 | G58: 0 | H58: 0
A59: 45 | B59: 600 | D59: 45 | E59: =IF(A59>$F$6+$B$6,ArrFlow_j(INDIRECT("b"&ROW()-INT($F$6)),E58,$F$7),0) -> 0 | F59: 0 | G59: 0 | H59: 0
A60: 46 | B60: 600 | D60: 46 | E60: =IF(A60>$F$6+$B$6,ArrFlow_j(INDIRECT("b"&ROW()-INT($F$6)),E59,$F$7),0) -> 0 | F60: 0 | G60: 0 | H60: 0
A61: 47 | B61: 600 | D61: 47 | E61: =IF(A61>$F$6+$B$6,ArrFlow_j(INDIRECT("b"&ROW()-INT($F$6)),E60,$F$7),0) -> 0 | F61: 0 | G61: 0 | H61: 0
A62: 48 | B62: 600 | D62: 48 | E62: =IF(A62>$F$6+$B$6,ArrFlow_j(INDIRECT("b"&ROW()-INT($F$6)),E61,$F$7),0) -> 0 | F62: 0 | G62: 0 | H62: 0
A63: 49 | B63: 600 | D63: 49 | E63: =IF(A63>$F$6+$B$6,ArrFlow_j(INDIRECT("b"&ROW()-INT($F$6)),E62,$F$7),0) -> 0 | F63: 0 | G63: 0 | H63: 0
A64: 50 | B64: 600 | D64: 50 | E64: =IF(A64>$F$6+$B$6,ArrFlow_j(INDIRECT("b"&ROW()-INT($F$6)),E63,$F$7),0) -> 0 | F64: 0 | G64: 0 | H64: 0
A65: 51 | B65: 600 | D65: 51 | E65: =IF(A65>$F$6+$B$6,ArrFlow_j(INDIRECT("b"&ROW()-INT($F$6)),E64,$F$7),0) -> 0 | F65: 0 | G65: 0 | H65: 0
A66: 52 | B66: 600 | D66: 52 | E66: =IF(A66>$F$6+$B$6,ArrFlow_j(INDIRECT("b"&ROW()-INT($F$6)),E65,$F$7),0) -> 0 | F66: 0 | G66: 0 | H66: 0
A67: 53 | B67: 600 | D67: 53 | E67: =IF(A67>$F$6+$B$6,ArrFlow_j(INDIRECT("b"&ROW()-INT($F$6)),E66,$F$7),0) -> 0 | F67: 0 | G67: 0 | H67: 0
A68: 54 | B68: 600 | D68: 54 | E68: =IF(A68>$F$6+$B$6,ArrFlow_j(INDIRECT("b"&ROW()-INT($F$6)),E67,$F$7),0) -> 374.7459094 | F68: 0.1040960859 | G68: 0 | H68: 0
A69: 55 | B69: 600 | D69: 55 | E69: =IF(A69>$F$6+$B$6,ArrFlow_j(INDIRECT("b"&ROW()-INT($F$6)),E68,$F$7),0) -> 675.5789258 | F69: 0.1876608127 | G69: 0 | H69: 0
A70: 56 | B70: 600 | D70: 56 | E70: =IF(A70>$F$6+$B$6,ArrFlow_j(INDIRECT("b"&ROW()-INT($F$6)),E69,$F$7),0) -> 917.0772358 | F70: 0.2547436766 | G70: 0 | H70: 0
A71: 57 | B71: 600 | D71: 57 | E71: =IF(A71>$F$6+$B$6,ArrFlow_j(INDIRECT("b"&ROW()-INT($F$6)),E70,$F$7),0) -> 1110.943702 | F71: 0.3085954727 | G71: 0 | H71: 0
A72: 58 | B72: 600 | D72: 58 | E72: =IF(A72>$F$6+$B$6,ArrFlow_j(INDIRECT("b"&ROW()-INT($F$6)),E71,$F$7),0) -> 1266.572975 | F72: 0.3518258265 | G72: 0 | H72: 0
A73: 59 | B73: 600 | D73: 59 | E73: =IF(A73>$F$6+$B$6,ArrFlow_j(INDIRECT("b"&ROW()-INT($F$6)),E72,$F$7),0) -> 1391.506758 | F73: 0.3865296549 | G73: 0 | H73: 0
A74: 60 | B74: 0 | D74: 60 | E74: =IF(A74>$F$6+$B$6,ArrFlow_j(INDIRECT("b"&ROW()-INT($F$6)),E73,$F$7),0) -> 1491.799264 | F74: 0.4143886845 | G74: 0.4143886845 | H74: 0.4143886845
A75: 61 | B75: 0 | D75: 61 | E75: =IF(A75>$F$6+$B$6,ArrFlow_j(INDIRECT("b"&ROW()-INT($F$6)),E74,$F$7),0) -> 1572.310609 | F75: 0.4367529471 | G75: 0.4367529471 | H75: 0.8511416316
A76: 62 | B76: 0 | D76: 62 | E76: =IF(A76>$F$6+$B$6,ArrFlow_j(INDIRECT("b"&ROW()-INT($F$6)),E75,$F$7),0) -> 1636.942325 | F76: 0.4547062013 | G76: 0.4547062013 | H76: 1.305847833
A77: 63 | B77: 0 | D77: 63 | E77: =IF(A77>$F$6+$B$6,ArrFlow_j(INDIRECT("b"&ROW()-INT($F$6)),E76,$F$7),0) -> 1688.826423 | F77: 0.4691184509 | G77: 0.4691184509 | H77: 1.774966284
A78: 64 | B78: =DepFlowi($B$10,$B$5,$B$4,$B$8,$B$7,A78) -> 0 | D78: 64 | E78: =IF(A78>$F$6+$B$6,ArrFlow_j(INDIRECT("b"&ROW()-INT($F$6)),E77,$F$7),0) -> 1730.477178 | F78: 0.480688105 | G78: 0.480688105 | H78: 2.255654389
A79: 65 | B79: 0 | D79: 65 | E79: =IF(A79>$F$6+$B$6,ArrFlow_j(INDIRECT("b"&ROW()-INT($F$6)),E78,$F$7),0) -> 1763.912959 | F79: =E79/3600 -> 0.489975822 | G79: 0.489975822 | H79: 2.745630211
A80: 66 | B80: 0 | D80: 66 | E80: =IF(A80>$F$6+$B$6,ArrFlow_j(INDIRECT("b"&ROW()-INT($F$6)),E79,$F$7),0) -> 1790.754044 | F80: 0.497431679 | G80: =QueueStatus(D80,F80,$N$10,$N$11,$J$9,$N$13,H79) -> 0.497431679 | H80: =QueueLength(D80,$N$10,$N$11,H79,G80,$J$9) -> 3.24306189
A81: 67 | B81: 0 | D81: 67 | E81: =IF(A81>$F$6+$B$6,ArrFlow_j(INDIRECT("b"&ROW()-INT($F$6)),E80,$F$7),0) -> 1555.896041 | F81: 0.4321933446 | G81: 0.4321933446 | H81: 3.675255234
A82: 68 | B82: 0 | D82: 68 | E82: =IF(A82>$F$6+$B$6,ArrFlow_j(INDIRECT("b"&ROW()-INT($F$6)),E81,$F$7),0) -> 1367.360182 | F82: 0.3798222728 | G82: 0.3798222728 | H82: 4.055077507
A83: 69 | B83: 0 | D83: 69 | E83: =IF(A83>$F$6+$B$6,ArrFlow_j(INDIRECT("b"&ROW()-INT($F$6)),E82,$F$7),0) -> 1216.010135 | F83: 0.3377805931 | G83: 0.3377805931 | H83: 4.3928581
A84: 70 | B84: 0 | D84: 70 | E84: =IF(A84>$F$6+$B$6,ArrFlow_j(INDIRECT("b"&ROW()-INT($F$6)),E83,$F$7),0) -> 1094.511568 | F84: 0.304030991 | G84: 0.304030991 | H84: 4.696889091
A85: 71 | B85: 0 | D85: 71 | E85: =IF(A85>$F$6+$B$6,ArrFlow_j(INDIRECT("b"&ROW()-INT($F$6)),E84,$F$7),0) -> 996.9767323 | F85: 0.2769379812 | G85: 0.2769379812 | H85: 4.973827073
A86: 72 | B86: 0 | D86: 72 | E86: =IF(A86>$F$6+$B$6,ArrFlow_j(INDIRECT("b"&ROW()-INT($F$6)),E85,$F$7),0) -> 918.6791499 | F86: 0.2551886528 | G86: 0.2551886528 | H86: 5.229015725
A87: 73 | B87: 0 | D87: 73 | E87: =IF(A87>$F$6+$B$6,ArrFlow_j(INDIRECT("b"&ROW()-INT($F$6)),E86,$F$7),0) -> 855.8245668 | F87: 0.2377290463 | G87: 0.2377290463 | H87: 5.466744772
A88: 74 | B88: 0 | D88: 74 | E88: =IF(A88>$F$6+$B$6,ArrFlow_j(INDIRECT("b"&ROW()-INT($F$6)),E87,$F$7),0) -> 805.3670879 | F88: 0.22371308 | G88: 0.22371308 | H88: 5.690457852
A89: 75 | B89: 0 | D89: 75 | E89: =IF(A89>$F$6+$B$6,ArrFlow_j(INDIRECT("b"&ROW()-INT($F$6)),E88,$F$7),0) -> 764.8615742 | F89: 0.2124615484 | G89: 0.2124615484 | H89: 5.9029194
A90: 76 | B90: 0 | D90: 76 | E90: =IF(A90>$F$6+$B$6,ArrFlow_j(INDIRECT("b"&ROW()-INT($F$6)),E89,$F$7),0) -> 732.3451528 | F90: 0.2034292091 | G90: 0.2034292091 | H90: 6.106348609
A91: 77 | B91: 0 | D91: 77 | E91: =IF(A91>$F$6+$B$6,ArrFlow_j(INDIRECT("b"&ROW()-INT($F$6)),E90,$F$7),0) -> 706.2420978 | F91: 0.1961783605 | G91: 0.1961783605 | H91: 6.30252697
A92: 78 | B92: 0 | D92: 78 | E92: =IF(A92>$F$6+$B$6,ArrFlow_j(INDIRECT("b"&ROW()-INT($F$6)),E91,$F$7),0) -> 685.2874706 | F92: 0.1903576307 | G92: 0.1903576307 | H92: 6.4928846
A93: 79 | B93: 0 | D93: 79 | E93: =IF(A93>$F$6+$B$6,ArrFlow_j(INDIRECT("b"&ROW()-INT($F$6)),E92,$F$7),0) -> 668.4658229 | F93: 0.1856849508 | G93: 0.1856849508 | H93: 6.678569551
A94: 80 | B94: 0 | D94: 80 | E94: =IF(A94>$F$6+$B$6,ArrFlow_j(INDIRECT("b"&ROW()-INT($F$6)),E93,$F$7),0) -> 654.9619876 | F94: 0.1819338854 | G94: 0.1819338854 | H94: 6.860503437
A95: 81 | B95: 0 | D95: 81 | E95: =IF(A95>$F$6+$B$6,ArrFlow_j(INDIRECT("b"&ROW()-INT($F$6)),E94,$F$7),0) -> 644.121577 | F95: 0.1789226603 | G95: 0.1789226603 | H95: 7.039426097
A96: 82 | B96: 0 | D96: 82 | E96: =IF(A96>$F$6+$B$6,ArrFlow_j(INDIRECT("b"&ROW()-INT($F$6)),E95,$F$7),0) -> 635.4192715 | F96: 0.1765053532 | G96: 0.1765053532 | H96: 7.21593145
A97: 83 | B97: 0 | D97: 83 | E97: =IF(A97>$F$6+$B$6,ArrFlow_j(INDIRECT("b"&ROW()-INT($F$6)),E96,$F$7),0) -> 510.092549 | F97: 0.1416923747 | G97: 0.1416923747 | H97: 7.357623825
A98: 84 | B98: 0 | D98: 84 | E98: =IF(A98>$F$6+$B$6,ArrFlow_j(INDIRECT("b"&ROW()-INT($F$6)),E97,$F$7),0) -> 409.4846037 | F98: 0.1137457232 | G98: 0.1137457232 | H98: 7.471369548
A99: 85 | B99: 0 | D99: 85 | E99: =IF(A99>$F$6+$B$6,ArrFlow_j(INDIRECT("b"&ROW()-INT($F$6)),E98,$F$7),0) -> 328.7200352 | F99: 0.09131112088 | G99: 0.09131112088 | H99: 7.562680669
A100: 86 | B100: 0 | D100: 86 | E100: =IF(A100>$F$6+$B$6,ArrFlow_j(INDIRECT("b"&ROW()-INT($F$6)),E99,$F$7),0) -> 263.8850412 | F100: 0.07330140033 | G100: 0.07330140033 | H100: 7.635982069
A101: 87 | B101: 0 | D101: 87 | E101: =IF(A101>$F$6+$B$6,ArrFlow_j(INDIRECT("b"&ROW()-INT($F$6)),E100,$F$7),0) -> 211.8377571 | F101: 0.05884382142 | G101: 0.05884382142 | H101: 7.694825891
A102: 88 | B102: 0 | D102: 88 | E102: =IF(A102>$F$6+$B$6,ArrFlow_j(INDIRECT("b"&ROW()-INT($F$6)),E101,$F$7),0) -> 170.0560029 | F102: 0.0472377786 | G102: 0.0472377786 | H102: 7.742063669
A103: 89 | B103: 0 | D103: 89 | E103: =IF(A103>$F$6+$B$6,ArrFlow_j(INDIRECT("b"&ROW()-INT($F$6)),E102,$F$7),0) -> 136.5150601 | F103: 0.03792085002 | G103: 0.03792085002 | H103: 7.779984519
A104: 90 | B104: 1900 | D104: 90 | E104: =IF(A104>$F$6+$B$6,ArrFlow_j(INDIRECT("b"&ROW()-INT($F$6)),E103,$F$7),0) -> 109.5895546 | F104: 0.03044154295 | G104: -0.4973362348 | H104: 7.282648285
A105: 91 | B105: 1900 | D105: 91 | E105: =IF(A105>$F$6+$B$6,ArrFlow_j(INDIRECT("b"&ROW()-INT($F$6)),E104,$F$7),0) -> 87.97469289 | F105: 0.02443741469 | G105: -0.5033403631 | H105: 6.779307921
A106: 92 | B106: 1900 | D106: 92 | E106: =IF(A106>$F$6+$B$6,ArrFlow_j(INDIRECT("b"&ROW()-INT($F$6)),E105,$F$7),0) -> 70.62303168 | F106: 0.0196175088 | G106: -0.508160269 | H106: 6.271147652
A107: 93 | B107: 1900 | D107: 93 | E107: =IF(A107>$F$6+$B$6,ArrFlow_j(INDIRECT("b"&ROW()-INT($F$6)),E106,$F$7),0) -> 56.69371998 | F107: 0.01574825555 | G107: -0.5120295222 | H107: 5.75911813
A108: 94 | B108: 1900 | D108: 94 | E108: =IF(A108>$F$6+$B$6,ArrFlow_j(INDIRECT("b"&ROW()-INT($F$6)),E107,$F$7),0) -> 45.51175174 | F108: 0.01264215326 | G108: -0.5151356245 | H108: 5.243982506
A109: 95 | B109: 1900 | D109: 95 | E109: =IF(A109>$F$6+$B$6,ArrFlow_j(INDIRECT("b"&ROW()-INT($F$6)),E108,$F$7),0) -> 36.53525554 | F109: 0.01014868209 | G109: -0.5176290957 | H109: 4.72635341
A110: 96 | B110: 1900 | D110: 96 | E110: =IF(A110>$F$6+$B$6,ArrFlow_j(INDIRECT("b"&ROW()-INT($F$6)),E109,$F$7),0) -> 29.32923577 | F110: 0.008147009935 | G110: -0.5196307678 | H110: 4.206722642
A111: 97 | B111: 1900 | D111: 97 | E111: =IF(A111>$F$6+$B$6,ArrFlow_j(INDIRECT("b"&ROW()-INT($F$6)),E110,$F$7),0) -> 23.54449307 | F111: 0.006540136963 | G111: -0.5212376408 | H111: 3.685485001
A112: 98 | B112: 1900 | D112: 98 | E112: =IF(A112>$F$6+$B$6,ArrFlow_j(INDIRECT("b"&ROW()-INT($F$6)),E111,$F$7),0) -> 18.9007023 | F112: 0.005250195082 | G112: -0.5225275827 | H112: 3.162957419
A113: 99 | B113: 1900 | D113: 99 | E113: =IF(A113>$F$6+$B$6,ArrFlow_j(INDIRECT("b"&ROW()-INT($F$6)),E112,$F$7),0) -> 15.17282815 | F113: 0.004214674487 | G113: -0.5235631033 | H113: 2.639394315
A114: 100 | B114: 1900 | D114: 100 | E114: =IF(A114>$F$6+$B$6,ArrFlow_j(INDIRECT("b"&ROW()-INT($F$6)),E113,$F$7),0) -> 12.18022011 | F114: 0.003383394475 | G114: -0.5243943833 | H114: 2.114999932
A115: 101 | B115: 1900 | D115: 101 | E115: =IF(A115>$F$6+$B$6,ArrFlow_j(INDIRECT("b"&ROW()-INT($F$6)),E114,$F$7),0) -> 9.777858182 | F115: 0.002716071717 | G115: -0.5250617061 | H115: 1.589938226
A116: 102 | B116: 1900 | D116: 102 | E116: =IF(A116>$F$6+$B$6,ArrFlow_j(INDIRECT("b"&ROW()-INT($F$6)),E115,$F$7),0) -> 7.849325363 | F116: 0.002180368156 | G116: -0.5255974096 | H116: 1.064340816
A117: 103 | B117: 1900 | D117: 103 | E117: =IF(A117>$F$6+$B$6,ArrFlow_j(INDIRECT("b"&ROW()-INT($F$6)),E116,$F$7),0) -> 6.301166115 | F117: 0.001750323921 | G117: -0.5260274539 | H117: 0.5383133626
A118: 104 | B118: 600 | D118: 104 | E118: =IF(A118>$F$6+$B$6,ArrFlow_j(INDIRECT("b"&ROW()-INT($F$6)),E117,$F$7),0) -> 5.058357575 | F118: 0.001405099326 | G118: 0 | H118: 0
A119: 105 | B119: 600 | D119: 105 | E119: =IF(A119>$F$6+$B$6,ArrFlow_j(INDIRECT("b"&ROW()-INT($F$6)),E118,$F$7),0) -> 4.060673991 | F119: 0.001127964998 | G119: 0 | H119: 0
A120: 106 | B120: 600 | D120: 106 | E120: =IF(A120>$F$6+$B$6,ArrFlow_j(INDIRECT("b"&ROW()-INT($F$6)),E119,$F$7),0) -> 3.259768219 | F120: 0.0009054911719 | G120: 0 | H120: 0
A121: 107 | B121: 600 | D121: 107 | E121: =IF(A121>$F$6+$B$6,ArrFlow_j(INDIRECT("b"&ROW()-INT($F$6)),E120,$F$7),0) -> 2.616828847 | F121: 0.000726896902 | G121: 0 | H121: 0
A122: 108 | B122: 600 | D122: 108 | E122: =IF(A122>$F$6+$B$6,ArrFlow_j(INDIRECT("b"&ROW()-INT($F$6)),E121,$F$7),0) -> 2.100699423 | F122: 0.0005835276175 | G122: 0 | H122: 0
A123: 109 | B123: 600 | D123: 109 | E123: =IF(A123>$F$6+$B$6,ArrFlow_j(INDIRECT("b"&ROW()-INT($F$6)),E122,$F$7),0) -> 1.686368625 | F123: 0.0004684357293 | G123: 0 | H123: 0
A124: 110 | B124: 600 | D124: 110 | E124: =IF(A124>$F$6+$B$6,ArrFlow_j(INDIRECT("b"&ROW()-INT($F$6)),E123,$F$7),0) -> 1.353758234 | F124: 0.0003760439538 | G124: 0 | H124: 0
A125: 111 | B125: 600 | D125: 111 | E125: =IF(A125>$F$6+$B$6,ArrFlow_j(INDIRECT("b"&ROW()-INT($F$6)),E124,$F$7),0) -> 1.086750149 | F125: 0.0003018750415 | G125: 0 | H125: 0
A126: 112 | B126: 600 | D126: 112 | E126: =IF(A126>$F$6+$B$6,ArrFlow_j(INDIRECT("b"&ROW()-INT($F$6)),E125,$F$7),0) -> 0.8724053214 | F126: 0.0002423348115 | G126: 0 | H126: 0
A127: 113 | B127: 600 | D127: 113 | E127: =IF(A127>$F$6+$B$6,ArrFlow_j(INDIRECT("b"&ROW()-INT($F$6)),E126,$F$7),0) -> 375.4462461 | F127: 0.1042906239 | G127: 0 | H127: 0
A128: 114 | B128: 600 | D128: 114 | E128: =IF(A128>$F$6+$B$6,ArrFlow_j(INDIRECT("b"&ROW()-INT($F$6)),E127,$F$7),0) -> 676.1411319 | F128: 0.1878169811 | G128: 0 | H128: 0
A129: 115 | B129: 600 | D129: 115 | E129: =IF(A129>$F$6+$B$6,ArrFlow_j(INDIRECT("b"&ROW()-INT($F$6)),E128,$F$7),0) -> 917.5285553 | F129: 0.2548690431 | G129: 0 | H129: 0
A130: 116 | B130: 600 | D130: 116 | E130: =IF(A130>$F$6+$B$6,ArrFlow_j(INDIRECT("b"&ROW()-INT($F$6)),E129,$F$7),0) -> 1111.306005 | F130: 0.3086961126 | G130: 0 | H130: 0
A131: 117 | B131: 600 | D131: 117 | E131: =IF(A131>$F$6+$B$6,ArrFlow_j(INDIRECT("b"&ROW()-INT($F$6)),E130,$F$7),0) -> 1266.86382 | F131: 0.3519066167 | G131: 0 | H131: 0
A132: 118 | B132: 600 | D132: 118 | E132: =IF(A132>$F$6+$B$6,ArrFlow_j(INDIRECT("b"&ROW()-INT($F$6)),E131,$F$7),0) -> 1391.740238 | F132: 0.3865945105 | G132: 0 | H132: 0
A133: 119 | B133: 600 | D133: 119 | E133: =IF(A133>$F$6+$B$6,ArrFlow_j(INDIRECT("b"&ROW()-INT($F$6)),E132,$F$7),0) -> 1491.986694 | F133: 0.4144407483 | G133: 0 | H133: 0
A134: 120 | B134: 0 | D134: 120 | E134: =IF(A134>$F$6+$B$6,ArrFlow_j(INDIRECT("b"&ROW()-INT($F$6)),E133,$F$7),0) -> 1572.461072 | F134: 0.4367947421 | G134: 0 | H134: 0
A135: 121 | B135: 0 | D135: 121 | E135: =IF(A135>$F$6+$B$6,ArrFlow_j(INDIRECT("b"&ROW()-INT($F$6)),E134,$F$7),0) -> 1637.06311 | F135: 0.4547397529 | G135: 0 | H135: 0
A136: 122 | B136: 0 | D136: 122 | E136: =IF(A136>$F$6+$B$6,ArrFlow_j(INDIRECT("b"&ROW()-INT($F$6)),E135,$F$7),0) -> 1688.923386 | F136: 0.469145385 | G136: 0 | H136: 0
A137: 123 | B137: 0 | D137: 123 | E137: =IF(A137>$F$6+$B$6,ArrFlow_j(INDIRECT("b"&ROW()-INT($F$6)),E136,$F$7),0) -> 1730.555016 | F137: 0.4807097268 | G137: 0 | H137: 0
A138: 124 | B138: 0 | D138: 124 | E138: =IF(A138>$F$6+$B$6,ArrFlow_j(INDIRECT("b"&ROW()-INT($F$6)),E137,$F$7),0) -> 1763.975445 | F138: 0.4899931792 | G138: 0 | H138: 0
A139: 125 | B139: 0 | D139: 125 | E139: =IF(A139>$F$6+$B$6,ArrFlow_j(INDIRECT("b"&ROW()-INT($F$6)),E138,$F$7),0) -> 1790.804206 | F139: 0.4974456127 | G139: 0 | H139: 0
A140: 126 | B140: 0 | D140: 126 | E140: =IF(A140>$F$6+$B$6,ArrFlow_j(INDIRECT("b"&ROW()-INT($F$6)),E139,$F$7),0) -> 1812.341404 | F140: 0.5034281679 | G140: 0 | H140: 0
A141: 127 | B141: 0 | D141: 127 | E141: =IF(A141>$F$6+$B$6,ArrFlow_j(INDIRECT("b"&ROW()-INT($F$6)),E140,$F$7),0) -> 1573.225624 | F141: 0.4370071179 | G141: 0 | H141: 0
A142: 128 | B142: =DepFlowi($B$10,$B$5,$B$4,$B$8,$B$7,A142) -> 0 | D142: 128 | E142: =IF(A142>$F$6+$B$6,ArrFlow_j(INDIRECT("b"&ROW()-INT($F$6)),E141,$F$7),0) -> 1381.271771 | F142: 0.383686603 | G142: 0 | H142: 0
A143: 129 | B143: 0 | D143: 129 | E143: =IF(A143>$F$6+$B$6,ArrFlow_j(INDIRECT("b"&ROW()-INT($F$6)),E142,$F$7),0) -> 1227.177876 | F143: =E143/3600 -> 0.3408827433 | G143: 0 | H143: 0
A144: 130 | B144: 0 | D144: 130 | E144: =IF(A144>$F$6+$B$6,ArrFlow_j(INDIRECT("b"&ROW()-INT($F$6)),E143,$F$7),0) -> 1103.476643 | F144: 0.3065212896 | G144: =QueueStatus(D144,F144,$N$10,$N$11,$J$9,$N$13,H143) -> 0 | H144: =QueueLength(D144,$N$10,$N$11,H143,G144,$J$9) -> 0
A145: 131 | B145: 0 | D145: 131 | E145: =IF(A145>$F$6+$B$6,ArrFlow_j(INDIRECT("b"&ROW()-INT($F$6)),E144,$F$7),0) -> 1004.173583 | F145: 0.2789371065 | G145: 0 | H145: 0
A146: 132 | B146: 0 | D146: 132 | E146: =IF(A146>$F$6+$B$6,ArrFlow_j(INDIRECT("b"&ROW()-INT($F$6)),E145,$F$7),0) -> 924.4565324 | F146: 0.2567934812 | G146: 0 | H146: 0
A147: 133 | B147: 0 | D147: 133 | E147: =IF(A147>$F$6+$B$6,ArrFlow_j(INDIRECT("b"&ROW()-INT($F$6)),E146,$F$7),0) -> 860.4624491 | F147: 0.239017347 | G147: 0 | H147: 0
A148: 134 | B148: 0 | D148: 134 | E148: =IF(A148>$F$6+$B$6,ArrFlow_j(INDIRECT("b"&ROW()-INT($F$6)),E147,$F$7),0) -> 809.0902189 | F148: 0.224747283 | G148: 0 | H148: 0
A149: 135 | B149: 0 | D149: 135 | E149: =IF(A149>$F$6+$B$6,ArrFlow_j(INDIRECT("b"&ROW()-INT($F$6)),E148,$F$7),0) -> 767.8503746 | F149: 0.2132917707 | G149: 0 | H149: 0
A150: 136 | B150: 0 | D150: 136 | E150: =IF(A150>$F$6+$B$6,ArrFlow_j(INDIRECT("b"&ROW()-INT($F$6)),E149,$F$7),0) -> 734.7444581 | F150: 0.2040956828 | G150: 0 | H150: 0
A151: 137 | B151: 0 | D151: 137 | E151: =IF(A151>$F$6+$B$6,ArrFlow_j(INDIRECT("b"&ROW()-INT($F$6)),E150,$F$7),0) -> 708.1681768 | F151: 0.1967133824 | G151: 0 | H151: 0
A152: 138 | B152: 0 | D152: 138 | E152: =IF(A152>$F$6+$B$6,ArrFlow_j(INDIRECT("b"&ROW()-INT($F$6)),E151,$F$7),0) -> 686.8336601 | F152: 0.1907871278 | G152: 0 | H152: 0
A153: 139 | B153: 0 | D153: 139 | E153: =IF(A153>$F$6+$B$6,ArrFlow_j(INDIRECT("b"&ROW()-INT($F$6)),E152,$F$7),0) -> 669.7070501 | F153: 0.1860297361 | G153: 0 | H153: 0
A154: 140 | B154: 0 | D154: 140 | E154: =IF(A154>$F$6+$B$6,ArrFlow_j(INDIRECT("b"&ROW()-INT($F$6)),E153,$F$7),0) -> 655.9584018 | F154: 0.1822106672 | G154: 0 | H154: 0
A155: 141 | B155: 0 | D155: 141 | E155: =IF(A155>$F$6+$B$6,ArrFlow_j(INDIRECT("b"&ROW()-INT($F$6)),E154,$F$7),0) -> 644.9214638 | F155: 0.1791448511 | G155: 0 | H155: 0
A156: 142 | B156: 0 | D156: 142 | E156: =IF(A156>$F$6+$B$6,ArrFlow_j(INDIRECT("b"&ROW()-INT($F$6)),E155,$F$7),0) -> 636.0613928 | F156: 0.1766837202 | G156: 0 | H156: 0
A157: 143 | B157: 0 | D157: 143 | E157: =IF(A157>$F$6+$B$6,ArrFlow_j(INDIRECT("b"&ROW()-INT($F$6)),E156,$F$7),0) -> 510.6080217 | F157: 0.1418355616 | G157: 0 | H157: 0
A158: 144 | B158: 0 | D158: 144 | E158: =IF(A158>$F$6+$B$6,ArrFlow_j(INDIRECT("b"&ROW()-INT($F$6)),E157,$F$7),0) -> 409.8984073 | F158: 0.1138606687 | G158: 0 | H158: 0
A159: 145 | B159: 0 | D159: 145 | E159: =IF(A159>$F$6+$B$6,ArrFlow_j(INDIRECT("b"&ROW()-INT($F$6)),E158,$F$7),0) -> 329.0522223 | F159: 0.0914033951 | G159: 0 | H159: 0
A160: 146 | B160: 0 | D160: 146 | E160: =IF(A160>$F$6+$B$6,ArrFlow_j(INDIRECT("b"&ROW()-INT($F$6)),E159,$F$7),0) -> 264.1517096 | F160: 0.07337547488 | G160: 0 | H160: 0
A161: 147 | B161: 0 | D161: 147 | E161: =IF(A161>$F$6+$B$6,ArrFlow_j(INDIRECT("b"&ROW()-INT($F$6)),E160,$F$7),0) -> 212.0518292 | F161: 0.0589032859 | G161: 0 | H161: 0
A162: 148 | B162: 0 | D162: 148 | E162: =IF(A162>$F$6+$B$6,ArrFlow_j(INDIRECT("b"&ROW()-INT($F$6)),E161,$F$7),0) -> 170.2278526 | F162: 0.04728551461 | G162: 0 | H162: 0
A163: 149 | B163: 0 | D163: 149 | E163: =IF(A163>$F$6+$B$6,ArrFlow_j(INDIRECT("b"&ROW()-INT($F$6)),E162,$F$7),0) -> 136.653015 | F163: 0.03795917084 | G163: 0 | H163: 0
A164: 150 | B164: 1900 | D164: 150 | E164: =IF(A164>$F$6+$B$6,ArrFlow_j(INDIRECT("b"&ROW()-INT($F$6)),E163,$F$7),0) -> 109.7003001 | F164: 0.03047230558 | G164: 0 | H164: 0
A165: 151 | B165: 1900 | D165: 151 | E165: =IF(A165>$F$6+$B$6,ArrFlow_j(INDIRECT("b"&ROW()-INT($F$6)),E164,$F$7),0) -> 88.06359549 | F165: 0.02446210986 | G165: 0 | H165: 0
A166: 152 | B166: 1900 | D166: 152 | E166: =IF(A166>$F$6+$B$6,ArrFlow_j(INDIRECT("b"&ROW()-INT($F$6)),E165,$F$7),0) -> 70.69439961 | F166: 0.01963733322 | G166: 0 | H166: 0
A167: 153 | B167: 1900 | D167: 153 | E167: =IF(A167>$F$6+$B$6,ArrFlow_j(INDIRECT("b"&ROW()-INT($F$6)),E166,$F$7),0) -> 56.75101168 | F167: 0.01576416991 | G167: 0 | H167: 0
A168: 154 | B168: 1900 | D168: 154 | E168: =IF(A168>$F$6+$B$6,ArrFlow_j(INDIRECT("b"&ROW()-INT($F$6)),E167,$F$7),0) -> 45.55774353 | F168: 0.01265492876 | G168: 0 | H168: 0
A169: 155 | B169: 1900 | D169: 155 | E169: =IF(A169>$F$6+$B$6,ArrFlow_j(INDIRECT("b"&ROW()-INT($F$6)),E168,$F$7),0) -> 36.57217615 | F169: 0.01015893782 | G169: 0 | H169: 0
A170: 156 | B170: 1900 | D170: 156 | E170: =IF(A170>$F$6+$B$6,ArrFlow_j(INDIRECT("b"&ROW()-INT($F$6)),E169,$F$7),0) -> 29.35887435 | F170: 0.008155242875 | G170: 0 | H170: 0
A171: 157 | B171: 1900 | D171: 157 | E171: =IF(A171>$F$6+$B$6,ArrFlow_j(INDIRECT("b"&ROW()-INT($F$6)),E170,$F$7),0) -> 23.5682859 | F171: 0.006546746082 | G171: 0 | H171: 0
A172: 158 | B172: 1900 | D172: 158 | E172: =IF(A172>$F$6+$B$6,ArrFlow_j(INDIRECT("b"&ROW()-INT($F$6)),E171,$F$7),0) -> 18.91980235 | F172: 0.005255500654 | G172: 0 | H172: 0
A173: 159 | B173: 1900 | D173: 159 | E173: =IF(A173>$F$6+$B$6,ArrFlow_j(INDIRECT("b"&ROW()-INT($F$6)),E172,$F$7),0) -> 15.18816102 | F173: 0.004218933616 | G173: 0 | H173: 0
A174: 160 | B174: 1900 | D174: 160 | E174: =IF(A174>$F$6+$B$6,ArrFlow_j(INDIRECT("b"&ROW()-INT($F$6)),E173,$F$7),0) -> 12.1925288 | F174: 0.003386813555 | G174: 0 | H174: 0
A175: 161 | B175: 1900 | D175: 161 | E175: =IF(A175>$F$6+$B$6,ArrFlow_j(INDIRECT("b"&ROW()-INT($F$6)),E174,$F$7),0) -> 9.787739172 | F175: 0.002718816437 | G175: 0 | H175: 0
A176: 162 | B176: 1900 | D176: 162 | E176: =IF(A176>$F$6+$B$6,ArrFlow_j(INDIRECT("b"&ROW()-INT($F$6)),E175,$F$7),0) -> 7.857257479 | F176: 0.002182571522 | G176: 0 | H176: 0
A177: 163 | B177: 1900 | D177: 163 | E177: =IF(A177>$F$6+$B$6,ArrFlow_j(INDIRECT("b"&ROW()-INT($F$6)),E176,$F$7),0) -> 6.307533742 | F177: 0.001752092706 | G177: 0 | H177: 0
A178: 164 | B178: 600 | D178: 164 | E178: =IF(A178>$F$6+$B$6,ArrFlow_j(INDIRECT("b"&ROW()-INT($F$6)),E177,$F$7),0) -> 5.063469285 | F178: 0.001406519246 | G178: 0 | H178: 0
A179: 165 | B179: 600 | D179: 165 | E179: =IF(A179>$F$6+$B$6,ArrFlow_j(INDIRECT("b"&ROW()-INT($F$6)),E178,$F$7),0) -> 4.064777495 | F179: 0.00112910486 | G179: 0 | H179: 0
A180: 166 | B180: 600 | D180: 166 | E180: =IF(A180>$F$6+$B$6,ArrFlow_j(INDIRECT("b"&ROW()-INT($F$6)),E179,$F$7),0) -> 3.263062369 | F180: 0.0009064062137 | G180: 0 | H180: 0
A181: 167 | B181: 600 | D181: 167 | E181: =IF(A181>$F$6+$B$6,ArrFlow_j(INDIRECT("b"&ROW()-INT($F$6)),E180,$F$7),0) -> 2.619473277 | F181: 0.0007276314659 | G181: 0 | H181: 0
A182: 168 | B182: 600 | D182: 168 | E182: =IF(A182>$F$6+$B$6,ArrFlow_j(INDIRECT("b"&ROW()-INT($F$6)),E181,$F$7),0) -> 2.10282228 | F182: 0.0005841172999 | G182: 0 | H182: 0
A183: 169 | B183: 600 | D183: 169 | E183: =IF(A183>$F$6+$B$6,ArrFlow_j(INDIRECT("b"&ROW()-INT($F$6)),E182,$F$7),0) -> 1.688072781 | F183: 0.0004689091058 | G183: 0 | H183: 0
A184: 170 | B184: 600 | D184: 170 | E184: =IF(A184>$F$6+$B$6,ArrFlow_j(INDIRECT("b"&ROW()-INT($F$6)),E183,$F$7),0) -> 1.355126271 | F184: 0.0003764239641 | G184: 0 | H184: 0
A185: 171 | B185: 600 | D185: 171 | E185: =IF(A185>$F$6+$B$6,ArrFlow_j(INDIRECT("b"&ROW()-INT($F$6)),E184,$F$7),0) -> 1.087848362 | F185: 0.0003021801005 | G185: 0 | H185: 0
A186: 172 | B186: 600 | D186: 172 | E186: =IF(A186>$F$6+$B$6,ArrFlow_j(INDIRECT("b"&ROW()-INT($F$6)),E185,$F$7),0) -> 0.8732869284 | F186: 0.0002425797023 | G186: 0 | H186: 0
A187: 173 | B187: 600 | D187: 173 | E187: =IF(A187>$F$6+$B$6,ArrFlow_j(INDIRECT("b"&ROW()-INT($F$6)),E186,$F$7),0) -> 375.4469538 | F187: 0.1042908205 | G187: 0 | H187: 0
A188: 174 | B188: 600 | D188: 174 | E188: =IF(A188>$F$6+$B$6,ArrFlow_j(INDIRECT("b"&ROW()-INT($F$6)),E187,$F$7),0) -> 676.1417 | F188: 0.1878171389 | G188: 0 | H188: 0
A189: 175 | B189: 600 | D189: 175 | E189: =IF(A189>$F$6+$B$6,ArrFlow_j(INDIRECT("b"&ROW()-INT($F$6)),E188,$F$7),0) -> 917.5290114 | F189: 0.2548691698 | G189: 0 | H189: 0
A190: 176 | B190: 600 | D190: 176 | E190: =IF(A190>$F$6+$B$6,ArrFlow_j(INDIRECT("b"&ROW()-INT($F$6)),E189,$F$7),0) -> 1111.306371 | F190: 0.3086962143 | G190: 0 | H190: 0
A191: 177 | B191: 600 | D191: 177 | E191: =IF(A191>$F$6+$B$6,ArrFlow_j(INDIRECT("b"&ROW()-INT($F$6)),E190,$F$7),0) -> 1266.864114 | F191: 0.3519066984 | G191: 0 | H191: 0
A192: 178 | B192: 600 | D192: 178 | E192: =IF(A192>$F$6+$B$6,ArrFlow_j(INDIRECT("b"&ROW()-INT($F$6)),E191,$F$7),0) -> 1391.740474 | F192: 0.386594576 | G192: 0 | H192: 0
A193: 179 | B193: 600 | D193: 179 | E193: =IF(A193>$F$6+$B$6,ArrFlow_j(INDIRECT("b"&ROW()-INT($F$6)),E192,$F$7),0) -> 1491.986883 | F193: 0.4144408009 | G193: 0 | H193: 0
A194: 180 | B194: 0 | D194: 180 | E194: =IF(A194>$F$6+$B$6,ArrFlow_j(INDIRECT("b"&ROW()-INT($F$6)),E193,$F$7),0) -> 1572.461224 | F194: 0.4367947843 | G194: 0 | H194: 0
A195: 181 | B195: 0 | D195: 181 | E195: =IF(A195>$F$6+$B$6,ArrFlow_j(INDIRECT("b"&ROW()-INT($F$6)),E194,$F$7),0) -> 1637.063232 | F195: 0.4547397868 | G195: 0 | H195: 0
A196: 182 | B196: 0 | D196: 182 | E196: =IF(A196>$F$6+$B$6,ArrFlow_j(INDIRECT("b"&ROW()-INT($F$6)),E195,$F$7),0) -> 1688.923484 | F196: 0.4691454122 | G196: 0 | H196: 0
A197: 183 | B197: 0 | D197: 183 | E197: =IF(A197>$F$6+$B$6,ArrFlow_j(INDIRECT("b"&ROW()-INT($F$6)),E196,$F$7),0) -> 1730.555095 | F197: 0.4807097486 | G197: 0 | H197: 0
A198: 184 | B198: 0 | D198: 184 | E198: =IF(A198>$F$6+$B$6,ArrFlow_j(INDIRECT("b"&ROW()-INT($F$6)),E197,$F$7),0) -> 1763.975508 | F198: 0.4899931967 | G198: 0 | H198: 0
A199: 185 | B199: 0 | D199: 185 | E199: =IF(A199>$F$6+$B$6,ArrFlow_j(INDIRECT("b"&ROW()-INT($F$6)),E198,$F$7),0) -> 1790.804257 | F199: 0.4974456268 | G199: 0 | H199: 0
A200: 186 | B200: 0 | D200: 186 | E200: =IF(A200>$F$6+$B$6,ArrFlow_j(INDIRECT("b"&ROW()-INT($F$6)),E199,$F$7),0) -> 1812.341445 | F200: 0.5034281792 | G200: 0 | H200: 0
A201: 187 | B201: 0 | D201: 187 | E201: =IF(A201>$F$6+$B$6,ArrFlow_j(INDIRECT("b"&ROW()-INT($F$6)),E200,$F$7),0) -> 1573.225657 | F201: 0.4370071269 | G201: 0 | H201: 0
... 13 more rows

Sheet example 18
A1: Predicting Arrival Flow at the Downstream Signalized Intersection
A3: Upstream Signal | E3: Platoon Dispersion Model | I3: Downstream Signal | M3: Downstream Signal Timing | Q3: Delay
A4: Cycle length, C | B4: 60 | C4: sec | E4: Speed | F4: 25 | G4: mi/hr | I4: Distance | J4: 1000 | K4: ft | M4: GreenStart1 | N4: =N8-J6 -> -30 | O4: 5 | Q4: Total | R4: =SUM(H14:H214) -> 211.6791662 | S4: sec
A5: Effective green, g | B5: 30 | C5: sec | E5: tR | F5: =(J4)/(1.47*F4) -> 27.21088435 | G5: sec | I5: Offset | J5: 0 | K5: sec | M5: GreenEnd1 | N5: =N9-J6 -> 0 | O5: 5 | Q5: Average | R5: =R4/(B9*B4) -> 21.16791662 | S5: sec/veh
A6: Effective red, r | B6: =B4-B5 -> 30 | C6: sec | E6: tprime | F6: =tprime(F5,F7) -> 23.39078231 | G6: sec | I6: Cycle length, C | J6: =B4 -> 60 | K6: sec | M6: RedStart1 | N6: =N10-J6 -> 0 | O6: 5
A7: Saturation flow rate, s | B7: 1900 | C7: veh/hr-g | E7: F | F7: =F(F5) -> 0.1972346892 | I7: Effective green, g | J7: =B5 -> 30 | K7: sec | M7: RedEnd1 | N7: =N11-J6 -> 30 | O7: 5
A8: ArrFlow | B8: 600 | C8: veh/hr | I8: Effective red, r | J8: =B6 -> 30 | K8: sec | M8: GreenStart2 | N8: =B5+J5 -> 30 | O8: 5
A9: ArrFlow | B9: =B8/3600 -> 0.1666666667 | C9: veh/sec | I9: Queue service time, gs | J9: =B10 -> 13.84615385 | K9: =C10 -> sec | M9: GreenEnd2 | N9: =N8+J7 -> 60 | O9: 5
A10: Queue service time, gs | B10: =(B8*B6)/(B7-B8) -> 13.84615385 | C10: sec | M10: RedStart2 | N10: =N9 -> 60 | O10: 5
M11: RedEnd2 | N11: =N10+J8 -> 90 | O11: 5
A12: Flow Profile Departing | D12: Flow Profile Arriving | M12: GreenStart3 | N12: =N8+J6 -> 90 | O12: 5
A13: Time i | B13: DepFlowi | D13: Time i | E13: ArrFlowj | F13: ArrFlowj | G13: QueueStatus | H13: Queue | M13: GreenEnd3 | N13: =N9+J6 -> 120 | O13: 5
A14: 0 | B14: =DepFlowi($B$10,$B$5,$B$4,$B$8,$B$7,A14) -> 0 | D14: 0 | E14: =IF(A14>$F$6+$B$6,ArrFlow_j(INDIRECT("b"&ROW()-INT($F$6)),E13,$F$7),0) -> 0 | F14: =E14/3600 -> 0 | G14: =QueueStatus(D14,F14,$N$10,$N$11,$J$9,$N$13,H13) -> 0 | M14: RedStart3 | N14: =N10+J6 -> 120 | O14: 5
A15: 1 | B15: 0 | D15: 1 | E15: =IF(A15>$F$6+$B$6,ArrFlow_j(INDIRECT("b"&ROW()-INT($F$6)),E14,$F$7),0) -> 0 | F15: =E15/3600 -> 0 | G15: =QueueStatus(D15,F15,$N$10,$N$11,$J$9,$N$13,H14) -> 0 | H15: =QueueLength(D15,$N$10,$N$11,H14,G15,$J$9) -> 0 | M15: RedEnd3 | N15: =N11+J6 -> 150 | O15: 5
A16: 2 | B16: 0 | D16: 2 | E16: =IF(A16>$F$6+$B$6,ArrFlow_j(INDIRECT("b"&ROW()-INT($F$6)),E15,$F$7),0) -> 0 | F16: 0 | G16: =QueueStatus(D16,F16,$N$10,$N$11,$J$9,$N$13,H15) -> 0 | H16: =QueueLength(D16,$N$10,$N$11,H15,G16,$J$9) -> 0 | M16: GreenStart4 | N16: =N12+J6 -> 150 | O16: 5
A17: 3 | B17: 0 | D17: 3 | E17: =IF(A17>$F$6+$B$6,ArrFlow_j(INDIRECT("b"&ROW()-INT($F$6)),E16,$F$7),0) -> 0 | F17: 0 | G17: 0 | H17: 0 | M17: GreenEnd4 | N17: =N13+J6 -> 180 | O17: 5
A18: 4 | B18: 0 | D18: 4 | E18: =IF(A18>$F$6+$B$6,ArrFlow_j(INDIRECT("b"&ROW()-INT($F$6)),E17,$F$7),0) -> 0 | F18: 0 | G18: 0 | H18: 0
A19: 5 | B19: 0 | D19: 5 | E19: =IF(A19>$F$6+$B$6,ArrFlow_j(INDIRECT("b"&ROW()-INT($F$6)),E18,$F$7),0) -> 0 | F19: 0 | G19: 0 | H19: 0
A20: 6 | B20: 0 | D20: 6 | E20: =IF(A20>$F$6+$B$6,ArrFlow_j(INDIRECT("b"&ROW()-INT($F$6)),E19,$F$7),0) -> 0 | F20: 0 | G20: 0 | H20: 0
A21: 7 | B21: 0 | D21: 7 | E21: =IF(A21>$F$6+$B$6,ArrFlow_j(INDIRECT("b"&ROW()-INT($F$6)),E20,$F$7),0) -> 0 | F21: 0 | G21: 0 | H21: 0
A22: 8 | B22: 0 | D22: 8 | E22: =IF(A22>$F$6+$B$6,ArrFlow_j(INDIRECT("b"&ROW()-INT($F$6)),E21,$F$7),0) -> 0 | F22: 0 | G22: 0 | H22: 0
A23: 9 | B23: 0 | D23: 9 | E23: =IF(A23>$F$6+$B$6,ArrFlow_j(INDIRECT("b"&ROW()-INT($F$6)),E22,$F$7),0) -> 0 | F23: 0 | G23: 0 | H23: 0
A24: 10 | B24: 0 | D24: 10 | E24: =IF(A24>$F$6+$B$6,ArrFlow_j(INDIRECT("b"&ROW()-INT($F$6)),E23,$F$7),0) -> 0 | F24: 0 | G24: 0 | H24: 0
A25: 11 | B25: 0 | D25: 11 | E25: =IF(A25>$F$6+$B$6,ArrFlow_j(INDIRECT("b"&ROW()-INT($F$6)),E24,$F$7),0) -> 0 | F25: 0 | G25: 0 | H25: 0
A26: 12 | B26: 0 | D26: 12 | E26: =IF(A26>$F$6+$B$6,ArrFlow_j(INDIRECT("b"&ROW()-INT($F$6)),E25,$F$7),0) -> 0 | F26: 0 | G26: 0 | H26: 0
A27: 13 | B27: 0 | D27: 13 | E27: =IF(A27>$F$6+$B$6,ArrFlow_j(INDIRECT("b"&ROW()-INT($F$6)),E26,$F$7),0) -> 0 | F27: 0 | G27: 0 | H27: 0
A28: 14 | B28: 0 | D28: 14 | E28: =IF(A28>$F$6+$B$6,ArrFlow_j(INDIRECT("b"&ROW()-INT($F$6)),E27,$F$7),0) -> 0 | F28: 0 | G28: 0 | H28: 0
A29: 15 | B29: 0 | D29: 15 | E29: =IF(A29>$F$6+$B$6,ArrFlow_j(INDIRECT("b"&ROW()-INT($F$6)),E28,$F$7),0) -> 0 | F29: 0 | G29: 0 | H29: 0
A30: 16 | B30: 0 | D30: 16 | E30: =IF(A30>$F$6+$B$6,ArrFlow_j(INDIRECT("b"&ROW()-INT($F$6)),E29,$F$7),0) -> 0 | F30: 0 | G30: 0 | H30: 0
A31: 17 | B31: 0 | D31: 17 | E31: =IF(A31>$F$6+$B$6,ArrFlow_j(INDIRECT("b"&ROW()-INT($F$6)),E30,$F$7),0) -> 0 | F31: 0 | G31: 0 | H31: 0
A32: 18 | B32: 0 | D32: 18 | E32: =IF(A32>$F$6+$B$6,ArrFlow_j(INDIRECT("b"&ROW()-INT($F$6)),E31,$F$7),0) -> 0 | F32: 0 | G32: 0 | H32: 0
A33: 19 | B33: 0 | D33: 19 | E33: =IF(A33>$F$6+$B$6,ArrFlow_j(INDIRECT("b"&ROW()-INT($F$6)),E32,$F$7),0) -> 0 | F33: 0 | G33: 0 | H33: 0 | Q33: Cycle Range Line
A34: 20 | B34: 0 | D34: 20 | E34: =IF(A34>$F$6+$B$6,ArrFlow_j(INDIRECT("b"&ROW()-INT($F$6)),E33,$F$7),0) -> 0 | F34: 0 | G34: 0 | H34: 0 | Q34: RedStart2 | R34: =N10 -> 60 | S34: 0
A35: 21 | B35: 0 | D35: 21 | E35: =IF(A35>$F$6+$B$6,ArrFlow_j(INDIRECT("b"&ROW()-INT($F$6)),E34,$F$7),0) -> 0 | F35: 0 | G35: 0 | H35: 0 | Q35: RedEnd2 | R35: =N11 -> 90 | S35: 0
A36: 22 | B36: 0 | D36: 22 | E36: =IF(A36>$F$6+$B$6,ArrFlow_j(INDIRECT("b"&ROW()-INT($F$6)),E35,$F$7),0) -> 0 | F36: 0 | G36: 0 | H36: 0 | Q36: GreenStart3 | R36: =N12 -> 90 | S36: 0
A37: 23 | B37: 0 | D37: 23 | E37: =IF(A37>$F$6+$B$6,ArrFlow_j(INDIRECT("b"&ROW()-INT($F$6)),E36,$F$7),0) -> 0 | F37: 0 | G37: 0 | H37: 0 | Q37: GreenEnd3 | R37: =N13 -> 120 | S37: 0
A38: 24 | B38: 0 | D38: 24 | E38: =IF(A38>$F$6+$B$6,ArrFlow_j(INDIRECT("b"&ROW()-INT($F$6)),E37,$F$7),0) -> 0 | F38: 0 | G38: 0 | H38: 0
A39: 25 | B39: 0 | D39: 25 | E39: =IF(A39>$F$6+$B$6,ArrFlow_j(INDIRECT("b"&ROW()-INT($F$6)),E38,$F$7),0) -> 0 | F39: 0 | G39: 0 | H39: 0
A40: 26 | B40: 0 | D40: 26 | E40: =IF(A40>$F$6+$B$6,ArrFlow_j(INDIRECT("b"&ROW()-INT($F$6)),E39,$F$7),0) -> 0 | F40: 0 | G40: 0 | H40: 0
A41: 27 | B41: 0 | D41: 27 | E41: =IF(A41>$F$6+$B$6,ArrFlow_j(INDIRECT("b"&ROW()-INT($F$6)),E40,$F$7),0) -> 0 | F41: 0 | G41: 0 | H41: 0
A42: 28 | B42: 0 | D42: 28 | E42: =IF(A42>$F$6+$B$6,ArrFlow_j(INDIRECT("b"&ROW()-INT($F$6)),E41,$F$7),0) -> 0 | F42: 0 | G42: 0 | H42: 0
A43: 29 | B43: 0 | D43: 29 | E43: =IF(A43>$F$6+$B$6,ArrFlow_j(INDIRECT("b"&ROW()-INT($F$6)),E42,$F$7),0) -> 0 | F43: 0 | G43: 0 | H43: 0
A44: 30 | B44: 1900 | D44: 30 | E44: =IF(A44>$F$6+$B$6,ArrFlow_j(INDIRECT("b"&ROW()-INT($F$6)),E43,$F$7),0) -> 0 | F44: 0 | G44: 0 | H44: 0
A45: 31 | B45: 1900 | D45: 31 | E45: =IF(A45>$F$6+$B$6,ArrFlow_j(INDIRECT("b"&ROW()-INT($F$6)),E44,$F$7),0) -> 0 | F45: 0 | G45: 0 | H45: 0
A46: 32 | B46: 1900 | D46: 32 | E46: =IF(A46>$F$6+$B$6,ArrFlow_j(INDIRECT("b"&ROW()-INT($F$6)),E45,$F$7),0) -> 0 | F46: 0 | G46: 0 | H46: 0
A47: 33 | B47: 1900 | D47: 33 | E47: =IF(A47>$F$6+$B$6,ArrFlow_j(INDIRECT("b"&ROW()-INT($F$6)),E46,$F$7),0) -> 0 | F47: 0 | G47: 0 | H47: 0
A48: 34 | B48: 1900 | D48: 34 | E48: =IF(A48>$F$6+$B$6,ArrFlow_j(INDIRECT("b"&ROW()-INT($F$6)),E47,$F$7),0) -> 0 | F48: 0 | G48: 0 | H48: 0
A49: 35 | B49: 1900 | D49: 35 | E49: =IF(A49>$F$6+$B$6,ArrFlow_j(INDIRECT("b"&ROW()-INT($F$6)),E48,$F$7),0) -> 0 | F49: 0 | G49: 0 | H49: 0
A50: 36 | B50: 1900 | D50: 36 | E50: =IF(A50>$F$6+$B$6,ArrFlow_j(INDIRECT("b"&ROW()-INT($F$6)),E49,$F$7),0) -> 0 | F50: 0 | G50: 0 | H50: 0
A51: 37 | B51: 1900 | D51: 37 | E51: =IF(A51>$F$6+$B$6,ArrFlow_j(INDIRECT("b"&ROW()-INT($F$6)),E50,$F$7),0) -> 0 | F51: 0 | G51: 0 | H51: 0
A52: 38 | B52: 1900 | D52: 38 | E52: =IF(A52>$F$6+$B$6,ArrFlow_j(INDIRECT("b"&ROW()-INT($F$6)),E51,$F$7),0) -> 0 | F52: 0 | G52: 0 | H52: 0
A53: 39 | B53: 1900 | D53: 39 | E53: =IF(A53>$F$6+$B$6,ArrFlow_j(INDIRECT("b"&ROW()-INT($F$6)),E52,$F$7),0) -> 0 | F53: 0 | G53: 0 | H53: 0
A54: 40 | B54: 1900 | D54: 40 | E54: =IF(A54>$F$6+$B$6,ArrFlow_j(INDIRECT("b"&ROW()-INT($F$6)),E53,$F$7),0) -> 0 | F54: 0 | G54: 0 | H54: 0
A55: 41 | B55: 1900 | D55: 41 | E55: =IF(A55>$F$6+$B$6,ArrFlow_j(INDIRECT("b"&ROW()-INT($F$6)),E54,$F$7),0) -> 0 | F55: 0 | G55: 0 | H55: 0
A56: 42 | B56: 1900 | D56: 42 | E56: =IF(A56>$F$6+$B$6,ArrFlow_j(INDIRECT("b"&ROW()-INT($F$6)),E55,$F$7),0) -> 0 | F56: 0 | G56: 0 | H56: 0
A57: 43 | B57: 1900 | D57: 43 | E57: =IF(A57>$F$6+$B$6,ArrFlow_j(INDIRECT("b"&ROW()-INT($F$6)),E56,$F$7),0) -> 0 | F57: 0 | G57: 0 | H57: 0
A58: 44 | B58: 600 | D58: 44 | E58: =IF(A58>$F$6+$B$6,ArrFlow_j(INDIRECT("b"&ROW()-INT($F$6)),E57,$F$7),0) -> 0 | F58: 0 | G58: 0 | H58: 0
A59: 45 | B59: 600 | D59: 45 | E59: =IF(A59>$F$6+$B$6,ArrFlow_j(INDIRECT("b"&ROW()-INT($F$6)),E58,$F$7),0) -> 0 | F59: 0 | G59: 0 | H59: 0
A60: 46 | B60: 600 | D60: 46 | E60: =IF(A60>$F$6+$B$6,ArrFlow_j(INDIRECT("b"&ROW()-INT($F$6)),E59,$F$7),0) -> 0 | F60: 0 | G60: 0 | H60: 0
A61: 47 | B61: 600 | D61: 47 | E61: =IF(A61>$F$6+$B$6,ArrFlow_j(INDIRECT("b"&ROW()-INT($F$6)),E60,$F$7),0) -> 0 | F61: 0 | G61: 0 | H61: 0
A62: 48 | B62: 600 | D62: 48 | E62: =IF(A62>$F$6+$B$6,ArrFlow_j(INDIRECT("b"&ROW()-INT($F$6)),E61,$F$7),0) -> 0 | F62: 0 | G62: 0 | H62: 0
A63: 49 | B63: 600 | D63: 49 | E63: =IF(A63>$F$6+$B$6,ArrFlow_j(INDIRECT("b"&ROW()-INT($F$6)),E62,$F$7),0) -> 0 | F63: 0 | G63: 0 | H63: 0
A64: 50 | B64: 600 | D64: 50 | E64: =IF(A64>$F$6+$B$6,ArrFlow_j(INDIRECT("b"&ROW()-INT($F$6)),E63,$F$7),0) -> 0 | F64: 0 | G64: 0 | H64: 0
A65: 51 | B65: 600 | D65: 51 | E65: =IF(A65>$F$6+$B$6,ArrFlow_j(INDIRECT("b"&ROW()-INT($F$6)),E64,$F$7),0) -> 0 | F65: 0 | G65: 0 | H65: 0
A66: 52 | B66: 600 | D66: 52 | E66: =IF(A66>$F$6+$B$6,ArrFlow_j(INDIRECT("b"&ROW()-INT($F$6)),E65,$F$7),0) -> 0 | F66: 0 | G66: 0 | H66: 0
A67: 53 | B67: 600 | D67: 53 | E67: =IF(A67>$F$6+$B$6,ArrFlow_j(INDIRECT("b"&ROW()-INT($F$6)),E66,$F$7),0) -> 0 | F67: 0 | G67: 0 | H67: 0
A68: 54 | B68: 600 | D68: 54 | E68: =IF(A68>$F$6+$B$6,ArrFlow_j(INDIRECT("b"&ROW()-INT($F$6)),E67,$F$7),0) -> 374.7459094 | F68: 0.1040960859 | G68: 0 | H68: 0
A69: 55 | B69: 600 | D69: 55 | E69: =IF(A69>$F$6+$B$6,ArrFlow_j(INDIRECT("b"&ROW()-INT($F$6)),E68,$F$7),0) -> 675.5789258 | F69: 0.1876608127 | G69: 0 | H69: 0
A70: 56 | B70: 600 | D70: 56 | E70: =IF(A70>$F$6+$B$6,ArrFlow_j(INDIRECT("b"&ROW()-INT($F$6)),E69,$F$7),0) -> 917.0772358 | F70: 0.2547436766 | G70: 0 | H70: 0
A71: 57 | B71: 600 | D71: 57 | E71: =IF(A71>$F$6+$B$6,ArrFlow_j(INDIRECT("b"&ROW()-INT($F$6)),E70,$F$7),0) -> 1110.943702 | F71: 0.3085954727 | G71: 0 | H71: 0
A72: 58 | B72: 600 | D72: 58 | E72: =IF(A72>$F$6+$B$6,ArrFlow_j(INDIRECT("b"&ROW()-INT($F$6)),E71,$F$7),0) -> 1266.572975 | F72: 0.3518258265 | G72: 0 | H72: 0
A73: 59 | B73: 600 | D73: 59 | E73: =IF(A73>$F$6+$B$6,ArrFlow_j(INDIRECT("b"&ROW()-INT($F$6)),E72,$F$7),0) -> 1391.506758 | F73: 0.3865296549 | G73: 0 | H73: 0
A74: 60 | B74: 0 | D74: 60 | E74: =IF(A74>$F$6+$B$6,ArrFlow_j(INDIRECT("b"&ROW()-INT($F$6)),E73,$F$7),0) -> 1491.799264 | F74: 0.4143886845 | G74: 0.4143886845 | H74: 0.4143886845
A75: 61 | B75: 0 | D75: 61 | E75: =IF(A75>$F$6+$B$6,ArrFlow_j(INDIRECT("b"&ROW()-INT($F$6)),E74,$F$7),0) -> 1572.310609 | F75: 0.4367529471 | G75: 0.4367529471 | H75: 0.8511416316
A76: 62 | B76: 0 | D76: 62 | E76: =IF(A76>$F$6+$B$6,ArrFlow_j(INDIRECT("b"&ROW()-INT($F$6)),E75,$F$7),0) -> 1636.942325 | F76: 0.4547062013 | G76: 0.4547062013 | H76: 1.305847833
A77: 63 | B77: 0 | D77: 63 | E77: =IF(A77>$F$6+$B$6,ArrFlow_j(INDIRECT("b"&ROW()-INT($F$6)),E76,$F$7),0) -> 1688.826423 | F77: 0.4691184509 | G77: 0.4691184509 | H77: 1.774966284
A78: 64 | B78: =DepFlowi($B$10,$B$5,$B$4,$B$8,$B$7,A78) -> 0 | D78: 64 | E78: =IF(A78>$F$6+$B$6,ArrFlow_j(INDIRECT("b"&ROW()-INT($F$6)),E77,$F$7),0) -> 1730.477178 | F78: 0.480688105 | G78: 0.480688105 | H78: 2.255654389
A79: 65 | B79: 0 | D79: 65 | E79: =IF(A79>$F$6+$B$6,ArrFlow_j(INDIRECT("b"&ROW()-INT($F$6)),E78,$F$7),0) -> 1763.912959 | F79: =E79/3600 -> 0.489975822 | G79: 0.489975822 | H79: 2.745630211
A80: 66 | B80: 0 | D80: 66 | E80: =IF(A80>$F$6+$B$6,ArrFlow_j(INDIRECT("b"&ROW()-INT($F$6)),E79,$F$7),0) -> 1790.754044 | F80: 0.497431679 | G80: =QueueStatus(D80,F80,$N$10,$N$11,$J$9,$N$13,H79) -> 0.497431679 | H80: =QueueLength(D80,$N$10,$N$11,H79,G80,$J$9) -> 3.24306189
A81: 67 | B81: 0 | D81: 67 | E81: =IF(A81>$F$6+$B$6,ArrFlow_j(INDIRECT("b"&ROW()-INT($F$6)),E80,$F$7),0) -> 1555.896041 | F81: 0.4321933446 | G81: 0.4321933446 | H81: 3.675255234
A82: 68 | B82: 0 | D82: 68 | E82: =IF(A82>$F$6+$B$6,ArrFlow_j(INDIRECT("b"&ROW()-INT($F$6)),E81,$F$7),0) -> 1367.360182 | F82: 0.3798222728 | G82: 0.3798222728 | H82: 4.055077507
A83: 69 | B83: 0 | D83: 69 | E83: =IF(A83>$F$6+$B$6,ArrFlow_j(INDIRECT("b"&ROW()-INT($F$6)),E82,$F$7),0) -> 1216.010135 | F83: 0.3377805931 | G83: 0.3377805931 | H83: 4.3928581
A84: 70 | B84: 0 | D84: 70 | E84: =IF(A84>$F$6+$B$6,ArrFlow_j(INDIRECT("b"&ROW()-INT($F$6)),E83,$F$7),0) -> 1094.511568 | F84: 0.304030991 | G84: 0.304030991 | H84: 4.696889091
A85: 71 | B85: 0 | D85: 71 | E85: =IF(A85>$F$6+$B$6,ArrFlow_j(INDIRECT("b"&ROW()-INT($F$6)),E84,$F$7),0) -> 996.9767323 | F85: 0.2769379812 | G85: 0.2769379812 | H85: 4.973827073
A86: 72 | B86: 0 | D86: 72 | E86: =IF(A86>$F$6+$B$6,ArrFlow_j(INDIRECT("b"&ROW()-INT($F$6)),E85,$F$7),0) -> 918.6791499 | F86: 0.2551886528 | G86: 0.2551886528 | H86: 5.229015725
A87: 73 | B87: 0 | D87: 73 | E87: =IF(A87>$F$6+$B$6,ArrFlow_j(INDIRECT("b"&ROW()-INT($F$6)),E86,$F$7),0) -> 855.8245668 | F87: 0.2377290463 | G87: 0.2377290463 | H87: 5.466744772
A88: 74 | B88: 0 | D88: 74 | E88: =IF(A88>$F$6+$B$6,ArrFlow_j(INDIRECT("b"&ROW()-INT($F$6)),E87,$F$7),0) -> 805.3670879 | F88: 0.22371308 | G88: 0.22371308 | H88: 5.690457852
A89: 75 | B89: 0 | D89: 75 | E89: =IF(A89>$F$6+$B$6,ArrFlow_j(INDIRECT("b"&ROW()-INT($F$6)),E88,$F$7),0) -> 764.8615742 | F89: 0.2124615484 | G89: 0.2124615484 | H89: 5.9029194
A90: 76 | B90: 0 | D90: 76 | E90: =IF(A90>$F$6+$B$6,ArrFlow_j(INDIRECT("b"&ROW()-INT($F$6)),E89,$F$7),0) -> 732.3451528 | F90: 0.2034292091 | G90: 0.2034292091 | H90: 6.106348609
A91: 77 | B91: 0 | D91: 77 | E91: =IF(A91>$F$6+$B$6,ArrFlow_j(INDIRECT("b"&ROW()-INT($F$6)),E90,$F$7),0) -> 706.2420978 | F91: 0.1961783605 | G91: 0.1961783605 | H91: 6.30252697
A92: 78 | B92: 0 | D92: 78 | E92: =IF(A92>$F$6+$B$6,ArrFlow_j(INDIRECT("b"&ROW()-INT($F$6)),E91,$F$7),0) -> 685.2874706 | F92: 0.1903576307 | G92: 0.1903576307 | H92: 6.4928846
A93: 79 | B93: 0 | D93: 79 | E93: =IF(A93>$F$6+$B$6,ArrFlow_j(INDIRECT("b"&ROW()-INT($F$6)),E92,$F$7),0) -> 668.4658229 | F93: 0.1856849508 | G93: 0.1856849508 | H93: 6.678569551
A94: 80 | B94: 0 | D94: 80 | E94: =IF(A94>$F$6+$B$6,ArrFlow_j(INDIRECT("b"&ROW()-INT($F$6)),E93,$F$7),0) -> 654.9619876 | F94: 0.1819338854 | G94: 0.1819338854 | H94: 6.860503437
A95: 81 | B95: 0 | D95: 81 | E95: =IF(A95>$F$6+$B$6,ArrFlow_j(INDIRECT("b"&ROW()-INT($F$6)),E94,$F$7),0) -> 644.121577 | F95: 0.1789226603 | G95: 0.1789226603 | H95: 7.039426097
A96: 82 | B96: 0 | D96: 82 | E96: =IF(A96>$F$6+$B$6,ArrFlow_j(INDIRECT("b"&ROW()-INT($F$6)),E95,$F$7),0) -> 635.4192715 | F96: 0.1765053532 | G96: 0.1765053532 | H96: 7.21593145
A97: 83 | B97: 0 | D97: 83 | E97: =IF(A97>$F$6+$B$6,ArrFlow_j(INDIRECT("b"&ROW()-INT($F$6)),E96,$F$7),0) -> 510.092549 | F97: 0.1416923747 | G97: 0.1416923747 | H97: 7.357623825
A98: 84 | B98: 0 | D98: 84 | E98: =IF(A98>$F$6+$B$6,ArrFlow_j(INDIRECT("b"&ROW()-INT($F$6)),E97,$F$7),0) -> 409.4846037 | F98: 0.1137457232 | G98: 0.1137457232 | H98: 7.471369548
A99: 85 | B99: 0 | D99: 85 | E99: =IF(A99>$F$6+$B$6,ArrFlow_j(INDIRECT("b"&ROW()-INT($F$6)),E98,$F$7),0) -> 328.7200352 | F99: 0.09131112088 | G99: 0.09131112088 | H99: 7.562680669
A100: 86 | B100: 0 | D100: 86 | E100: =IF(A100>$F$6+$B$6,ArrFlow_j(INDIRECT("b"&ROW()-INT($F$6)),E99,$F$7),0) -> 263.8850412 | F100: 0.07330140033 | G100: 0.07330140033 | H100: 7.635982069
A101: 87 | B101: 0 | D101: 87 | E101: =IF(A101>$F$6+$B$6,ArrFlow_j(INDIRECT("b"&ROW()-INT($F$6)),E100,$F$7),0) -> 211.8377571 | F101: 0.05884382142 | G101: 0.05884382142 | H101: 7.694825891
A102: 88 | B102: 0 | D102: 88 | E102: =IF(A102>$F$6+$B$6,ArrFlow_j(INDIRECT("b"&ROW()-INT($F$6)),E101,$F$7),0) -> 170.0560029 | F102: 0.0472377786 | G102: 0.0472377786 | H102: 7.742063669
A103: 89 | B103: 0 | D103: 89 | E103: =IF(A103>$F$6+$B$6,ArrFlow_j(INDIRECT("b"&ROW()-INT($F$6)),E102,$F$7),0) -> 136.5150601 | F103: 0.03792085002 | G103: 0.03792085002 | H103: 7.779984519
A104: 90 | B104: 1900 | D104: 90 | E104: =IF(A104>$F$6+$B$6,ArrFlow_j(INDIRECT("b"&ROW()-INT($F$6)),E103,$F$7),0) -> 109.5895546 | F104: 0.03044154295 | G104: -0.4973362348 | H104: 7.282648285
A105: 91 | B105: 1900 | D105: 91 | E105: =IF(A105>$F$6+$B$6,ArrFlow_j(INDIRECT("b"&ROW()-INT($F$6)),E104,$F$7),0) -> 87.97469289 | F105: 0.02443741469 | G105: -0.5033403631 | H105: 6.779307921
A106: 92 | B106: 1900 | D106: 92 | E106: =IF(A106>$F$6+$B$6,ArrFlow_j(INDIRECT("b"&ROW()-INT($F$6)),E105,$F$7),0) -> 70.62303168 | F106: 0.0196175088 | G106: -0.508160269 | H106: 6.271147652
A107: 93 | B107: 1900 | D107: 93 | E107: =IF(A107>$F$6+$B$6,ArrFlow_j(INDIRECT("b"&ROW()-INT($F$6)),E106,$F$7),0) -> 56.69371998 | F107: 0.01574825555 | G107: -0.5120295222 | H107: 5.75911813
A108: 94 | B108: 1900 | D108: 94 | E108: =IF(A108>$F$6+$B$6,ArrFlow_j(INDIRECT("b"&ROW()-INT($F$6)),E107,$F$7),0) -> 45.51175174 | F108: 0.01264215326 | G108: -0.5151356245 | H108: 5.243982506
A109: 95 | B109: 1900 | D109: 95 | E109: =IF(A109>$F$6+$B$6,ArrFlow_j(INDIRECT("b"&ROW()-INT($F$6)),E108,$F$7),0) -> 36.53525554 | F109: 0.01014868209 | G109: -0.5176290957 | H109: 4.72635341
A110: 96 | B110: 1900 | D110: 96 | E110: =IF(A110>$F$6+$B$6,ArrFlow_j(INDIRECT("b"&ROW()-INT($F$6)),E109,$F$7),0) -> 29.32923577 | F110: 0.008147009935 | G110: -0.5196307678 | H110: 4.206722642
A111: 97 | B111: 1900 | D111: 97 | E111: =IF(A111>$F$6+$B$6,ArrFlow_j(INDIRECT("b"&ROW()-INT($F$6)),E110,$F$7),0) -> 23.54449307 | F111: 0.006540136963 | G111: -0.5212376408 | H111: 3.685485001
A112: 98 | B112: 1900 | D112: 98 | E112: =IF(A112>$F$6+$B$6,ArrFlow_j(INDIRECT("b"&ROW()-INT($F$6)),E111,$F$7),0) -> 18.9007023 | F112: 0.005250195082 | G112: -0.5225275827 | H112: 3.162957419
A113: 99 | B113: 1900 | D113: 99 | E113: =IF(A113>$F$6+$B$6,ArrFlow_j(INDIRECT("b"&ROW()-INT($F$6)),E112,$F$7),0) -> 15.17282815 | F113: 0.004214674487 | G113: -0.5235631033 | H113: 2.639394315
A114: 100 | B114: 1900 | D114: 100 | E114: =IF(A114>$F$6+$B$6,ArrFlow_j(INDIRECT("b"&ROW()-INT($F$6)),E113,$F$7),0) -> 12.18022011 | F114: 0.003383394475 | G114: -0.5243943833 | H114: 2.114999932
A115: 101 | B115: 1900 | D115: 101 | E115: =IF(A115>$F$6+$B$6,ArrFlow_j(INDIRECT("b"&ROW()-INT($F$6)),E114,$F$7),0) -> 9.777858182 | F115: 0.002716071717 | G115: -0.5250617061 | H115: 1.589938226
A116: 102 | B116: 1900 | D116: 102 | E116: =IF(A116>$F$6+$B$6,ArrFlow_j(INDIRECT("b"&ROW()-INT($F$6)),E115,$F$7),0) -> 7.849325363 | F116: 0.002180368156 | G116: -0.5255974096 | H116: 1.064340816
A117: 103 | B117: 1900 | D117: 103 | E117: =IF(A117>$F$6+$B$6,ArrFlow_j(INDIRECT("b"&ROW()-INT($F$6)),E116,$F$7),0) -> 6.301166115 | F117: 0.001750323921 | G117: -0.5260274539 | H117: 0.5383133626
A118: 104 | B118: 600 | D118: 104 | E118: =IF(A118>$F$6+$B$6,ArrFlow_j(INDIRECT("b"&ROW()-INT($F$6)),E117,$F$7),0) -> 5.058357575 | F118: 0.001405099326 | G118: 0 | H118: 0
A119: 105 | B119: 600 | D119: 105 | E119: =IF(A119>$F$6+$B$6,ArrFlow_j(INDIRECT("b"&ROW()-INT($F$6)),E118,$F$7),0) -> 4.060673991 | F119: 0.001127964998 | G119: 0 | H119: 0
A120: 106 | B120: 600 | D120: 106 | E120: =IF(A120>$F$6+$B$6,ArrFlow_j(INDIRECT("b"&ROW()-INT($F$6)),E119,$F$7),0) -> 3.259768219 | F120: 0.0009054911719 | G120: 0 | H120: 0
A121: 107 | B121: 600 | D121: 107 | E121: =IF(A121>$F$6+$B$6,ArrFlow_j(INDIRECT("b"&ROW()-INT($F$6)),E120,$F$7),0) -> 2.616828847 | F121: 0.000726896902 | G121: 0 | H121: 0
A122: 108 | B122: 600 | D122: 108 | E122: =IF(A122>$F$6+$B$6,ArrFlow_j(INDIRECT("b"&ROW()-INT($F$6)),E121,$F$7),0) -> 2.100699423 | F122: 0.0005835276175 | G122: 0 | H122: 0
A123: 109 | B123: 600 | D123: 109 | E123: =IF(A123>$F$6+$B$6,ArrFlow_j(INDIRECT("b"&ROW()-INT($F$6)),E122,$F$7),0) -> 1.686368625 | F123: 0.0004684357293 | G123: 0 | H123: 0
A124: 110 | B124: 600 | D124: 110 | E124: =IF(A124>$F$6+$B$6,ArrFlow_j(INDIRECT("b"&ROW()-INT($F$6)),E123,$F$7),0) -> 1.353758234 | F124: 0.0003760439538 | G124: 0 | H124: 0
A125: 111 | B125: 600 | D125: 111 | E125: =IF(A125>$F$6+$B$6,ArrFlow_j(INDIRECT("b"&ROW()-INT($F$6)),E124,$F$7),0) -> 1.086750149 | F125: 0.0003018750415 | G125: 0 | H125: 0
A126: 112 | B126: 600 | D126: 112 | E126: =IF(A126>$F$6+$B$6,ArrFlow_j(INDIRECT("b"&ROW()-INT($F$6)),E125,$F$7),0) -> 0.8724053214 | F126: 0.0002423348115 | G126: 0 | H126: 0
A127: 113 | B127: 600 | D127: 113 | E127: =IF(A127>$F$6+$B$6,ArrFlow_j(INDIRECT("b"&ROW()-INT($F$6)),E126,$F$7),0) -> 375.4462461 | F127: 0.1042906239 | G127: 0 | H127: 0
A128: 114 | B128: 600 | D128: 114 | E128: =IF(A128>$F$6+$B$6,ArrFlow_j(INDIRECT("b"&ROW()-INT($F$6)),E127,$F$7),0) -> 676.1411319 | F128: 0.1878169811 | G128: 0 | H128: 0
A129: 115 | B129: 600 | D129: 115 | E129: =IF(A129>$F$6+$B$6,ArrFlow_j(INDIRECT("b"&ROW()-INT($F$6)),E128,$F$7),0) -> 917.5285553 | F129: 0.2548690431 | G129: 0 | H129: 0
A130: 116 | B130: 600 | D130: 116 | E130: =IF(A130>$F$6+$B$6,ArrFlow_j(INDIRECT("b"&ROW()-INT($F$6)),E129,$F$7),0) -> 1111.306005 | F130: 0.3086961126 | G130: 0 | H130: 0
A131: 117 | B131: 600 | D131: 117 | E131: =IF(A131>$F$6+$B$6,ArrFlow_j(INDIRECT("b"&ROW()-INT($F$6)),E130,$F$7),0) -> 1266.86382 | F131: 0.3519066167 | G131: 0 | H131: 0
A132: 118 | B132: 600 | D132: 118 | E132: =IF(A132>$F$6+$B$6,ArrFlow_j(INDIRECT("b"&ROW()-INT($F$6)),E131,$F$7),0) -> 1391.740238 | F132: 0.3865945105 | G132: 0 | H132: 0
A133: 119 | B133: 600 | D133: 119 | E133: =IF(A133>$F$6+$B$6,ArrFlow_j(INDIRECT("b"&ROW()-INT($F$6)),E132,$F$7),0) -> 1491.986694 | F133: 0.4144407483 | G133: 0 | H133: 0
A134: 120 | B134: 0 | D134: 120 | E134: =IF(A134>$F$6+$B$6,ArrFlow_j(INDIRECT("b"&ROW()-INT($F$6)),E133,$F$7),0) -> 1572.461072 | F134: 0.4367947421 | G134: 0 | H134: 0
A135: 121 | B135: 0 | D135: 121 | E135: =IF(A135>$F$6+$B$6,ArrFlow_j(INDIRECT("b"&ROW()-INT($F$6)),E134,$F$7),0) -> 1637.06311 | F135: 0.4547397529 | G135: 0 | H135: 0
A136: 122 | B136: 0 | D136: 122 | E136: =IF(A136>$F$6+$B$6,ArrFlow_j(INDIRECT("b"&ROW()-INT($F$6)),E135,$F$7),0) -> 1688.923386 | F136: 0.469145385 | G136: 0 | H136: 0
A137: 123 | B137: 0 | D137: 123 | E137: =IF(A137>$F$6+$B$6,ArrFlow_j(INDIRECT("b"&ROW()-INT($F$6)),E136,$F$7),0) -> 1730.555016 | F137: 0.4807097268 | G137: 0 | H137: 0
A138: 124 | B138: 0 | D138: 124 | E138: =IF(A138>$F$6+$B$6,ArrFlow_j(INDIRECT("b"&ROW()-INT($F$6)),E137,$F$7),0) -> 1763.975445 | F138: 0.4899931792 | G138: 0 | H138: 0
A139: 125 | B139: 0 | D139: 125 | E139: =IF(A139>$F$6+$B$6,ArrFlow_j(INDIRECT("b"&ROW()-INT($F$6)),E138,$F$7),0) -> 1790.804206 | F139: 0.4974456127 | G139: 0 | H139: 0
A140: 126 | B140: 0 | D140: 126 | E140: =IF(A140>$F$6+$B$6,ArrFlow_j(INDIRECT("b"&ROW()-INT($F$6)),E139,$F$7),0) -> 1812.341404 | F140: 0.5034281679 | G140: 0 | H140: 0
A141: 127 | B141: 0 | D141: 127 | E141: =IF(A141>$F$6+$B$6,ArrFlow_j(INDIRECT("b"&ROW()-INT($F$6)),E140,$F$7),0) -> 1573.225624 | F141: 0.4370071179 | G141: 0 | H141: 0
A142: 128 | B142: =DepFlowi($B$10,$B$5,$B$4,$B$8,$B$7,A142) -> 0 | D142: 128 | E142: =IF(A142>$F$6+$B$6,ArrFlow_j(INDIRECT("b"&ROW()-INT($F$6)),E141,$F$7),0) -> 1381.271771 | F142: 0.383686603 | G142: 0 | H142: 0
A143: 129 | B143: 0 | D143: 129 | E143: =IF(A143>$F$6+$B$6,ArrFlow_j(INDIRECT("b"&ROW()-INT($F$6)),E142,$F$7),0) -> 1227.177876 | F143: =E143/3600 -> 0.3408827433 | G143: 0 | H143: 0
A144: 130 | B144: 0 | D144: 130 | E144: =IF(A144>$F$6+$B$6,ArrFlow_j(INDIRECT("b"&ROW()-INT($F$6)),E143,$F$7),0) -> 1103.476643 | F144: 0.3065212896 | G144: =QueueStatus(D144,F144,$N$10,$N$11,$J$9,$N$13,H143) -> 0 | H144: =QueueLength(D144,$N$10,$N$11,H143,G144,$J$9) -> 0
A145: 131 | B145: 0 | D145: 131 | E145: =IF(A145>$F$6+$B$6,ArrFlow_j(INDIRECT("b"&ROW()-INT($F$6)),E144,$F$7),0) -> 1004.173583 | F145: 0.2789371065 | G145: 0 | H145: 0
A146: 132 | B146: 0 | D146: 132 | E146: =IF(A146>$F$6+$B$6,ArrFlow_j(INDIRECT("b"&ROW()-INT($F$6)),E145,$F$7),0) -> 924.4565324 | F146: 0.2567934812 | G146: 0 | H146: 0
A147: 133 | B147: 0 | D147: 133 | E147: =IF(A147>$F$6+$B$6,ArrFlow_j(INDIRECT("b"&ROW()-INT($F$6)),E146,$F$7),0) -> 860.4624491 | F147: 0.239017347 | G147: 0 | H147: 0
A148: 134 | B148: 0 | D148: 134 | E148: =IF(A148>$F$6+$B$6,ArrFlow_j(INDIRECT("b"&ROW()-INT($F$6)),E147,$F$7),0) -> 809.0902189 | F148: 0.224747283 | G148: 0 | H148: 0
A149: 135 | B149: 0 | D149: 135 | E149: =IF(A149>$F$6+$B$6,ArrFlow_j(INDIRECT("b"&ROW()-INT($F$6)),E148,$F$7),0) -> 767.8503746 | F149: 0.2132917707 | G149: 0 | H149: 0
A150: 136 | B150: 0 | D150: 136 | E150: =IF(A150>$F$6+$B$6,ArrFlow_j(INDIRECT("b"&ROW()-INT($F$6)),E149,$F$7),0) -> 734.7444581 | F150: 0.2040956828 | G150: 0 | H150: 0
A151: 137 | B151: 0 | D151: 137 | E151: =IF(A151>$F$6+$B$6,ArrFlow_j(INDIRECT("b"&ROW()-INT($F$6)),E150,$F$7),0) -> 708.1681768 | F151: 0.1967133824 | G151: 0 | H151: 0
A152: 138 | B152: 0 | D152: 138 | E152: =IF(A152>$F$6+$B$6,ArrFlow_j(INDIRECT("b"&ROW()-INT($F$6)),E151,$F$7),0) -> 686.8336601 | F152: 0.1907871278 | G152: 0 | H152: 0
A153: 139 | B153: 0 | D153: 139 | E153: =IF(A153>$F$6+$B$6,ArrFlow_j(INDIRECT("b"&ROW()-INT($F$6)),E152,$F$7),0) -> 669.7070501 | F153: 0.1860297361 | G153: 0 | H153: 0
A154: 140 | B154: 0 | D154: 140 | E154: =IF(A154>$F$6+$B$6,ArrFlow_j(INDIRECT("b"&ROW()-INT($F$6)),E153,$F$7),0) -> 655.9584018 | F154: 0.1822106672 | G154: 0 | H154: 0
A155: 141 | B155: 0 | D155: 141 | E155: =IF(A155>$F$6+$B$6,ArrFlow_j(INDIRECT("b"&ROW()-INT($F$6)),E154,$F$7),0) -> 644.9214638 | F155: 0.1791448511 | G155: 0 | H155: 0
A156: 142 | B156: 0 | D156: 142 | E156: =IF(A156>$F$6+$B$6,ArrFlow_j(INDIRECT("b"&ROW()-INT($F$6)),E155,$F$7),0) -> 636.0613928 | F156: 0.1766837202 | G156: 0 | H156: 0
A157: 143 | B157: 0 | D157: 143 | E157: =IF(A157>$F$6+$B$6,ArrFlow_j(INDIRECT("b"&ROW()-INT($F$6)),E156,$F$7),0) -> 510.6080217 | F157: 0.1418355616 | G157: 0 | H157: 0
A158: 144 | B158: 0 | D158: 144 | E158: =IF(A158>$F$6+$B$6,ArrFlow_j(INDIRECT("b"&ROW()-INT($F$6)),E157,$F$7),0) -> 409.8984073 | F158: 0.1138606687 | G158: 0 | H158: 0
A159: 145 | B159: 0 | D159: 145 | E159: =IF(A159>$F$6+$B$6,ArrFlow_j(INDIRECT("b"&ROW()-INT($F$6)),E158,$F$7),0) -> 329.0522223 | F159: 0.0914033951 | G159: 0 | H159: 0
A160: 146 | B160: 0 | D160: 146 | E160: =IF(A160>$F$6+$B$6,ArrFlow_j(INDIRECT("b"&ROW()-INT($F$6)),E159,$F$7),0) -> 264.1517096 | F160: 0.07337547488 | G160: 0 | H160: 0
A161: 147 | B161: 0 | D161: 147 | E161: =IF(A161>$F$6+$B$6,ArrFlow_j(INDIRECT("b"&ROW()-INT($F$6)),E160,$F$7),0) -> 212.0518292 | F161: 0.0589032859 | G161: 0 | H161: 0
A162: 148 | B162: 0 | D162: 148 | E162: =IF(A162>$F$6+$B$6,ArrFlow_j(INDIRECT("b"&ROW()-INT($F$6)),E161,$F$7),0) -> 170.2278526 | F162: 0.04728551461 | G162: 0 | H162: 0
A163: 149 | B163: 0 | D163: 149 | E163: =IF(A163>$F$6+$B$6,ArrFlow_j(INDIRECT("b"&ROW()-INT($F$6)),E162,$F$7),0) -> 136.653015 | F163: 0.03795917084 | G163: 0 | H163: 0
A164: 150 | B164: 1900 | D164: 150 | E164: =IF(A164>$F$6+$B$6,ArrFlow_j(INDIRECT("b"&ROW()-INT($F$6)),E163,$F$7),0) -> 109.7003001 | F164: 0.03047230558 | G164: 0 | H164: 0
A165: 151 | B165: 1900 | D165: 151 | E165: =IF(A165>$F$6+$B$6,ArrFlow_j(INDIRECT("b"&ROW()-INT($F$6)),E164,$F$7),0) -> 88.06359549 | F165: 0.02446210986 | G165: 0 | H165: 0
A166: 152 | B166: 1900 | D166: 152 | E166: =IF(A166>$F$6+$B$6,ArrFlow_j(INDIRECT("b"&ROW()-INT($F$6)),E165,$F$7),0) -> 70.69439961 | F166: 0.01963733322 | G166: 0 | H166: 0
A167: 153 | B167: 1900 | D167: 153 | E167: =IF(A167>$F$6+$B$6,ArrFlow_j(INDIRECT("b"&ROW()-INT($F$6)),E166,$F$7),0) -> 56.75101168 | F167: 0.01576416991 | G167: 0 | H167: 0
A168: 154 | B168: 1900 | D168: 154 | E168: =IF(A168>$F$6+$B$6,ArrFlow_j(INDIRECT("b"&ROW()-INT($F$6)),E167,$F$7),0) -> 45.55774353 | F168: 0.01265492876 | G168: 0 | H168: 0
A169: 155 | B169: 1900 | D169: 155 | E169: =IF(A169>$F$6+$B$6,ArrFlow_j(INDIRECT("b"&ROW()-INT($F$6)),E168,$F$7),0) -> 36.57217615 | F169: 0.01015893782 | G169: 0 | H169: 0
A170: 156 | B170: 1900 | D170: 156 | E170: =IF(A170>$F$6+$B$6,ArrFlow_j(INDIRECT("b"&ROW()-INT($F$6)),E169,$F$7),0) -> 29.35887435 | F170: 0.008155242875 | G170: 0 | H170: 0
A171: 157 | B171: 1900 | D171: 157 | E171: =IF(A171>$F$6+$B$6,ArrFlow_j(INDIRECT("b"&ROW()-INT($F$6)),E170,$F$7),0) -> 23.5682859 | F171: 0.006546746082 | G171: 0 | H171: 0
A172: 158 | B172: 1900 | D172: 158 | E172: =IF(A172>$F$6+$B$6,ArrFlow_j(INDIRECT("b"&ROW()-INT($F$6)),E171,$F$7),0) -> 18.91980235 | F172: 0.005255500654 | G172: 0 | H172: 0
A173: 159 | B173: 1900 | D173: 159 | E173: =IF(A173>$F$6+$B$6,ArrFlow_j(INDIRECT("b"&ROW()-INT($F$6)),E172,$F$7),0) -> 15.18816102 | F173: 0.004218933616 | G173: 0 | H173: 0
A174: 160 | B174: 1900 | D174: 160 | E174: =IF(A174>$F$6+$B$6,ArrFlow_j(INDIRECT("b"&ROW()-INT($F$6)),E173,$F$7),0) -> 12.1925288 | F174: 0.003386813555 | G174: 0 | H174: 0
A175: 161 | B175: 1900 | D175: 161 | E175: =IF(A175>$F$6+$B$6,ArrFlow_j(INDIRECT("b"&ROW()-INT($F$6)),E174,$F$7),0) -> 9.787739172 | F175: 0.002718816437 | G175: 0 | H175: 0
A176: 162 | B176: 1900 | D176: 162 | E176: =IF(A176>$F$6+$B$6,ArrFlow_j(INDIRECT("b"&ROW()-INT($F$6)),E175,$F$7),0) -> 7.857257479 | F176: 0.002182571522 | G176: 0 | H176: 0
A177: 163 | B177: 1900 | D177: 163 | E177: =IF(A177>$F$6+$B$6,ArrFlow_j(INDIRECT("b"&ROW()-INT($F$6)),E176,$F$7),0) -> 6.307533742 | F177: 0.001752092706 | G177: 0 | H177: 0
A178: 164 | B178: 600 | D178: 164 | E178: =IF(A178>$F$6+$B$6,ArrFlow_j(INDIRECT("b"&ROW()-INT($F$6)),E177,$F$7),0) -> 5.063469285 | F178: 0.001406519246 | G178: 0 | H178: 0
A179: 165 | B179: 600 | D179: 165 | E179: =IF(A179>$F$6+$B$6,ArrFlow_j(INDIRECT("b"&ROW()-INT($F$6)),E178,$F$7),0) -> 4.064777495 | F179: 0.00112910486 | G179: 0 | H179: 0
A180: 166 | B180: 600 | D180: 166 | E180: =IF(A180>$F$6+$B$6,ArrFlow_j(INDIRECT("b"&ROW()-INT($F$6)),E179,$F$7),0) -> 3.263062369 | F180: 0.0009064062137 | G180: 0 | H180: 0
A181: 167 | B181: 600 | D181: 167 | E181: =IF(A181>$F$6+$B$6,ArrFlow_j(INDIRECT("b"&ROW()-INT($F$6)),E180,$F$7),0) -> 2.619473277 | F181: 0.0007276314659 | G181: 0 | H181: 0
A182: 168 | B182: 600 | D182: 168 | E182: =IF(A182>$F$6+$B$6,ArrFlow_j(INDIRECT("b"&ROW()-INT($F$6)),E181,$F$7),0) -> 2.10282228 | F182: 0.0005841172999 | G182: 0 | H182: 0
A183: 169 | B183: 600 | D183: 169 | E183: =IF(A183>$F$6+$B$6,ArrFlow_j(INDIRECT("b"&ROW()-INT($F$6)),E182,$F$7),0) -> 1.688072781 | F183: 0.0004689091058 | G183: 0 | H183: 0
A184: 170 | B184: 600 | D184: 170 | E184: =IF(A184>$F$6+$B$6,ArrFlow_j(INDIRECT("b"&ROW()-INT($F$6)),E183,$F$7),0) -> 1.355126271 | F184: 0.0003764239641 | G184: 0 | H184: 0
A185: 171 | B185: 600 | D185: 171 | E185: =IF(A185>$F$6+$B$6,ArrFlow_j(INDIRECT("b"&ROW()-INT($F$6)),E184,$F$7),0) -> 1.087848362 | F185: 0.0003021801005 | G185: 0 | H185: 0
A186: 172 | B186: 600 | D186: 172 | E186: =IF(A186>$F$6+$B$6,ArrFlow_j(INDIRECT("b"&ROW()-INT($F$6)),E185,$F$7),0) -> 0.8732869284 | F186: 0.0002425797023 | G186: 0 | H186: 0
A187: 173 | B187: 600 | D187: 173 | E187: =IF(A187>$F$6+$B$6,ArrFlow_j(INDIRECT("b"&ROW()-INT($F$6)),E186,$F$7),0) -> 375.4469538 | F187: 0.1042908205 | G187: 0 | H187: 0
A188: 174 | B188: 600 | D188: 174 | E188: =IF(A188>$F$6+$B$6,ArrFlow_j(INDIRECT("b"&ROW()-INT($F$6)),E187,$F$7),0) -> 676.1417 | F188: 0.1878171389 | G188: 0 | H188: 0
A189: 175 | B189: 600 | D189: 175 | E189: =IF(A189>$F$6+$B$6,ArrFlow_j(INDIRECT("b"&ROW()-INT($F$6)),E188,$F$7),0) -> 917.5290114 | F189: 0.2548691698 | G189: 0 | H189: 0
A190: 176 | B190: 600 | D190: 176 | E190: =IF(A190>$F$6+$B$6,ArrFlow_j(INDIRECT("b"&ROW()-INT($F$6)),E189,$F$7),0) -> 1111.306371 | F190: 0.3086962143 | G190: 0 | H190: 0
A191: 177 | B191: 600 | D191: 177 | E191: =IF(A191>$F$6+$B$6,ArrFlow_j(INDIRECT("b"&ROW()-INT($F$6)),E190,$F$7),0) -> 1266.864114 | F191: 0.3519066984 | G191: 0 | H191: 0
A192: 178 | B192: 600 | D192: 178 | E192: =IF(A192>$F$6+$B$6,ArrFlow_j(INDIRECT("b"&ROW()-INT($F$6)),E191,$F$7),0) -> 1391.740474 | F192: 0.386594576 | G192: 0 | H192: 0
A193: 179 | B193: 600 | D193: 179 | E193: =IF(A193>$F$6+$B$6,ArrFlow_j(INDIRECT("b"&ROW()-INT($F$6)),E192,$F$7),0) -> 1491.986883 | F193: 0.4144408009 | G193: 0 | H193: 0
A194: 180 | B194: 0 | D194: 180 | E194: =IF(A194>$F$6+$B$6,ArrFlow_j(INDIRECT("b"&ROW()-INT($F$6)),E193,$F$7),0) -> 1572.461224 | F194: 0.4367947843 | G194: 0 | H194: 0
A195: 181 | B195: 0 | D195: 181 | E195: =IF(A195>$F$6+$B$6,ArrFlow_j(INDIRECT("b"&ROW()-INT($F$6)),E194,$F$7),0) -> 1637.063232 | F195: 0.4547397868 | G195: 0 | H195: 0
A196: 182 | B196: 0 | D196: 182 | E196: =IF(A196>$F$6+$B$6,ArrFlow_j(INDIRECT("b"&ROW()-INT($F$6)),E195,$F$7),0) -> 1688.923484 | F196: 0.4691454122 | G196: 0 | H196: 0
A197: 183 | B197: 0 | D197: 183 | E197: =IF(A197>$F$6+$B$6,ArrFlow_j(INDIRECT("b"&ROW()-INT($F$6)),E196,$F$7),0) -> 1730.555095 | F197: 0.4807097486 | G197: 0 | H197: 0
A198: 184 | B198: 0 | D198: 184 | E198: =IF(A198>$F$6+$B$6,ArrFlow_j(INDIRECT("b"&ROW()-INT($F$6)),E197,$F$7),0) -> 1763.975508 | F198: 0.4899931967 | G198: 0 | H198: 0
A199: 185 | B199: 0 | D199: 185 | E199: =IF(A199>$F$6+$B$6,ArrFlow_j(INDIRECT("b"&ROW()-INT($F$6)),E198,$F$7),0) -> 1790.804257 | F199: 0.4974456268 | G199: 0 | H199: 0
A200: 186 | B200: 0 | D200: 186 | E200: =IF(A200>$F$6+$B$6,ArrFlow_j(INDIRECT("b"&ROW()-INT($F$6)),E199,$F$7),0) -> 1812.341445 | F200: 0.5034281792 | G200: 0 | H200: 0
A201: 187 | B201: 0 | D201: 187 | E201: =IF(A201>$F$6+$B$6,ArrFlow_j(INDIRECT("b"&ROW()-INT($F$6)),E200,$F$7),0) -> 1573.225657 | F201: 0.4370071269 | G201: 0 | H201: 0
... 13 more rows

Sheet example 26 offset=30
A1: Predicting Arrival Flow at the Downstream Signalized Intersection
A3: Upstream Signal | E3: Platoon Dispersion Model | I3: Downstream Signal | M3: Downstream Signal Timing | Q3: Delay
A4: Cycle length, C | B4: 60 | C4: sec | E4: Speed | F4: 25 | G4: mi/hr | I4: Distance | J4: 1000 | K4: ft | M4: GreenStart1 | N4: =N8-J6 -> 0 | O4: 5 | Q4: Total | R4: =SUM(H14:H214) -> 50.14861306 | S4: sec
A5: Effective green, g | B5: 30 | C5: sec | E5: tR | F5: =(J4)/(1.47*F4) -> 27.21088435 | G5: sec | I5: Offset | J5: 30 | K5: sec | M5: GreenEnd1 | N5: =N9-J6 -> 30 | O5: 5 | Q5: Average | R5: =R4/(B8/B4) -> 3.761145979 | S5: sec/veh
A6: Effective red, r | B6: =B4-B5 -> 30 | C6: sec | E6: tprime | F6: =tprime(F5,F7) -> 23.39078231 | G6: sec | I6: Cycle length, C | J6: =B4 -> 60 | K6: sec | M6: RedStart1 | N6: =N10-J6 -> 30 | O6: 5
A7: Saturation flow rate, s | B7: 1900 | C7: veh/hr-g | E7: F | F7: =F(F5) -> 0.1972346892 | I7: Effective green, g | J7: =B5 -> 30 | K7: sec | M7: RedEnd1 | N7: =N11-J6 -> 60 | O7: 5
A8: ArrFlow | B8: 800 | C8: veh/hr | I8: Effective red, r | J8: =B6 -> 30 | K8: sec | M8: GreenStart2 | N8: =B5+J5 -> 60 | O8: 5 | Q8: Delay as function of offset
A9: Queue service time, gs | B9: =(B8*B6)/(B7-B8) -> 21.81818182 | C9: sec | I9: Queue service time, gs | J9: =B9 -> 21.81818182 | K9: =C9 -> sec | M9: GreenEnd2 | N9: =N8+J7 -> 90 | O9: 5 | Q9: Offset | R9: AverageD
M10: RedStart2 | N10: =N9 -> 90 | O10: 5 | Q10: 0 | R10: 21.16791662
M11: RedEnd2 | N11: =N10+J8 -> 120 | O11: 5 | Q11: 5 | R11: 14.91684881
A12: Flow Profile Departing | D12: Flow Profile Arriving | M12: GreenStart3 | N12: =N8+J6 -> 120 | O12: 5 | Q12: 10 | R12: 8.9
A13: Time i | B13: DepFlowi | D13: Time i | E13: ArrFlowj | F13: ArrFlowj | G13: QueueStatus | H13: Queue | M13: GreenEnd3 | N13: =N9+J6 -> 150 | O13: 5 | Q13: 15 | R13: 5.7
A14: 0 | B14: =DepFlowi($B$9,$B$5,$B$4,$B$8,$B$7,A14) -> 0 | D14: 0 | E14: =IF(A14>$F$6+$B$6,ArrFlow_j(INDIRECT("b"&ROW()-INT($F$6)),E13,$F$7),0) -> 0 | F14: =E14/3600 -> 0 | G14: =QueueStatus(D14,F14,$N$10,$N$11,$J$9,$N$13,H13) -> 0 | M14: RedStart3 | N14: =N10+J6 -> 150 | O14: 5 | Q14: 20 | R14: 3.3
A15: 1 | B15: 0 | D15: 1 | E15: =IF(A15>$F$6+$B$6,ArrFlow_j(INDIRECT("b"&ROW()-INT($F$6)),E14,$F$7),0) -> 0 | F15: =E15/3600 -> 0 | G15: =QueueStatus(D15,F15,$N$10,$N$11,$J$9,$N$13,H14) -> 0 | H15: =QueueLength(D15,$N$10,$N$11,H14,G15,$J$9) -> 0 | M15: RedEnd3 | N15: =N11+J6 -> 180 | O15: 5 | Q15: 25 | R15: 1.3
A16: 2 | B16: 0 | D16: 2 | E16: =IF(A16>$F$6+$B$6,ArrFlow_j(INDIRECT("b"&ROW()-INT($F$6)),E15,$F$7),0) -> 0 | F16: 0 | G16: =QueueStatus(D16,F16,$N$10,$N$11,$J$9,$N$13,H15) -> 0 | H16: =QueueLength(D16,$N$10,$N$11,H15,G16,$J$9) -> 0 | M16: GreenStart4 | N16: =N12+J6 -> 180 | O16: 5 | Q16: 30 | R16: 3.2
A17: 3 | B17: 0 | D17: 3 | E17: =IF(A17>$F$6+$B$6,ArrFlow_j(INDIRECT("b"&ROW()-INT($F$6)),E16,$F$7),0) -> 0 | F17: 0 | G17: 0 | H17: 0 | M17: GreenEnd4 | N17: =N13+J6 -> 210 | O17: 5 | Q17: 35 | R17: 6.9
A18: 4 | B18: 0 | D18: 4 | E18: =IF(A18>$F$6+$B$6,ArrFlow_j(INDIRECT("b"&ROW()-INT($F$6)),E17,$F$7),0) -> 0 | F18: 0 | G18: 0 | H18: 0 | Q18: 40 | R18: 11.3
A19: 5 | B19: 0 | D19: 5 | E19: =IF(A19>$F$6+$B$6,ArrFlow_j(INDIRECT("b"&ROW()-INT($F$6)),E18,$F$7),0) -> 0 | F19: 0 | G19: 0 | H19: 0 | Q19: 45 | R19: 16.1
A20: 6 | B20: 0 | D20: 6 | E20: =IF(A20>$F$6+$B$6,ArrFlow_j(INDIRECT("b"&ROW()-INT($F$6)),E19,$F$7),0) -> 0 | F20: 0 | G20: 0 | H20: 0 | Q20: 50 | R20: 21.1
A21: 7 | B21: 0 | D21: 7 | E21: =IF(A21>$F$6+$B$6,ArrFlow_j(INDIRECT("b"&ROW()-INT($F$6)),E20,$F$7),0) -> 0 | F21: 0 | G21: 0 | H21: 0 | Q21: 55 | R21: 24.8
A22: 8 | B22: 0 | D22: 8 | E22: =IF(A22>$F$6+$B$6,ArrFlow_j(INDIRECT("b"&ROW()-INT($F$6)),E21,$F$7),0) -> 0 | F22: 0 | G22: 0 | H22: 0 | Q22: 60 | R22: 21.6
A23: 9 | B23: 0 | D23: 9 | E23: =IF(A23>$F$6+$B$6,ArrFlow_j(INDIRECT("b"&ROW()-INT($F$6)),E22,$F$7),0) -> 0 | F23: 0 | G23: 0 | H23: 0
A24: 10 | B24: 0 | D24: 10 | E24: =IF(A24>$F$6+$B$6,ArrFlow_j(INDIRECT("b"&ROW()-INT($F$6)),E23,$F$7),0) -> 0 | F24: 0 | G24: 0 | H24: 0
A25: 11 | B25: 0 | D25: 11 | E25: =IF(A25>$F$6+$B$6,ArrFlow_j(INDIRECT("b"&ROW()-INT($F$6)),E24,$F$7),0) -> 0 | F25: 0 | G25: 0 | H25: 0 | Q25: Cycle length, C
A26: 12 | B26: 0 | D26: 12 | E26: =IF(A26>$F$6+$B$6,ArrFlow_j(INDIRECT("b"&ROW()-INT($F$6)),E25,$F$7),0) -> 0 | F26: 0 | G26: 0 | H26: 0 | Q26: Effective green, g | U26: QAP graph calculation data (offset = 0; start of red = 0) | AA26: QAP graph calculation data (offset = 30; start of red = 0)
A27: 13 | B27: 0 | D27: 13 | E27: =IF(A27>$F$6+$B$6,ArrFlow_j(INDIRECT("b"&ROW()-INT($F$6)),E26,$F$7),0) -> 0 | F27: 0 | G27: 0 | H27: 0 | Q27: Effective red, r | U27: Time i | V27: ArrFlowj | W27: ArrFlowj | X27: QueStatus | Y27: Queue | AA27: Time i | AB27: ArrFlowj | AC27: ArrFlowj | AD27: QueStatus | AE27: Queue
A28: 14 | B28: 0 | D28: 14 | E28: =IF(A28>$F$6+$B$6,ArrFlow_j(INDIRECT("b"&ROW()-INT($F$6)),E27,$F$7),0) -> 0 | F28: 0 | G28: 0 | H28: 0 | Q28: Saturation flow rate, s | U28: 0 | V28: 1413.283514 | W28: 0.3925787538 | X28: 0.3925787538 | Y28: 0.3925787538 | AA28: 0 | AB28: 170.1338071 | AC28: 0.04725939085 | AD28: 0.04725939085 | AE28: 0.04725939085
A29: 15 | B29: 0 | D29: 15 | E29: =IF(A29>$F$6+$B$6,ArrFlow_j(INDIRECT("b"&ROW()-INT($F$6)),E28,$F$7),0) -> 0 | F29: 0 | G29: 0 | H29: 0 | Q29: ArrFlow | U29: 1 | V29: 1489.55742 | W29: 0.4137659499 | X29: 0.4137659499 | Y29: 0.8063447036 | AA29: 1 | AB29: 136.5775185 | AC29: 0.03793819958 | AD29: 0.03793819958 | AE29: 0.08519759043
A30: 16 | B30: 0 | D30: 16 | E30: =IF(A30>$F$6+$B$6,ArrFlow_j(INDIRECT("b"&ROW()-INT($F$6)),E29,$F$7),0) -> 0 | F30: 0 | G30: 0 | H30: 0 | Q30: ArrFlow | U30: 2 | V30: 1550.787465 | W30: 0.4307742959 | X30: 0.4307742959 | Y30: 1.237119 | AA30: 2 | AB30: 109.6396941 | AC30: 0.03045547058 | AD30: 0.03045547058 | AE30: 0.115653061
A31: 17 | B31: 0 | D31: 17 | E31: =IF(A31>$F$6+$B$6,ArrFlow_j(INDIRECT("b"&ROW()-INT($F$6)),E30,$F$7),0) -> 0 | F31: 0 | G31: 0 | H31: 0 | Q31: Queue service time, gs | U31: 3 | V31: 1599.940822 | W31: 0.4444280062 | X31: 0.4444280062 | Y31: 1.681547006 | AA31: 3 | AB31: 88.01494311 | AC31: 0.02444859531 | AD31: 0.02444859531 | AE31: 0.1401016563
A32: 18 | B32: 0 | D32: 18 | E32: =IF(A32>$F$6+$B$6,ArrFlow_j(INDIRECT("b"&ROW()-INT($F$6)),E31,$F$7),0) -> 0 | F32: 0 | G32: 0 | H32: 0 | U32: 4 | V32: 1639.399432 | W32: 0.4553887311 | X32: 0.4553887311 | Y32: 2.136935737 | AA32: 4 | AB32: 70.65534317 | AC32: 0.01962648421 | AD32: 0.01962648421 | AE32: 0.1597281405
A33: 19 | B33: 0 | D33: 19 | E33: =IF(A33>$F$6+$B$6,ArrFlow_j(INDIRECT("b"&ROW()-INT($F$6)),E32,$F$7),0) -> 0 | F33: 0 | G33: 0 | H33: 0 | Q33: Cycle Range Line | U33: 5 | V33: 1671.075435 | W33: 0.4641876208 | X33: 0.4641876208 | Y33: 2.601123358 | AA33: 5 | AB33: 56.71965852 | AC33: 0.0157554607 | AD33: 0.0157554607 | AE33: 0.1754836012
A34: 20 | B34: 0 | D34: 20 | E34: =IF(A34>$F$6+$B$6,ArrFlow_j(INDIRECT("b"&ROW()-INT($F$6)),E33,$F$7),0) -> 0 | F34: 0 | G34: 0 | H34: 0 | Q34: RedStart2 | R34: =N10 -> 90 | S34: 0 | U34: 6 | V34: 1696.503832 | W34: 0.4712510643 | X34: 0.4712510643 | Y34: 3.072374422 | AA34: 6 | AB34: 45.5325743 | AC34: 0.01264793731 | AD34: 0.01264793731 | AE34: 0.1881315385
A35: 21 | B35: 0 | D35: 21 | E35: =IF(A35>$F$6+$B$6,ArrFlow_j(INDIRECT("b"&ROW()-INT($F$6)),E34,$F$7),0) -> 0 | F35: 0 | G35: 0 | H35: 0 | Q35: RedEnd2 | R35: =N11 -> 120 | S35: 0 | U35: 7 | V35: 1716.916866 | W35: 0.4769213517 | X35: 0.4769213517 | Y35: 3.549295774 | AA35: 7 | AB35: 36.55197116 | AC35: 0.01015332532 | AD35: 0.01015332532 | AE35: 0.1982848639
A36: 22 | B36: 0 | D36: 22 | E36: =IF(A36>$F$6+$B$6,ArrFlow_j(INDIRECT("b"&ROW()-INT($F$6)),E35,$F$7),0) -> 0 | F36: 0 | G36: 0 | H36: 0 | Q36: GreenEnd3 | R36: =N13 -> 150 | S36: 0 | U36: 8 | V36: 1733.303742 | W36: 0.4814732617 | X36: 0.4814732617 | Y36: 4.030769035 | AA36: 8 | AB36: 29.34265449 | AC36: 0.008150737359 | AD36: 0.008150737359 | AE36: 0.2064356012
A37: 23 | B37: 0 | D37: 23 | E37: =IF(A37>$F$6+$B$6,ArrFlow_j(INDIRECT("b"&ROW()-INT($F$6)),E36,$F$7),0) -> 0 | F37: 0 | G37: 0 | H37: 0 | U37: 9 | V37: 1746.458558 | W37: 0.4851273772 | X37: 0.4851273772 | Y37: 4.515896413 | AA37: 9 | AB37: 23.55526516 | AC37: 0.00654312921 | AD37: 0.00654312921 | AE37: 0.2129787304
A38: 24 | B38: 0 | D38: 24 | E38: =IF(A38>$F$6+$B$6,ArrFlow_j(INDIRECT("b"&ROW()-INT($F$6)),E37,$F$7),0) -> 0 | F38: 0 | G38: 0 | H38: 0 | U38: 10 | V38: 1757.018788 | W38: 0.4880607743 | X38: 0.4880607743 | Y38: 5.003957187 | AA38: 10 | AB38: 18.90934975 | AC38: 0.005252597154 | AD38: 0.005252597154 | AE38: 0.2182313276
A39: 25 | B39: 0 | D39: 25 | E39: =IF(A39>$F$6+$B$6,ArrFlow_j(INDIRECT("b"&ROW()-INT($F$6)),E38,$F$7),0) -> 0 | F39: 0 | G39: 0 | H39: 0 | U39: 11 | V39: 1765.496174 | W39: 0.4904156038 | X39: 0.4904156038 | Y39: 5.494372791 | AA39: 11 | AB39: 15.17977003 | AC39: 0.004216602787 | AD39: 0.004216602787 | AE39: 0.2224479304
A40: 26 | B40: 0 | D40: 26 | E40: =IF(A40>$F$6+$B$6,ArrFlow_j(INDIRECT("b"&ROW()-INT($F$6)),E39,$F$7),0) -> 0 | F40: 0 | G40: 0 | H40: 0 | U40: 12 | V40: 1772.301525 | W40: 0.4923059792 | X40: 0.4923059792 | Y40: 5.98667877 | AA40: 12 | AB40: 12.18579281 | AC40: 0.003384942447 | AD40: 0.003384942447 | AE40: 0.2258328728
A41: 27 | B41: 0 | D41: 27 | E41: =IF(A41>$F$6+$B$6,ArrFlow_j(INDIRECT("b"&ROW()-INT($F$6)),E40,$F$7),0) -> 0 | F41: 0 | G41: 0 | H41: 0 | U41: 13 | V41: 1777.764625 | W41: 0.493823507 | X41: 0.493823507 | Y41: 6.480502277 | AA41: 13 | AB41: 9.782331753 | AC41: 0.002717314376 | AD41: 0.002717314376 | AE41: 0.2285501872
A42: 28 | B42: 0 | D42: 28 | E42: =IF(A42>$F$6+$B$6,ArrFlow_j(INDIRECT("b"&ROW()-INT($F$6)),E41,$F$7),0) -> 0 | F42: 0 | G42: 0 | H42: 0 | U42: 14 | V42: 1782.150212 | W42: 0.4950417257 | X42: 0.4950417257 | Y42: 6.975544003 | AA42: 14 | AB42: 7.85291659 | AC42: 0.00218136572 | AD42: 0.00218136572 | AE42: 0.2307315529
A43: 29 | B43: 0 | D43: 29 | E43: =IF(A43>$F$6+$B$6,ArrFlow_j(INDIRECT("b"&ROW()-INT($F$6)),E42,$F$7),0) -> 0 | F43: 0 | G43: 0 | H43: 0 | U43: 15 | V43: 1785.67081 | W43: 0.4960196694 | X43: 0.4960196694 | Y43: 7.471563672 | AA43: 15 | AB43: 6.304049028 | AC43: 0.00175112473 | AD43: 0.00175112473 | AE43: 0.2324826776
A44: 30 | B44: 1900 | D44: 30 | E44: =IF(A44>$F$6+$B$6,ArrFlow_j(INDIRECT("b"&ROW()-INT($F$6)),E43,$F$7),0) -> 0 | F44: 0 | G44: 0 | H44: 0 | U44: 16 | V44: 1788.497023 | W44: 0.4968047286 | X44: 0.4968047286 | Y44: 7.968368401 | AA44: 16 | AB44: 5.060671877 | AC44: 0.001405742188 | AD44: 0.001405742188 | AE44: 0.2338884198
A45: 31 | B45: 1900 | D45: 31 | E45: =IF(A45>$F$6+$B$6,ArrFlow_j(INDIRECT("b"&ROW()-INT($F$6)),E44,$F$7),0) -> 0 | F45: 0 | G45: 0 | H45: 0 | U45: 17 | V45: 1593.53112 | W45: 0.4426475333 | X45: 0.4426475333 | Y45: 8.411015934 | AA45: 17 | AB45: 4.062531833 | AC45: 0.001128481065 | AD45: 0.001128481065 | AE45: 0.2350169009
A46: 32 | B46: 1900 | D46: 32 | E46: =IF(A46>$F$6+$B$6,ArrFlow_j(INDIRECT("b"&ROW()-INT($F$6)),E45,$F$7),0) -> 0 | F46: 0 | G46: 0 | H46: 0 | U46: 18 | V46: 1437.019256 | W46: 0.3991720156 | X46: 0.3991720156 | Y46: 8.81018795 | AA46: 18 | AB46: 3.261259629 | AC46: 0.0009059054526 | AD46: 0.0009059054526 | AE46: 0.2359228064
A47: 33 | B47: 1900 | D47: 33 | E47: =IF(A47>$F$6+$B$6,ArrFlow_j(INDIRECT("b"&ROW()-INT($F$6)),E46,$F$7),0) -> 0 | F47: 0 | G47: 0 | H47: 0 | U47: 19 | V47: 1311.376961 | W47: 0.3642713781 | X47: 0.3642713781 | Y47: 9.174459328 | AA47: 19 | AB47: 2.6180261 | AC47: 0.0007272294723 | AD47: 0.0007272294723 | AE47: 0.2366500358
A48: 34 | B48: 1900 | D48: 34 | E48: =IF(A48>$F$6+$B$6,ArrFlow_j(INDIRECT("b"&ROW()-INT($F$6)),E47,$F$7),0) -> 0 | F48: 0 | G48: 0 | H48: 0 | U48: 20 | V48: 1210.515685 | W48: 0.336254357 | X48: 0.336254357 | Y48: 9.510713685 | AA48: 20 | AB48: 2.101660536 | AC48: 0.0005837945934 | AD48: 0.0005837945934 | AE48: 0.2372338304
A49: 35 | B49: 1900 | D49: 35 | E49: =IF(A49>$F$6+$B$6,ArrFlow_j(INDIRECT("b"&ROW()-INT($F$6)),E48,$F$7),0) -> 0 | F49: 0 | G49: 0 | H49: 0 | U49: 21 | V49: 1129.547752 | W49: 0.3137632644 | X49: 0.3137632644 | Y49: 9.824476949 | AA49: 21 | AB49: 1.687140174 | AC49: 0.0004686500482 | AD49: 0.0004686500482 | AE49: 0.2377024805
A50: 36 | B50: 1900 | D50: 36 | E50: =IF(A50>$F$6+$B$6,ArrFlow_j(INDIRECT("b"&ROW()-INT($F$6)),E49,$F$7),0) -> 0 | F50: 0 | G50: 0 | H50: 0 | U50: 22 | V50: 1064.549503 | W50: 0.2957081954 | X50: 0.2957081954 | Y50: 10.12018514 | AA50: 22 | AB50: 1.354377606 | AC50: 0.0003762160016 | AD50: 0.0003762160016 | AE50: 0.2380786965
A51: 37 | B51: 1900 | D51: 37 | E51: =IF(A51>$F$6+$B$6,ArrFlow_j(INDIRECT("b"&ROW()-INT($F$6)),E50,$F$7),0) -> 0 | F51: 0 | G51: 0 | H51: 0 | U51: 23 | V51: 854.5834129 | W51: 0.2373842814 | X51: 0.2373842814 | Y51: 10.35756943 | AA51: 23 | AB51: 375.8331568 | AC51: 0.1043980991 | AD51: 0.1043980991 | AE51: 0.3424767956
A52: 38 | B52: 1900 | D52: 38 | E52: =IF(A52>$F$6+$B$6,ArrFlow_j(INDIRECT("b"&ROW()-INT($F$6)),E51,$F$7),0) -> 0 | F52: 0 | G52: 0 | H52: 0 | U52: 24 | V52: 686.0299191 | W52: 0.1905638664 | X52: 0.1905638664 | Y52: 10.54813329 | AA52: 24 | AB52: 676.4517303 | AC52: 0.1879032584 | AD52: 0.1879032584 | AE52: 0.530380054
A53: 39 | B53: 1900 | D53: 39 | E53: =IF(A53>$F$6+$B$6,ArrFlow_j(INDIRECT("b"&ROW()-INT($F$6)),E52,$F$7),0) -> 0 | F53: 0 | G53: 0 | H53: 0 | U53: 25 | V53: 550.7210213 | W53: 0.1529780615 | X53: 0.1529780615 | Y53: 10.70111135 | AA53: 25 | AB53: 917.7778929 | AC53: 0.2549383036 | AD53: 0.2549383036 | AE53: 0.7853183576
A54: 40 | B54: 1900 | D54: 40 | E54: =IF(A54>$F$6+$B$6,ArrFlow_j(INDIRECT("b"&ROW()-INT($F$6)),E53,$F$7),0) -> 0 | F54: 0 | G54: 0 | H54: 0 | U54: 26 | V54: 442.0997318 | W54: 0.1228054811 | X54: 0.1228054811 | Y54: 10.82391683 | AA54: 26 | AB54: 1111.506165 | AC54: 0.3087517125 | AD54: 0.3087517125 | AE54: 1.09407007
A55: 41 | B55: 1900 | D55: 41 | E55: =IF(A55>$F$6+$B$6,ArrFlow_j(INDIRECT("b"&ROW()-INT($F$6)),E54,$F$7),0) -> 0 | F55: 0 | G55: 0 | H55: 0 | U55: 27 | V55: 354.9023287 | W55: 0.09858398018 | X55: 0.09858398018 | Y55: 10.92250081 | AA55: 27 | AB55: 1267.024501 | AC55: 0.3519512504 | AD55: 0.3519512504 | AE55: 1.44602132
A56: 42 | B56: 1900 | D56: 42 | E56: =IF(A56>$F$6+$B$6,ArrFlow_j(INDIRECT("b"&ROW()-INT($F$6)),E55,$F$7),0) -> 0 | F56: 0 | G56: 0 | H56: 0 | U56: 28 | V56: 284.9032782 | W56: 0.0791397995 | X56: 0.0791397995 | Y56: 11.00164061 | AA56: 28 | AB56: 1391.869227 | AC56: 0.3866303409 | AD56: 0.3866303409 | AE56: 1.832651661
A57: 43 | B57: 1900 | D57: 43 | E57: =IF(A57>$F$6+$B$6,ArrFlow_j(INDIRECT("b"&ROW()-INT($F$6)),E56,$F$7),0) -> 0 | F57: 0 | G57: 0 | H57: 0 | U57: 29 | V57: 228.7104687 | W57: 0.06353068574 | X57: 0.06353068574 | Y57: 11.0651713 | AA57: 29 | AB57: 1492.090242 | AC57: 0.4144695117 | AD57: 0.4144695117 | AE57: 2.247121173
A58: 44 | B58: 1900 | D58: 44 | E58: =IF(A58>$F$6+$B$6,ArrFlow_j(INDIRECT("b"&ROW()-INT($F$6)),E57,$F$7),0) -> 0 | F58: 0 | G58: 0 | H58: 0 | U58: 30 | V58: 183.6008305 | W58: 0.05100023069 | X58: -0.4767775471 | Y58: 10.58839375 | AA58: 30 | AB58: 1572.544196 | AC58: 0.4368178323 | AD58: -0.09095994544 | AE58: 2.156161228
A59: 45 | B59: 1900 | D59: 45 | E59: =IF(A59>$F$6+$B$6,ArrFlow_j(INDIRECT("b"&ROW()-INT($F$6)),E58,$F$7),0) -> 0 | F59: 0 | G59: 0 | H59: 0 | U59: 31 | V59: 147.3883777 | W59: 0.04094121604 | X59: -0.4868365617 | Y59: 10.10155719 | AA59: 31 | AB59: 1637.12984 | AC59: 0.4547582889 | AD59: -0.07301948887 | AE59: 2.083141739
A60: 46 | B60: 1900 | D60: 46 | E60: =IF(A60>$F$6+$B$6,ArrFlow_j(INDIRECT("b"&ROW()-INT($F$6)),E59,$F$7),0) -> 0 | F60: 0 | G60: 0 | H60: 0 | U60: 32 | V60: 118.3182769 | W60: 0.03286618802 | X60: -0.4949115898 | Y60: 9.606645602 | AA60: 32 | AB60: 1688.976954 | AC60: 0.4691602651 | AD60: -0.05861751268 | AE60: 2.024524226
A61: 47 | B61: 1900 | D61: 47 | E61: =IF(A61>$F$6+$B$6,ArrFlow_j(INDIRECT("b"&ROW()-INT($F$6)),E60,$F$7),0) -> 0 | F61: 0 | G61: 0 | H61: 0 | U61: 33 | V61: 94.98180832 | W61: 0.02638383564 | X61: -0.5013939421 | Y61: 9.10525166 | AA61: 33 | AB61: 1730.598019 | AC61: 0.480721672 | AD61: -0.04705610579 | AE61: 1.97746812
A62: 48 | B62: 1900 | D62: 48 | E62: =IF(A62>$F$6+$B$6,ArrFlow_j(INDIRECT("b"&ROW()-INT($F$6)),E61,$F$7),0) -> 0 | F62: 0 | G62: 0 | H62: 0 | U62: 34 | V62: 76.24810088 | W62: 0.02118002802 | X62: -0.5065977498 | Y62: 8.59865391 | AA62: 34 | AB62: 1764.009966 | AC62: 0.4900027684 | AD62: -0.03777500939 | AE62: 1.939693111
A63: 49 | B63: 1900 | D63: 49 | E63: =IF(A63>$F$6+$B$6,ArrFlow_j(INDIRECT("b"&ROW()-INT($F$6)),E62,$F$7),0) -> 0 | F63: 0 | G63: 0 | H63: 0 | U63: 35 | V63: 61.2093304 | W63: 0.01700259178 | X63: -0.510775186 | Y63: 8.087878724 | AA63: 35 | AB63: 1790.831918 | AC63: 0.4974533106 | AD63: -0.03032446716 | AE63: 1.909368644
A64: 50 | B64: 1900 | D64: 50 | E64: =IF(A64>$F$6+$B$6,ArrFlow_j(INDIRECT("b"&ROW()-INT($F$6)),E63,$F$7),0) -> 0 | F64: 0 | G64: 0 | H64: 0 | U64: 36 | V64: 49.13672715 | W64: 0.01364909087 | X64: -0.5141286869 | Y64: 7.573750037 | AA64: 36 | AB64: 1812.363651 | AC64: 0.5034343475 | AD64: -0.0243434303 | AE64: 1.885025213
A65: 51 | B65: 1900 | D65: 51 | E65: =IF(A65>$F$6+$B$6,ArrFlow_j(INDIRECT("b"&ROW()-INT($F$6)),E64,$F$7),0) -> 0 | F65: 0 | G65: 0 | H65: 0 | U65: 37 | V65: 39.44526004 | W65: 0.01095701668 | X65: -0.5168207611 | Y65: 7.056929276 | AA65: 37 | AB65: 1829.648579 | AC65: 0.5082357164 | AD65: -0.01954206139 | AE65: 1.865483152
A66: 52 | B66: 800 | D66: 52 | E66: =IF(A66>$F$6+$B$6,ArrFlow_j(INDIRECT("b"&ROW()-INT($F$6)),E65,$F$7),0) -> 0 | F66: 0 | G66: 0 | H66: 0 | U66: 38 | V66: 31.66528644 | W66: 0.0087959129 | X66: -0.5189818649 | Y66: 6.537947411 | AA66: 38 | AB66: 1843.52432 | AC66: 0.5120900888 | AD66: -0.01568768899 | AE66: 1.849795463
A67: 53 | B67: 800 | D67: 53 | E67: =IF(A67>$F$6+$B$6,ArrFlow_j(INDIRECT("b"&ROW()-INT($F$6)),E66,$F$7),0) -> 0 | F67: 0 | G67: 0 | H67: 0 | U67: 39 | V67: 25.41979351 | W67: 0.007061053753 | X67: -0.520716724 | Y67: 6.017230687 | AA67: 39 | AB67: 1854.663283 | AC67: 0.5151842452 | AD67: -0.01259353253 | AE67: 1.83720193
A68: 54 | B68: 800 | D68: 54 | E68: =IF(A68>$F$6+$B$6,ArrFlow_j(INDIRECT("b"&ROW()-INT($F$6)),E67,$F$7),0) -> 374.7459094 | F68: 0.1040960859 | G68: 0 | H68: 0 | U68: 40 | V68: 20.40612844 | W68: 0.005668369011 | X68: -0.5221094088 | Y68: 5.495121278 | AA68: 40 | AB68: 1863.605256 | AC68: 0.5176681267 | AD68: -0.01010965105 | AE68: 1.827092279
A69: 55 | B69: 800 | D69: 55 | E69: =IF(A69>$F$6+$B$6,ArrFlow_j(INDIRECT("b"&ROW()-INT($F$6)),E68,$F$7),0) -> 675.5789258 | F69: 0.1876608127 | G69: 0 | H69: 0 | U69: 41 | V69: 16.38133204 | W69: 0.004550370011 | X69: -0.5232274078 | Y69: 4.97189387 | AA69: 41 | AB69: 1870.783562 | AC69: 0.5196621006 | AD69: -0.008115677172 | AE69: 1.818976602
A70: 56 | B70: 800 | D70: 56 | E70: =IF(A70>$F$6+$B$6,ArrFlow_j(INDIRECT("b"&ROW()-INT($F$6)),E69,$F$7),0) -> 917.0772358 | F70: 0.2547436766 | G70: 0 | H70: 0 | U70: 42 | V70: 13.15036511 | W70: 0.003652879197 | X70: -0.5241248986 | Y70: 4.447768972 | AA70: 42 | AB70: 1876.546057 | AC70: 0.5212627937 | AD70: -0.006514984107 | AE70: 1.812461618
A71: 57 | B71: 800 | D71: 57 | E71: =IF(A71>$F$6+$B$6,ArrFlow_j(INDIRECT("b"&ROW()-INT($F$6)),E70,$F$7),0) -> 1110.943702 | F71: 0.3085954727 | G71: 0 | H71: 0 | U71: 43 | V71: 10.55665693 | W71: 0.002932404704 | X71: -0.5248453731 | Y71: 3.922923599 | AA71: 43 | AB71: 1881.171988 | AC71: 0.5225477745 | AD71: -0.005230003242 | AE71: 1.807231615
A72: 58 | B72: 800 | D72: 58 | E72: =IF(A72>$F$6+$B$6,ArrFlow_j(INDIRECT("b"&ROW()-INT($F$6)),E71,$F$7),0) -> 1266.572975 | F72: 0.3518258265 | G72: 0 | H72: 0 | U72: 44 | V72: 8.474517985 | W72: 0.002354032773 | X72: -0.525423745 | Y72: 3.397499854 | AA72: 44 | AB72: 1884.885525 | AC72: 0.5235793126 | AD72: -0.004198465178 | AE72: 1.80303315
A73: 59 | B73: 800 | D73: 59 | E73: =IF(A73>$F$6+$B$6,ArrFlow_j(INDIRECT("b"&ROW()-INT($F$6)),E72,$F$7),0) -> 1391.506758 | F73: 0.3865296549 | G73: 0 | H73: 0 | U73: 45 | V73: 6.803049064 | W73: 0.001889735851 | X73: -0.5258880419 | Y73: 2.871611812 | AA73: 45 | AB73: 1670.908466 | AC73: 0.4641412406 | AD73: -0.06363653722 | AE73: 1.739396612
A74: 60 | B74: 0 | D74: 60 | E74: =IF(A74>$F$6+$B$6,ArrFlow_j(INDIRECT("b"&ROW()-INT($F$6)),E73,$F$7),0) -> 1491.799264 | F74: 0.4143886845 | G74: 0 | H74: 0 | U74: 46 | V74: 5.461251797 | W74: 0.001517014388 | X74: -0.5262607634 | Y74: 2.345351048 | AA74: 46 | AB74: 1499.135105 | AC74: 0.4164264182 | AD74: -0.1113513596 | AE74: 1.628045253
A75: 61 | B75: 0 | D75: 61 | E75: =IF(A75>$F$6+$B$6,ArrFlow_j(INDIRECT("b"&ROW()-INT($F$6)),E74,$F$7),0) -> 1572.310609 | F75: 0.4367529471 | G75: 0 | H75: 0 | U75: 47 | V75: 4.384103496 | W75: 0.001217806527 | X75: -0.5265599713 | Y75: 1.818791077 | AA75: 47 | AB75: 1361.24141 | AC75: 0.378122614 | AD75: -0.1496551638 | AE75: 1.478390089
A76: 62 | B76: 0 | D76: 62 | E76: =IF(A76>$F$6+$B$6,ArrFlow_j(INDIRECT("b"&ROW()-INT($F$6)),E75,$F$7),0) -> 1636.942325 | F76: 0.4547062013 | G76: 0 | H76: 0 | U76: 48 | V76: 3.519406206 | W76: 0.000977612835 | X76: -0.5268001649 | Y76: 1.291990912 | AA76: 48 | AB76: 1250.545135 | AC76: 0.3473736487 | AD76: -0.1804041291 | AE76: 1.29798596
A77: 63 | B77: 0 | D77: 63 | E77: =IF(A77>$F$6+$B$6,ArrFlow_j(INDIRECT("b"&ROW()-INT($F$6)),E76,$F$7),0) -> 1688.826423 | F77: 0.4691184509 | G77: 0 | H77: 0 | U77: 49 | V77: 2.825257217 | W77: 0.0007847936713 | X77: -0.5269929841 | Y77: 0.764997928 | AA77: 49 | AB77: 1161.682005 | AC77: 0.322689446 | AD77: -0.2050883318 | AE77: 1.092897628
A78: 64 | B78: =DepFlowi($B$9,$B$5,$B$4,$B$8,$B$7,A78) -> 0 | D78: 64 | E78: =IF(A78>$F$6+$B$6,ArrFlow_j(INDIRECT("b"&ROW()-INT($F$6)),E77,$F$7),0) -> 1730.477178 | F78: 0.480688105 | G78: 0 | H78: 0 | U78: 50 | V78: 2.268018488 | W78: 0.0006300051355 | X78: -0.5271477726 | Y78: 0.2378501554 | AA78: 50 | AB78: 1090.345768 | AC78: 0.3028738243 | AD78: -0.2249039535 | AE78: 0.8679936746
A79: 65 | B79: 0 | D79: 65 | E79: =IF(A79>$F$6+$B$6,ArrFlow_j(INDIRECT("b"&ROW()-INT($F$6)),E78,$F$7),0) -> 1763.912959 | F79: =E79/3600 -> 0.489975822 | G79: 0 | H79: 0 | U79: 51 | V79: 1.820686566 | W79: 0.0005057462685 | X79: -0.5272720315 | Y79: 0 | AA79: 51 | AB79: 1033.07951 | AC79: 0.2869665306 | AD79: -0.2408112471 | AE79: 0.6271824275
A80: 66 | B80: 0 | D80: 66 | E80: =IF(A80>$F$6+$B$6,ArrFlow_j(INDIRECT("b"&ROW()-INT($F$6)),E79,$F$7),0) -> 1790.754044 | F80: 0.497431679 | G80: =QueueStatus(D80,F80,$N$10,$N$11,$J$9,$N$13,H79) -> 0 | H80: =QueueLength(D80,$N$10,$N$11,H79,G80,$J$9) -> 0 | U80: 52 | V80: 1.461584017 | W80: 0.0004059955604 | X80: 0 | Y80: 0 | AA80: 52 | AB80: 987.1081456 | AC80: 0.2741967071 | AD80: 0 | AE80: 0
A81: 67 | B81: 0 | D81: 67 | E81: =IF(A81>$F$6+$B$6,ArrFlow_j(INDIRECT("b"&ROW()-INT($F$6)),E80,$F$7),0) -> 1812.301136 | F81: 0.5034169824 | G81: 0 | H81: 0 | U81: 53 | V81: 356.1957494 | W81: 0.09894326373 | X81: 0 | Y81: 0 | AA81: 53 | AB81: 792.4161773 | AC81: 0.2201156048 | AD81: 0 | AE81: 0
A82: 68 | B82: 0 | D82: 68 | E82: =IF(A82>$F$6+$B$6,ArrFlow_j(INDIRECT("b"&ROW()-INT($F$6)),E81,$F$7),0) -> 1829.598395 | F82: 0.5082217763 | G82: 0 | H82: 0 | U82: 54 | V82: 640.964032 | W82: 0.1780455644 | X82: 0 | Y82: 0 | AA82: 54 | AB82: 636.1242189 | AC82: 0.1767011719 | AD82: 0 | AE82: 0
A83: 69 | B83: 0 | D83: 69 | E83: =IF(A83>$F$6+$B$6,ArrFlow_j(INDIRECT("b"&ROW()-INT($F$6)),E82,$F$7),0) -> 1843.484033 | F83: 0.5120788982 | G83: 0 | H83: 0 | U83: 55 | V83: 869.5661309 | W83: 0.2415461475 | X83: 0 | Y83: 0 | AA83: 55 | AB83: 510.6584563 | AC83: 0.1418495712 | AD83: 0 | AE83: 0
A84: 70 | B84: 0 | D84: 70 | E84: =IF(A84>$F$6+$B$6,ArrFlow_j(INDIRECT("b"&ROW()-INT($F$6)),E83,$F$7),0) -> 1854.630942 | F84: 0.5151752618 | G84: 0 | H84: 0 | U84: 56 | V84: 1053.079966 | W84: 0.2925222127 | X84: 0 | Y84: 0 | AA84: 56 | AB84: 409.9388944 | AC84: 0.1138719151 | AD84: 0 | AE84: 0
A85: 71 | B85: 0 | D85: 71 | E85: =IF(A85>$F$6+$B$6,ArrFlow_j(INDIRECT("b"&ROW()-INT($F$6)),E84,$F$7),0) -> 1863.579294 | F85: 0.5176609151 | G85: 0 | H85: 0 | U85: 57 | V85: 1200.398507 | W85: 0.3334440296 | X85: 0 | Y85: 0 | AA85: 57 | AB85: 329.084724 | AC85: 0.09141242334 | AD85: 0 | AE85: 0
A86: 72 | B86: 0 | D86: 72 | E86: =IF(A86>$F$6+$B$6,ArrFlow_j(INDIRECT("b"&ROW()-INT($F$6)),E85,$F$7),0) -> 1870.762721 | F86: 0.5196563114 | G86: 0 | H86: 0 | U86: 58 | V86: 1318.660721 | W86: 0.3662946447 | X86: 0 | Y86: 0 | AA86: 58 | AB86: 264.1778008 | AC86: 0.07338272243 | AD86: 0 | AE86: 0
A87: 73 | B87: 0 | D87: 73 | E87: =IF(A87>$F$6+$B$6,ArrFlow_j(INDIRECT("b"&ROW()-INT($F$6)),E86,$F$7),0) -> 1876.529327 | F87: 0.5212581463 | G87: 0 | H87: 0 | U87: 59 | V87: 1413.597524 | W87: 0.3926659789 | X87: 0 | Y87: 0 | AA87: 59 | AB87: 212.0727744 | AC87: 0.05890910399 | AD87: 0 | AE87: 0
A88: 74 | B88: 0 | D88: 74 | E88: =IF(A88>$F$6+$B$6,ArrFlow_j(INDIRECT("b"&ROW()-INT($F$6)),E87,$F$7),0) -> 1881.158558 | F88: 0.5225440438 | G88: 0 | H88: 0 | U88: 60 | V88: 1489.809496 | W88: 0.4138359711 | X88: 0 | Y88: 0 | AA88: 60 | AB88: 170.2446666 | AC88: 0.04729018517 | AD88: 0 | AE88: 0
A89: 75 | B89: 0 | D89: 75 | E89: =IF(A89>$F$6+$B$6,ArrFlow_j(INDIRECT("b"&ROW()-INT($F$6)),E88,$F$7),0) -> 1667.916586 | F89: 0.4633101627 | G89: 0 | H89: 0
A90: 76 | B90: 0 | D90: 76 | E90: =IF(A90>$F$6+$B$6,ArrFlow_j(INDIRECT("b"&ROW()-INT($F$6)),E89,$F$7),0) -> 1496.733328 | F90: 0.4157592577 | G90: 0 | H90: 0 | U90: Sum | W90: =SUM(W28:W88) -> 13.63939304 | Y90: =SUM(Y28:Y88) -> 315.5160927 | AC90: =SUM(AC28:AC88) -> 13.43602294 | AE90: =SUM(AE28:AE88) -> 50.14861306
A91: 77 | B91: 0 | D91: 77 | E91: =IF(A91>$F$6+$B$6,ArrFlow_j(INDIRECT("b"&ROW()-INT($F$6)),E90,$F$7),0) -> 1359.313346 | F91: 0.3775870406 | G91: 0 | H91: 0 | U91: Avg delay | Y91: =Y90/W90 -> 23.13270772 | AE91: =AE90/AC90 -> 3.732400076
A92: 78 | B92: 0 | D92: 78 | E92: =IF(A92>$F$6+$B$6,ArrFlow_j(INDIRECT("b"&ROW()-INT($F$6)),E91,$F$7),0) -> 1248.997352 | F92: 0.346943709 | G92: 0 | H92: 0
A93: 79 | B93: 0 | D93: 79 | E93: =IF(A93>$F$6+$B$6,ArrFlow_j(INDIRECT("b"&ROW()-INT($F$6)),E92,$F$7),0) -> 1160.439499 | F93: 0.3223443053 | G93: 0 | H93: 0
A94: 80 | B94: 0 | D94: 80 | E94: =IF(A94>$F$6+$B$6,ArrFlow_j(INDIRECT("b"&ROW()-INT($F$6)),E93,$F$7),0) -> 1089.348327 | F94: 0.3025967574 | G94: 0 | H94: 0
A95: 81 | B95: 0 | D95: 81 | E95: =IF(A95>$F$6+$B$6,ArrFlow_j(INDIRECT("b"&ROW()-INT($F$6)),E94,$F$7),0) -> 1032.278799 | F95: 0.2867441109 | G95: 0 | H95: 0
A96: 82 | B96: 0 | D96: 82 | E96: =IF(A96>$F$6+$B$6,ArrFlow_j(INDIRECT("b"&ROW()-INT($F$6)),E95,$F$7),0) -> 986.4653625 | F96: 0.2740181563 | G96: 0 | H96: 0
A97: 83 | B97: 0 | D97: 83 | E97: =IF(A97>$F$6+$B$6,ArrFlow_j(INDIRECT("b"&ROW()-INT($F$6)),E96,$F$7),0) -> 791.9001734 | F97: 0.2199722704 | G97: 0 | H97: 0
A98: 84 | B98: 0 | D98: 84 | E98: =IF(A98>$F$6+$B$6,ArrFlow_j(INDIRECT("b"&ROW()-INT($F$6)),E97,$F$7),0) -> 635.7099888 | F98: 0.176586108 | G98: 0 | H98: 0
A99: 85 | B99: 0 | D99: 85 | E99: =IF(A99>$F$6+$B$6,ArrFlow_j(INDIRECT("b"&ROW()-INT($F$6)),E98,$F$7),0) -> 510.3259268 | F99: 0.1417572019 | G99: 0 | H99: 0
A100: 86 | B100: 0 | D100: 86 | E100: =IF(A100>$F$6+$B$6,ArrFlow_j(INDIRECT("b"&ROW()-INT($F$6)),E99,$F$7),0) -> 409.6719513 | F100: 0.1137977642 | G100: 0 | H100: 0
A101: 87 | B101: 0 | D101: 87 | E101: =IF(A101>$F$6+$B$6,ArrFlow_j(INDIRECT("b"&ROW()-INT($F$6)),E100,$F$7),0) -> 328.8704313 | F101: 0.09135289758 | G101: 0 | H101: 0
A102: 88 | B102: 0 | D102: 88 | E102: =IF(A102>$F$6+$B$6,ArrFlow_j(INDIRECT("b"&ROW()-INT($F$6)),E101,$F$7),0) -> 264.005774 | F102: 0.07333493722 | G102: 0 | H102: 0
A103: 89 | B103: 0 | D103: 89 | E103: =IF(A103>$F$6+$B$6,ArrFlow_j(INDIRECT("b"&ROW()-INT($F$6)),E102,$F$7),0) -> 211.9346772 | F103: 0.05887074368 | G103: 0 | H103: 0
A104: 90 | B104: 1900 | D104: 90 | E104: =IF(A104>$F$6+$B$6,ArrFlow_j(INDIRECT("b"&ROW()-INT($F$6)),E103,$F$7),0) -> 170.1338071 | F104: 0.04725939085 | G104: 0.04725939085 | H104: 0.04725939085
A105: 91 | B105: 1900 | D105: 91 | E105: =IF(A105>$F$6+$B$6,ArrFlow_j(INDIRECT("b"&ROW()-INT($F$6)),E104,$F$7),0) -> 136.5775185 | F105: 0.03793819958 | G105: 0.03793819958 | H105: 0.08519759043
A106: 92 | B106: 1900 | D106: 92 | E106: =IF(A106>$F$6+$B$6,ArrFlow_j(INDIRECT("b"&ROW()-INT($F$6)),E105,$F$7),0) -> 109.6396941 | F106: 0.03045547058 | G106: 0.03045547058 | H106: 0.115653061
A107: 93 | B107: 1900 | D107: 93 | E107: =IF(A107>$F$6+$B$6,ArrFlow_j(INDIRECT("b"&ROW()-INT($F$6)),E106,$F$7),0) -> 88.01494311 | F107: 0.02444859531 | G107: 0.02444859531 | H107: 0.1401016563
A108: 94 | B108: 1900 | D108: 94 | E108: =IF(A108>$F$6+$B$6,ArrFlow_j(INDIRECT("b"&ROW()-INT($F$6)),E107,$F$7),0) -> 70.65534317 | F108: 0.01962648421 | G108: 0.01962648421 | H108: 0.1597281405
A109: 95 | B109: 1900 | D109: 95 | E109: =IF(A109>$F$6+$B$6,ArrFlow_j(INDIRECT("b"&ROW()-INT($F$6)),E108,$F$7),0) -> 56.71965852 | F109: 0.0157554607 | G109: 0.0157554607 | H109: 0.1754836012
A110: 96 | B110: 1900 | D110: 96 | E110: =IF(A110>$F$6+$B$6,ArrFlow_j(INDIRECT("b"&ROW()-INT($F$6)),E109,$F$7),0) -> 45.5325743 | F110: 0.01264793731 | G110: 0.01264793731 | H110: 0.1881315385
A111: 97 | B111: 1900 | D111: 97 | E111: =IF(A111>$F$6+$B$6,ArrFlow_j(INDIRECT("b"&ROW()-INT($F$6)),E110,$F$7),0) -> 36.55197116 | F111: 0.01015332532 | G111: 0.01015332532 | H111: 0.1982848639
A112: 98 | B112: 1900 | D112: 98 | E112: =IF(A112>$F$6+$B$6,ArrFlow_j(INDIRECT("b"&ROW()-INT($F$6)),E111,$F$7),0) -> 29.34265449 | F112: 0.008150737359 | G112: 0.008150737359 | H112: 0.2064356012
A113: 99 | B113: 1900 | D113: 99 | E113: =IF(A113>$F$6+$B$6,ArrFlow_j(INDIRECT("b"&ROW()-INT($F$6)),E112,$F$7),0) -> 23.55526516 | F113: 0.00654312921 | G113: 0.00654312921 | H113: 0.2129787304
A114: 100 | B114: 1900 | D114: 100 | E114: =IF(A114>$F$6+$B$6,ArrFlow_j(INDIRECT("b"&ROW()-INT($F$6)),E113,$F$7),0) -> 18.90934975 | F114: 0.005252597154 | G114: 0.005252597154 | H114: 0.2182313276
A115: 101 | B115: 1900 | D115: 101 | E115: =IF(A115>$F$6+$B$6,ArrFlow_j(INDIRECT("b"&ROW()-INT($F$6)),E114,$F$7),0) -> 15.17977003 | F115: 0.004216602787 | G115: 0.004216602787 | H115: 0.2224479304
A116: 102 | B116: 1900 | D116: 102 | E116: =IF(A116>$F$6+$B$6,ArrFlow_j(INDIRECT("b"&ROW()-INT($F$6)),E115,$F$7),0) -> 12.18579281 | F116: 0.003384942447 | G116: 0.003384942447 | H116: 0.2258328728
A117: 103 | B117: 1900 | D117: 103 | E117: =IF(A117>$F$6+$B$6,ArrFlow_j(INDIRECT("b"&ROW()-INT($F$6)),E116,$F$7),0) -> 9.782331753 | F117: 0.002717314376 | G117: 0.002717314376 | H117: 0.2285501872
A118: 104 | B118: 1900 | D118: 104 | E118: =IF(A118>$F$6+$B$6,ArrFlow_j(INDIRECT("b"&ROW()-INT($F$6)),E117,$F$7),0) -> 7.85291659 | F118: 0.00218136572 | G118: 0.00218136572 | H118: 0.2307315529
A119: 105 | B119: 1900 | D119: 105 | E119: =IF(A119>$F$6+$B$6,ArrFlow_j(INDIRECT("b"&ROW()-INT($F$6)),E118,$F$7),0) -> 6.304049028 | F119: 0.00175112473 | G119: 0.00175112473 | H119: 0.2324826776
A120: 106 | B120: 1900 | D120: 106 | E120: =IF(A120>$F$6+$B$6,ArrFlow_j(INDIRECT("b"&ROW()-INT($F$6)),E119,$F$7),0) -> 5.060671877 | F120: 0.001405742188 | G120: 0.001405742188 | H120: 0.2338884198
A121: 107 | B121: 1900 | D121: 107 | E121: =IF(A121>$F$6+$B$6,ArrFlow_j(INDIRECT("b"&ROW()-INT($F$6)),E120,$F$7),0) -> 4.062531833 | F121: 0.001128481065 | G121: 0.001128481065 | H121: 0.2350169009
A122: 108 | B122: 1900 | D122: 108 | E122: =IF(A122>$F$6+$B$6,ArrFlow_j(INDIRECT("b"&ROW()-INT($F$6)),E121,$F$7),0) -> 3.261259629 | F122: 0.0009059054526 | G122: 0.0009059054526 | H122: 0.2359228064
A123: 109 | B123: 1900 | D123: 109 | E123: =IF(A123>$F$6+$B$6,ArrFlow_j(INDIRECT("b"&ROW()-INT($F$6)),E122,$F$7),0) -> 2.6180261 | F123: 0.0007272294723 | G123: 0.0007272294723 | H123: 0.2366500358
A124: 110 | B124: 1900 | D124: 110 | E124: =IF(A124>$F$6+$B$6,ArrFlow_j(INDIRECT("b"&ROW()-INT($F$6)),E123,$F$7),0) -> 2.101660536 | F124: 0.0005837945934 | G124: 0.0005837945934 | H124: 0.2372338304
A125: 111 | B125: 1900 | D125: 111 | E125: =IF(A125>$F$6+$B$6,ArrFlow_j(INDIRECT("b"&ROW()-INT($F$6)),E124,$F$7),0) -> 1.687140174 | F125: 0.0004686500482 | G125: 0.0004686500482 | H125: 0.2377024805
A126: 112 | B126: 800 | D126: 112 | E126: =IF(A126>$F$6+$B$6,ArrFlow_j(INDIRECT("b"&ROW()-INT($F$6)),E125,$F$7),0) -> 1.354377606 | F126: 0.0003762160016 | G126: 0.0003762160016 | H126: 0.2380786965
A127: 113 | B127: 800 | D127: 113 | E127: =IF(A127>$F$6+$B$6,ArrFlow_j(INDIRECT("b"&ROW()-INT($F$6)),E126,$F$7),0) -> 375.8331568 | F127: 0.1043980991 | G127: 0.1043980991 | H127: 0.3424767956
A128: 114 | B128: 800 | D128: 114 | E128: =IF(A128>$F$6+$B$6,ArrFlow_j(INDIRECT("b"&ROW()-INT($F$6)),E127,$F$7),0) -> 676.4517303 | F128: 0.1879032584 | G128: 0.1879032584 | H128: 0.530380054
A129: 115 | B129: 800 | D129: 115 | E129: =IF(A129>$F$6+$B$6,ArrFlow_j(INDIRECT("b"&ROW()-INT($F$6)),E128,$F$7),0) -> 917.7778929 | F129: 0.2549383036 | G129: 0.2549383036 | H129: 0.7853183576
A130: 116 | B130: 800 | D130: 116 | E130: =IF(A130>$F$6+$B$6,ArrFlow_j(INDIRECT("b"&ROW()-INT($F$6)),E129,$F$7),0) -> 1111.506165 | F130: 0.3087517125 | G130: 0.3087517125 | H130: 1.09407007
A131: 117 | B131: 800 | D131: 117 | E131: =IF(A131>$F$6+$B$6,ArrFlow_j(INDIRECT("b"&ROW()-INT($F$6)),E130,$F$7),0) -> 1267.024501 | F131: 0.3519512504 | G131: 0.3519512504 | H131: 1.44602132
A132: 118 | B132: 800 | D132: 118 | E132: =IF(A132>$F$6+$B$6,ArrFlow_j(INDIRECT("b"&ROW()-INT($F$6)),E131,$F$7),0) -> 1391.869227 | F132: 0.3866303409 | G132: 0.3866303409 | H132: 1.832651661
A133: 119 | B133: 800 | D133: 119 | E133: =IF(A133>$F$6+$B$6,ArrFlow_j(INDIRECT("b"&ROW()-INT($F$6)),E132,$F$7),0) -> 1492.090242 | F133: 0.4144695117 | G133: 0.4144695117 | H133: 2.247121173
A134: 120 | B134: 0 | D134: 120 | E134: =IF(A134>$F$6+$B$6,ArrFlow_j(INDIRECT("b"&ROW()-INT($F$6)),E133,$F$7),0) -> 1572.544196 | F134: 0.4368178323 | G134: -0.09095994544 | H134: 2.156161228
A135: 121 | B135: 0 | D135: 121 | E135: =IF(A135>$F$6+$B$6,ArrFlow_j(INDIRECT("b"&ROW()-INT($F$6)),E134,$F$7),0) -> 1637.12984 | F135: 0.4547582889 | G135: -0.07301948887 | H135: 2.083141739
A136: 122 | B136: 0 | D136: 122 | E136: =IF(A136>$F$6+$B$6,ArrFlow_j(INDIRECT("b"&ROW()-INT($F$6)),E135,$F$7),0) -> 1688.976954 | F136: 0.4691602651 | G136: -0.05861751268 | H136: 2.024524226
A137: 123 | B137: 0 | D137: 123 | E137: =IF(A137>$F$6+$B$6,ArrFlow_j(INDIRECT("b"&ROW()-INT($F$6)),E136,$F$7),0) -> 1730.598019 | F137: 0.480721672 | G137: -0.04705610579 | H137: 1.97746812
A138: 124 | B138: 0 | D138: 124 | E138: =IF(A138>$F$6+$B$6,ArrFlow_j(INDIRECT("b"&ROW()-INT($F$6)),E137,$F$7),0) -> 1764.009966 | F138: 0.4900027684 | G138: -0.03777500939 | H138: 1.939693111
A139: 125 | B139: 0 | D139: 125 | E139: =IF(A139>$F$6+$B$6,ArrFlow_j(INDIRECT("b"&ROW()-INT($F$6)),E138,$F$7),0) -> 1790.831918 | F139: 0.4974533106 | G139: -0.03032446716 | H139: 1.909368644
A140: 126 | B140: 0 | D140: 126 | E140: =IF(A140>$F$6+$B$6,ArrFlow_j(INDIRECT("b"&ROW()-INT($F$6)),E139,$F$7),0) -> 1812.363651 | F140: 0.5034343475 | G140: -0.0243434303 | H140: 1.885025213
A141: 127 | B141: 0 | D141: 127 | E141: =IF(A141>$F$6+$B$6,ArrFlow_j(INDIRECT("b"&ROW()-INT($F$6)),E140,$F$7),0) -> 1829.648579 | F141: 0.5082357164 | G141: -0.01954206139 | H141: 1.865483152
A142: 128 | B142: =DepFlowi($B$9,$B$5,$B$4,$B$8,$B$7,A142) -> 0 | D142: 128 | E142: =IF(A142>$F$6+$B$6,ArrFlow_j(INDIRECT("b"&ROW()-INT($F$6)),E141,$F$7),0) -> 1843.52432 | F142: 0.5120900888 | G142: -0.01568768899 | H142: 1.849795463
A143: 129 | B143: 0 | D143: 129 | E143: =IF(A143>$F$6+$B$6,ArrFlow_j(INDIRECT("b"&ROW()-INT($F$6)),E142,$F$7),0) -> 1854.663283 | F143: =E143/3600 -> 0.5151842452 | G143: -0.01259353253 | H143: 1.83720193
A144: 130 | B144: 0 | D144: 130 | E144: =IF(A144>$F$6+$B$6,ArrFlow_j(INDIRECT("b"&ROW()-INT($F$6)),E143,$F$7),0) -> 1863.605256 | F144: 0.5176681267 | G144: =QueueStatus(D144,F144,$N$10,$N$11,$J$9,$N$13,H143) -> -0.01010965105 | H144: =QueueLength(D144,$N$10,$N$11,H143,G144,$J$9) -> 1.827092279
A145: 131 | B145: 0 | D145: 131 | E145: =IF(A145>$F$6+$B$6,ArrFlow_j(INDIRECT("b"&ROW()-INT($F$6)),E144,$F$7),0) -> 1870.783562 | F145: 0.5196621006 | G145: -0.008115677172 | H145: 1.818976602
A146: 132 | B146: 0 | D146: 132 | E146: =IF(A146>$F$6+$B$6,ArrFlow_j(INDIRECT("b"&ROW()-INT($F$6)),E145,$F$7),0) -> 1876.546057 | F146: 0.5212627937 | G146: -0.006514984107 | H146: 1.812461618
A147: 133 | B147: 0 | D147: 133 | E147: =IF(A147>$F$6+$B$6,ArrFlow_j(INDIRECT("b"&ROW()-INT($F$6)),E146,$F$7),0) -> 1881.171988 | F147: 0.5225477745 | G147: -0.005230003242 | H147: 1.807231615
A148: 134 | B148: 0 | D148: 134 | E148: =IF(A148>$F$6+$B$6,ArrFlow_j(INDIRECT("b"&ROW()-INT($F$6)),E147,$F$7),0) -> 1884.885525 | F148: 0.5235793126 | G148: -0.004198465178 | H148: 1.80303315
A149: 135 | B149: 0 | D149: 135 | E149: =IF(A149>$F$6+$B$6,ArrFlow_j(INDIRECT("b"&ROW()-INT($F$6)),E148,$F$7),0) -> 1670.908466 | F149: 0.4641412406 | G149: -0.06363653722 | H149: 1.739396612
A150: 136 | B150: 0 | D150: 136 | E150: =IF(A150>$F$6+$B$6,ArrFlow_j(INDIRECT("b"&ROW()-INT($F$6)),E149,$F$7),0) -> 1499.135105 | F150: 0.4164264182 | G150: -0.1113513596 | H150: 1.628045253
A151: 137 | B151: 0 | D151: 137 | E151: =IF(A151>$F$6+$B$6,ArrFlow_j(INDIRECT("b"&ROW()-INT($F$6)),E150,$F$7),0) -> 1361.24141 | F151: 0.378122614 | G151: -0.1496551638 | H151: 1.478390089
A152: 138 | B152: 0 | D152: 138 | E152: =IF(A152>$F$6+$B$6,ArrFlow_j(INDIRECT("b"&ROW()-INT($F$6)),E151,$F$7),0) -> 1250.545135 | F152: 0.3473736487 | G152: -0.1804041291 | H152: 1.29798596
A153: 139 | B153: 0 | D153: 139 | E153: =IF(A153>$F$6+$B$6,ArrFlow_j(INDIRECT("b"&ROW()-INT($F$6)),E152,$F$7),0) -> 1161.682005 | F153: 0.322689446 | G153: -0.2050883318 | H153: 1.092897628
A154: 140 | B154: 0 | D154: 140 | E154: =IF(A154>$F$6+$B$6,ArrFlow_j(INDIRECT("b"&ROW()-INT($F$6)),E153,$F$7),0) -> 1090.345768 | F154: 0.3028738243 | G154: -0.2249039535 | H154: 0.8679936746
A155: 141 | B155: 0 | D155: 141 | E155: =IF(A155>$F$6+$B$6,ArrFlow_j(INDIRECT("b"&ROW()-INT($F$6)),E154,$F$7),0) -> 1033.07951 | F155: 0.2869665306 | G155: -0.2408112471 | H155: 0.6271824275
A156: 142 | B156: 0 | D156: 142 | E156: =IF(A156>$F$6+$B$6,ArrFlow_j(INDIRECT("b"&ROW()-INT($F$6)),E155,$F$7),0) -> 987.1081456 | F156: 0.2741967071 | G156: 0 | H156: 0
A157: 143 | B157: 0 | D157: 143 | E157: =IF(A157>$F$6+$B$6,ArrFlow_j(INDIRECT("b"&ROW()-INT($F$6)),E156,$F$7),0) -> 792.4161773 | F157: 0.2201156048 | G157: 0 | H157: 0
A158: 144 | B158: 0 | D158: 144 | E158: =IF(A158>$F$6+$B$6,ArrFlow_j(INDIRECT("b"&ROW()-INT($F$6)),E157,$F$7),0) -> 636.1242189 | F158: 0.1767011719 | G158: 0 | H158: 0
A159: 145 | B159: 0 | D159: 145 | E159: =IF(A159>$F$6+$B$6,ArrFlow_j(INDIRECT("b"&ROW()-INT($F$6)),E158,$F$7),0) -> 510.6584563 | F159: 0.1418495712 | G159: 0 | H159: 0
A160: 146 | B160: 0 | D160: 146 | E160: =IF(A160>$F$6+$B$6,ArrFlow_j(INDIRECT("b"&ROW()-INT($F$6)),E159,$F$7),0) -> 409.9388944 | F160: 0.1138719151 | G160: 0 | H160: 0
A161: 147 | B161: 0 | D161: 147 | E161: =IF(A161>$F$6+$B$6,ArrFlow_j(INDIRECT("b"&ROW()-INT($F$6)),E160,$F$7),0) -> 329.084724 | F161: 0.09141242334 | G161: 0 | H161: 0
A162: 148 | B162: 0 | D162: 148 | E162: =IF(A162>$F$6+$B$6,ArrFlow_j(INDIRECT("b"&ROW()-INT($F$6)),E161,$F$7),0) -> 264.1778008 | F162: 0.07338272243 | G162: 0 | H162: 0
A163: 149 | B163: 0 | D163: 149 | E163: =IF(A163>$F$6+$B$6,ArrFlow_j(INDIRECT("b"&ROW()-INT($F$6)),E162,$F$7),0) -> 212.0727744 | F163: 0.05890910399 | G163: 0 | H163: 0
A164: 150 | B164: 1900 | D164: 150 | E164: =IF(A164>$F$6+$B$6,ArrFlow_j(INDIRECT("b"&ROW()-INT($F$6)),E163,$F$7),0) -> 170.2446666 | F164: 0.04729018517 | G164: 0 | H164: 0
A165: 151 | B165: 1900 | D165: 151 | E165: =IF(A165>$F$6+$B$6,ArrFlow_j(INDIRECT("b"&ROW()-INT($F$6)),E164,$F$7),0) -> 136.6665127 | F165: 0.0379629202 | G165: 0 | H165: 0
A166: 152 | B166: 1900 | D166: 152 | E166: =IF(A166>$F$6+$B$6,ArrFlow_j(INDIRECT("b"&ROW()-INT($F$6)),E165,$F$7),0) -> 109.7111356 | F166: 0.03047531544 | G166: 0 | H166: 0
A167: 153 | B167: 1900 | D167: 153 | E167: =IF(A167>$F$6+$B$6,ArrFlow_j(INDIRECT("b"&ROW()-INT($F$6)),E166,$F$7),0) -> 88.07229385 | F167: 0.02446452607 | G167: 0 | H167: 0
A168: 154 | B168: 1900 | D168: 154 | E168: =IF(A168>$F$6+$B$6,ArrFlow_j(INDIRECT("b"&ROW()-INT($F$6)),E167,$F$7),0) -> 70.70138235 | F168: 0.01963927287 | G168: 0 | H168: 0
A169: 155 | B169: 1900 | D169: 155 | E169: =IF(A169>$F$6+$B$6,ArrFlow_j(INDIRECT("b"&ROW()-INT($F$6)),E168,$F$7),0) -> 56.75661718 | F169: 0.01576572699 | G169: 0 | H169: 0
A170: 156 | B170: 1900 | D170: 156 | E170: =IF(A170>$F$6+$B$6,ArrFlow_j(INDIRECT("b"&ROW()-INT($F$6)),E169,$F$7),0) -> 45.56224343 | F170: 0.01265617873 | G170: 0 | H170: 0
A171: 157 | B171: 1900 | D171: 157 | E171: =IF(A171>$F$6+$B$6,ArrFlow_j(INDIRECT("b"&ROW()-INT($F$6)),E170,$F$7),0) -> 36.57578851 | F171: 0.01015994125 | G171: 0 | H171: 0
A172: 158 | B172: 1900 | D172: 158 | E172: =IF(A172>$F$6+$B$6,ArrFlow_j(INDIRECT("b"&ROW()-INT($F$6)),E171,$F$7),0) -> 29.36177423 | F172: 0.008156048398 | G172: 0 | H172: 0
A173: 159 | B173: 1900 | D173: 159 | E173: =IF(A173>$F$6+$B$6,ArrFlow_j(INDIRECT("b"&ROW()-INT($F$6)),E172,$F$7),0) -> 23.57061382 | F173: 0.006547392728 | G173: 0 | H173: 0
A174: 160 | B174: 1900 | D174: 160 | E174: =IF(A174>$F$6+$B$6,ArrFlow_j(INDIRECT("b"&ROW()-INT($F$6)),E173,$F$7),0) -> 18.92167113 | F174: 0.005256019758 | G174: 0 | H174: 0
A175: 161 | B175: 1900 | D175: 161 | E175: =IF(A175>$F$6+$B$6,ArrFlow_j(INDIRECT("b"&ROW()-INT($F$6)),E174,$F$7),0) -> 15.18966121 | F175: 0.004219350335 | G175: 0 | H175: 0
A176: 162 | B176: 1900 | D176: 162 | E176: =IF(A176>$F$6+$B$6,ArrFlow_j(INDIRECT("b"&ROW()-INT($F$6)),E175,$F$7),0) -> 12.1937331 | F176: 0.003387148083 | G176: 0 | H176: 0
A177: 163 | B177: 1900 | D177: 163 | E177: =IF(A177>$F$6+$B$6,ArrFlow_j(INDIRECT("b"&ROW()-INT($F$6)),E176,$F$7),0) -> 9.788705942 | F177: 0.002719084984 | G177: 0 | H177: 0
A178: 164 | B178: 1900 | D178: 164 | E178: =IF(A178>$F$6+$B$6,ArrFlow_j(INDIRECT("b"&ROW()-INT($F$6)),E177,$F$7),0) -> 7.858033568 | F178: 0.002182787102 | G178: 0 | H178: 0
A179: 165 | B179: 1900 | D179: 165 | E179: =IF(A179>$F$6+$B$6,ArrFlow_j(INDIRECT("b"&ROW()-INT($F$6)),E178,$F$7),0) -> 6.30815676 | F179: 0.001752265767 | G179: 0 | H179: 0
A180: 166 | B180: 1900 | D180: 166 | E180: =IF(A180>$F$6+$B$6,ArrFlow_j(INDIRECT("b"&ROW()-INT($F$6)),E179,$F$7),0) -> 5.063969422 | F180: 0.001406658173 | G180: 0 | H180: 0
A181: 167 | B181: 1900 | D181: 167 | E181: =IF(A181>$F$6+$B$6,ArrFlow_j(INDIRECT("b"&ROW()-INT($F$6)),E180,$F$7),0) -> 4.065178987 | F181: 0.001129216385 | G181: 0 | H181: 0
A182: 168 | B182: 1900 | D182: 168 | E182: =IF(A182>$F$6+$B$6,ArrFlow_j(INDIRECT("b"&ROW()-INT($F$6)),E181,$F$7),0) -> 3.263384674 | F182: 0.0009064957427 | G182: 0 | H182: 0
A183: 169 | B183: 1900 | D183: 169 | E183: =IF(A183>$F$6+$B$6,ArrFlow_j(INDIRECT("b"&ROW()-INT($F$6)),E182,$F$7),0) -> 2.619732012 | F183: 0.0007277033366 | G183: 0 | H183: 0
A184: 170 | B184: 1900 | D184: 170 | E184: =IF(A184>$F$6+$B$6,ArrFlow_j(INDIRECT("b"&ROW()-INT($F$6)),E183,$F$7),0) -> 2.103029983 | F184: 0.0005841749952 | G184: 0 | H184: 0
A185: 171 | B185: 1900 | D185: 171 | E185: =IF(A185>$F$6+$B$6,ArrFlow_j(INDIRECT("b"&ROW()-INT($F$6)),E184,$F$7),0) -> 1.688239518 | F185: 0.0004689554216 | G185: 0 | H185: 0
A186: 172 | B186: 800 | D186: 172 | E186: =IF(A186>$F$6+$B$6,ArrFlow_j(INDIRECT("b"&ROW()-INT($F$6)),E185,$F$7),0) -> 1.355260121 | F186: 0.0003764611448 | G186: 0 | H186: 0
A187: 173 | B187: 800 | D187: 173 | E187: =IF(A187>$F$6+$B$6,ArrFlow_j(INDIRECT("b"&ROW()-INT($F$6)),E186,$F$7),0) -> 375.8338652 | F187: 0.1043982959 | G187: 0 | H187: 0
A188: 174 | B188: 800 | D188: 174 | E188: =IF(A188>$F$6+$B$6,ArrFlow_j(INDIRECT("b"&ROW()-INT($F$6)),E187,$F$7),0) -> 676.452299 | F188: 0.1879034164 | G188: 0 | H188: 0
A189: 175 | B189: 800 | D189: 175 | E189: =IF(A189>$F$6+$B$6,ArrFlow_j(INDIRECT("b"&ROW()-INT($F$6)),E188,$F$7),0) -> 917.7783495 | F189: 0.2549384304 | G189: 0 | H189: 0
A190: 176 | B190: 800 | D190: 176 | E190: =IF(A190>$F$6+$B$6,ArrFlow_j(INDIRECT("b"&ROW()-INT($F$6)),E189,$F$7),0) -> 1111.506531 | F190: 0.3087518143 | G190: 0 | H190: 0
A191: 177 | B191: 800 | D191: 177 | E191: =IF(A191>$F$6+$B$6,ArrFlow_j(INDIRECT("b"&ROW()-INT($F$6)),E190,$F$7),0) -> 1267.024796 | F191: 0.3519513321 | G191: 0 | H191: 0
A192: 178 | B192: 800 | D192: 178 | E192: =IF(A192>$F$6+$B$6,ArrFlow_j(INDIRECT("b"&ROW()-INT($F$6)),E191,$F$7),0) -> 1391.869463 | F192: 0.3866304065 | G192: 0 | H192: 0
A193: 179 | B193: 800 | D193: 179 | E193: =IF(A193>$F$6+$B$6,ArrFlow_j(INDIRECT("b"&ROW()-INT($F$6)),E192,$F$7),0) -> 1492.090432 | F193: 0.4144695644 | G193: 0 | H193: 0
A194: 180 | B194: 0 | D194: 180 | E194: =IF(A194>$F$6+$B$6,ArrFlow_j(INDIRECT("b"&ROW()-INT($F$6)),E193,$F$7),0) -> 1572.544349 | F194: 0.4368178746 | G194: 0 | H194: 0
A195: 181 | B195: 0 | D195: 181 | E195: =IF(A195>$F$6+$B$6,ArrFlow_j(INDIRECT("b"&ROW()-INT($F$6)),E194,$F$7),0) -> 1637.129962 | F195: 0.4547583228 | G195: 0 | H195: 0
A196: 182 | B196: 0 | D196: 182 | E196: =IF(A196>$F$6+$B$6,ArrFlow_j(INDIRECT("b"&ROW()-INT($F$6)),E195,$F$7),0) -> 1688.977052 | F196: 0.4691602923 | G196: 0 | H196: 0
A197: 183 | B197: 0 | D197: 183 | E197: =IF(A197>$F$6+$B$6,ArrFlow_j(INDIRECT("b"&ROW()-INT($F$6)),E196,$F$7),0) -> 1730.598098 | F197: 0.4807216939 | G197: 0 | H197: 0
A198: 184 | B198: 0 | D198: 184 | E198: =IF(A198>$F$6+$B$6,ArrFlow_j(INDIRECT("b"&ROW()-INT($F$6)),E197,$F$7),0) -> 1764.010029 | F198: 0.4900027859 | G198: 0 | H198: 0
A199: 185 | B199: 0 | D199: 185 | E199: =IF(A199>$F$6+$B$6,ArrFlow_j(INDIRECT("b"&ROW()-INT($F$6)),E198,$F$7),0) -> 1790.831969 | F199: 0.4974533247 | G199: 0 | H199: 0
A200: 186 | B200: 0 | D200: 186 | E200: =IF(A200>$F$6+$B$6,ArrFlow_j(INDIRECT("b"&ROW()-INT($F$6)),E199,$F$7),0) -> 1812.363692 | F200: 0.5034343588 | G200: 0 | H200: 0
A201: 187 | B201: 0 | D201: 187 | E201: =IF(A201>$F$6+$B$6,ArrFlow_j(INDIRECT("b"&ROW()-INT($F$6)),E200,$F$7),0) -> 1829.648612 | F201: 0.5082357255 | G201: 0 | H201: 0
... 13 more rows

Sheet example 26 offset=0
A1: Predicting Arrival Flow at the Downstream Signalized Intersection
A3: Upstream Signal | E3: Platoon Dispersion Model | I3: Downstream Signal | M3: Downstream Signal Timing | Q3: Delay
A4: Cycle length, C | B4: 60 | C4: sec | E4: Speed | F4: 25 | G4: mi/hr | I4: Distance | J4: 1000 | K4: ft | M4: GreenStart1 | N4: =N8-J6 -> -30 | O4: 0 | Q4: Total | R4: =SUM(H14:H214) -> 318.5775632 | S4: sec
A5: Effective green, g | B5: 30 | C5: sec | E5: tR | F5: =(J4)/(1.47*F4) -> 27.21088435 | G5: sec | I5: Offset | J5: 0 | K5: sec | M5: GreenEnd1 | N5: =N9-J6 -> 0 | O5: 0 | Q5: Average | R5: =R4/(B8/B4) -> 23.89331724 | S5: sec/veh
A6: Effective red, r | B6: =B4-B5 -> 30 | C6: sec | E6: tprime | F6: =tprime(F5,F7) -> 23.39078231 | G6: sec | I6: Cycle length, C | J6: =B4 -> 60 | K6: sec | M6: RedStart1 | N6: =N10-J6 -> 0 | O6: 0
A7: Saturation flow rate, s | B7: 1900 | C7: veh/hr-g | E7: F | F7: =F(F5) -> 0.1972346892 | I7: Effective green, g | J7: =B5 -> 30 | K7: sec | M7: RedEnd1 | N7: =N11-J6 -> 30 | O7: 0
A8: ArrFlow | B8: 800 | C8: veh/hr | I8: Effective red, r | J8: =B6 -> 30 | K8: sec | M8: GreenStart2 | N8: =B5+J5 -> 30 | O8: 0 | Q8: Delay as function of offset
A9: Queue service time, gs | B9: =(B8*B6)/(B7-B8) -> 21.81818182 | C9: sec | I9: Queue service time, gs | J9: =B9 -> 21.81818182 | K9: =C9 -> sec | M9: GreenEnd2 | N9: =N8+J7 -> 60 | O9: 0 | Q9: Offset | R9: AverageD
M10: RedStart2 | N10: =N9 -> 60 | O10: 0 | Q10: 0 | R10: 21.16791662
M11: RedEnd2 | N11: =N10+J8 -> 90 | O11: 0 | Q11: 5 | R11: 14.91684881
A12: Flow Profile Departing | D12: Flow Profile Arriving | M12: GreenStart3 | N12: =N8+J6 -> 90 | O12: 0 | Q12: 10 | R12: 8.9
A13: Time i | B13: DepFlowi | D13: Time i | E13: ArrFlowj | F13: ArrFlowj | G13: QueueStatus | H13: Queue | M13: GreenEnd3 | N13: =N9+J6 -> 120 | O13: 0 | Q13: 15 | R13: 5.7
A14: 0 | B14: =DepFlowi($B$9,$B$5,$B$4,$B$8,$B$7,A14) -> 0 | D14: 0 | E14: =IF(A14>$F$6+$B$6,ArrFlow_j(INDIRECT("b"&ROW()-INT($F$6)),E13,$F$7),0) -> 0 | F14: =E14/3600 -> 0 | G14: =QueueStatus(D14,F14,$N$10,$N$11,$J$9,$N$13,H13) -> 0 | M14: RedStart3 | N14: =N10+J6 -> 120 | O14: 0 | Q14: 20 | R14: 3.3
A15: 1 | B15: 0 | D15: 1 | E15: =IF(A15>$F$6+$B$6,ArrFlow_j(INDIRECT("b"&ROW()-INT($F$6)),E14,$F$7),0) -> 0 | F15: =E15/3600 -> 0 | G15: =QueueStatus(D15,F15,$N$10,$N$11,$J$9,$N$13,H14) -> 0 | H15: =QueueLength(D15,$N$10,$N$11,H14,G15,$J$9) -> 0 | M15: RedEnd3 | N15: =N11+J6 -> 150 | O15: 0 | Q15: 25 | R15: 1.3
A16: 2 | B16: 0 | D16: 2 | E16: =IF(A16>$F$6+$B$6,ArrFlow_j(INDIRECT("b"&ROW()-INT($F$6)),E15,$F$7),0) -> 0 | F16: 0 | G16: =QueueStatus(D16,F16,$N$10,$N$11,$J$9,$N$13,H15) -> 0 | H16: =QueueLength(D16,$N$10,$N$11,H15,G16,$J$9) -> 0 | M16: GreenStart4 | N16: =N12+J6 -> 150 | O16: 0 | Q16: 30 | R16: 3.2
A17: 3 | B17: 0 | D17: 3 | E17: =IF(A17>$F$6+$B$6,ArrFlow_j(INDIRECT("b"&ROW()-INT($F$6)),E16,$F$7),0) -> 0 | F17: 0 | G17: 0 | H17: 0 | M17: GreenEnd4 | N17: =N13+J6 -> 180 | O17: 0 | Q17: 35 | R17: 6.9
A18: 4 | B18: 0 | D18: 4 | E18: =IF(A18>$F$6+$B$6,ArrFlow_j(INDIRECT("b"&ROW()-INT($F$6)),E17,$F$7),0) -> 0 | F18: 0 | G18: 0 | H18: 0 | Q18: 40 | R18: 11.3
A19: 5 | B19: 0 | D19: 5 | E19: =IF(A19>$F$6+$B$6,ArrFlow_j(INDIRECT("b"&ROW()-INT($F$6)),E18,$F$7),0) -> 0 | F19: 0 | G19: 0 | H19: 0 | Q19: 45 | R19: 16.1
A20: 6 | B20: 0 | D20: 6 | E20: =IF(A20>$F$6+$B$6,ArrFlow_j(INDIRECT("b"&ROW()-INT($F$6)),E19,$F$7),0) -> 0 | F20: 0 | G20: 0 | H20: 0 | Q20: 50 | R20: 21.1
A21: 7 | B21: 0 | D21: 7 | E21: =IF(A21>$F$6+$B$6,ArrFlow_j(INDIRECT("b"&ROW()-INT($F$6)),E20,$F$7),0) -> 0 | F21: 0 | G21: 0 | H21: 0 | Q21: 55 | R21: 24.8
A22: 8 | B22: 0 | D22: 8 | E22: =IF(A22>$F$6+$B$6,ArrFlow_j(INDIRECT("b"&ROW()-INT($F$6)),E21,$F$7),0) -> 0 | F22: 0 | G22: 0 | H22: 0 | Q22: 60 | R22: 21.6
A23: 9 | B23: 0 | D23: 9 | E23: =IF(A23>$F$6+$B$6,ArrFlow_j(INDIRECT("b"&ROW()-INT($F$6)),E22,$F$7),0) -> 0 | F23: 0 | G23: 0 | H23: 0
A24: 10 | B24: 0 | D24: 10 | E24: =IF(A24>$F$6+$B$6,ArrFlow_j(INDIRECT("b"&ROW()-INT($F$6)),E23,$F$7),0) -> 0 | F24: 0 | G24: 0 | H24: 0
A25: 11 | B25: 0 | D25: 11 | E25: =IF(A25>$F$6+$B$6,ArrFlow_j(INDIRECT("b"&ROW()-INT($F$6)),E24,$F$7),0) -> 0 | F25: 0 | G25: 0 | H25: 0 | Q25: Cycle length, C
A26: 12 | B26: 0 | D26: 12 | E26: =IF(A26>$F$6+$B$6,ArrFlow_j(INDIRECT("b"&ROW()-INT($F$6)),E25,$F$7),0) -> 0 | F26: 0 | G26: 0 | H26: 0 | Q26: Effective green, g | U26: QAP graph calculation data (offset = 0; start of red = 0) | AA26: QAP graph calculation data (offset = 30; start of red = 0)
A27: 13 | B27: 0 | D27: 13 | E27: =IF(A27>$F$6+$B$6,ArrFlow_j(INDIRECT("b"&ROW()-INT($F$6)),E26,$F$7),0) -> 0 | F27: 0 | G27: 0 | H27: 0 | Q27: Effective red, r | U27: Time i | V27: ArrFlowj | W27: ArrFlowj | X27: QueStatus | Y27: Queue | AA27: Time i | AB27: ArrFlowj | AC27: ArrFlowj | AD27: QueStatus | AE27: Queue
A28: 14 | B28: 0 | D28: 14 | E28: =IF(A28>$F$6+$B$6,ArrFlow_j(INDIRECT("b"&ROW()-INT($F$6)),E27,$F$7),0) -> 0 | F28: 0 | G28: 0 | H28: 0 | Q28: Saturation flow rate, s | U28: 0 | V28: 1413.283514 | W28: 0.3925787538 | X28: 0.3925787538 | Y28: 0.3925787538 | AA28: 0 | AB28: 170.1338071 | AC28: 0.04725939085 | AD28: 0.04725939085 | AE28: 0.04725939085
A29: 15 | B29: 0 | D29: 15 | E29: =IF(A29>$F$6+$B$6,ArrFlow_j(INDIRECT("b"&ROW()-INT($F$6)),E28,$F$7),0) -> 0 | F29: 0 | G29: 0 | H29: 0 | Q29: ArrFlow | U29: 1 | V29: 1489.55742 | W29: 0.4137659499 | X29: 0.4137659499 | Y29: 0.8063447036 | AA29: 1 | AB29: 136.5775185 | AC29: 0.03793819958 | AD29: 0.03793819958 | AE29: 0.08519759043
A30: 16 | B30: 0 | D30: 16 | E30: =IF(A30>$F$6+$B$6,ArrFlow_j(INDIRECT("b"&ROW()-INT($F$6)),E29,$F$7),0) -> 0 | F30: 0 | G30: 0 | H30: 0 | Q30: ArrFlow | U30: 2 | V30: 1550.787465 | W30: 0.4307742959 | X30: 0.4307742959 | Y30: 1.237119 | AA30: 2 | AB30: 109.6396941 | AC30: 0.03045547058 | AD30: 0.03045547058 | AE30: 0.115653061
A31: 17 | B31: 0 | D31: 17 | E31: =IF(A31>$F$6+$B$6,ArrFlow_j(INDIRECT("b"&ROW()-INT($F$6)),E30,$F$7),0) -> 0 | F31: 0 | G31: 0 | H31: 0 | Q31: Queue service time, gs | U31: 3 | V31: 1599.940822 | W31: 0.4444280062 | X31: 0.4444280062 | Y31: 1.681547006 | AA31: 3 | AB31: 88.01494311 | AC31: 0.02444859531 | AD31: 0.02444859531 | AE31: 0.1401016563
A32: 18 | B32: 0 | D32: 18 | E32: =IF(A32>$F$6+$B$6,ArrFlow_j(INDIRECT("b"&ROW()-INT($F$6)),E31,$F$7),0) -> 0 | F32: 0 | G32: 0 | H32: 0 | U32: 4 | V32: 1639.399432 | W32: 0.4553887311 | X32: 0.4553887311 | Y32: 2.136935737 | AA32: 4 | AB32: 70.65534317 | AC32: 0.01962648421 | AD32: 0.01962648421 | AE32: 0.1597281405
A33: 19 | B33: 0 | D33: 19 | E33: =IF(A33>$F$6+$B$6,ArrFlow_j(INDIRECT("b"&ROW()-INT($F$6)),E32,$F$7),0) -> 0 | F33: 0 | G33: 0 | H33: 0 | Q33: Cycle Range Line | U33: 5 | V33: 1671.075435 | W33: 0.4641876208 | X33: 0.4641876208 | Y33: 2.601123358 | AA33: 5 | AB33: 56.71965852 | AC33: 0.0157554607 | AD33: 0.0157554607 | AE33: 0.1754836012
A34: 20 | B34: 0 | D34: 20 | E34: =IF(A34>$F$6+$B$6,ArrFlow_j(INDIRECT("b"&ROW()-INT($F$6)),E33,$F$7),0) -> 0 | F34: 0 | G34: 0 | H34: 0 | Q34: RedStart2 | R34: =N10 -> 60 | S34: 0 | U34: 6 | V34: 1696.503832 | W34: 0.4712510643 | X34: 0.4712510643 | Y34: 3.072374422 | AA34: 6 | AB34: 45.5325743 | AC34: 0.01264793731 | AD34: 0.01264793731 | AE34: 0.1881315385
A35: 21 | B35: 0 | D35: 21 | E35: =IF(A35>$F$6+$B$6,ArrFlow_j(INDIRECT("b"&ROW()-INT($F$6)),E34,$F$7),0) -> 0 | F35: 0 | G35: 0 | H35: 0 | Q35: RedEnd2 | R35: =N11 -> 90 | S35: 0 | U35: 7 | V35: 1716.916866 | W35: 0.4769213517 | X35: 0.4769213517 | Y35: 3.549295774 | AA35: 7 | AB35: 36.55197116 | AC35: 0.01015332532 | AD35: 0.01015332532 | AE35: 0.1982848639
A36: 22 | B36: 0 | D36: 22 | E36: =IF(A36>$F$6+$B$6,ArrFlow_j(INDIRECT("b"&ROW()-INT($F$6)),E35,$F$7),0) -> 0 | F36: 0 | G36: 0 | H36: 0 | Q36: GreenEnd3 | R36: =N13 -> 120 | S36: 0 | U36: 8 | V36: 1733.303742 | W36: 0.4814732617 | X36: 0.4814732617 | Y36: 4.030769035 | AA36: 8 | AB36: 29.34265449 | AC36: 0.008150737359 | AD36: 0.008150737359 | AE36: 0.2064356012
A37: 23 | B37: 0 | D37: 23 | E37: =IF(A37>$F$6+$B$6,ArrFlow_j(INDIRECT("b"&ROW()-INT($F$6)),E36,$F$7),0) -> 0 | F37: 0 | G37: 0 | H37: 0 | U37: 9 | V37: 1746.458558 | W37: 0.4851273772 | X37: 0.4851273772 | Y37: 4.515896413 | AA37: 9 | AB37: 23.55526516 | AC37: 0.00654312921 | AD37: 0.00654312921 | AE37: 0.2129787304
A38: 24 | B38: 0 | D38: 24 | E38: =IF(A38>$F$6+$B$6,ArrFlow_j(INDIRECT("b"&ROW()-INT($F$6)),E37,$F$7),0) -> 0 | F38: 0 | G38: 0 | H38: 0 | U38: 10 | V38: 1757.018788 | W38: 0.4880607743 | X38: 0.4880607743 | Y38: 5.003957187 | AA38: 10 | AB38: 18.90934975 | AC38: 0.005252597154 | AD38: 0.005252597154 | AE38: 0.2182313276
A39: 25 | B39: 0 | D39: 25 | E39: =IF(A39>$F$6+$B$6,ArrFlow_j(INDIRECT("b"&ROW()-INT($F$6)),E38,$F$7),0) -> 0 | F39: 0 | G39: 0 | H39: 0 | U39: 11 | V39: 1765.496174 | W39: 0.4904156038 | X39: 0.4904156038 | Y39: 5.494372791 | AA39: 11 | AB39: 15.17977003 | AC39: 0.004216602787 | AD39: 0.004216602787 | AE39: 0.2224479304
A40: 26 | B40: 0 | D40: 26 | E40: =IF(A40>$F$6+$B$6,ArrFlow_j(INDIRECT("b"&ROW()-INT($F$6)),E39,$F$7),0) -> 0 | F40: 0 | G40: 0 | H40: 0 | U40: 12 | V40: 1772.301525 | W40: 0.4923059792 | X40: 0.4923059792 | Y40: 5.98667877 | AA40: 12 | AB40: 12.18579281 | AC40: 0.003384942447 | AD40: 0.003384942447 | AE40: 0.2258328728
A41: 27 | B41: 0 | D41: 27 | E41: =IF(A41>$F$6+$B$6,ArrFlow_j(INDIRECT("b"&ROW()-INT($F$6)),E40,$F$7),0) -> 0 | F41: 0 | G41: 0 | H41: 0 | U41: 13 | V41: 1777.764625 | W41: 0.493823507 | X41: 0.493823507 | Y41: 6.480502277 | AA41: 13 | AB41: 9.782331753 | AC41: 0.002717314376 | AD41: 0.002717314376 | AE41: 0.2285501872
A42: 28 | B42: 0 | D42: 28 | E42: =IF(A42>$F$6+$B$6,ArrFlow_j(INDIRECT("b"&ROW()-INT($F$6)),E41,$F$7),0) -> 0 | F42: 0 | G42: 0 | H42: 0 | U42: 14 | V42: 1782.150212 | W42: 0.4950417257 | X42: 0.4950417257 | Y42: 6.975544003 | AA42: 14 | AB42: 7.85291659 | AC42: 0.00218136572 | AD42: 0.00218136572 | AE42: 0.2307315529
A43: 29 | B43: 0 | D43: 29 | E43: =IF(A43>$F$6+$B$6,ArrFlow_j(INDIRECT("b"&ROW()-INT($F$6)),E42,$F$7),0) -> 0 | F43: 0 | G43: 0 | H43: 0 | U43: 15 | V43: 1785.67081 | W43: 0.4960196694 | X43: 0.4960196694 | Y43: 7.471563672 | AA43: 15 | AB43: 6.304049028 | AC43: 0.00175112473 | AD43: 0.00175112473 | AE43: 0.2324826776
A44: 30 | B44: 1900 | D44: 30 | E44: =IF(A44>$F$6+$B$6,ArrFlow_j(INDIRECT("b"&ROW()-INT($F$6)),E43,$F$7),0) -> 0 | F44: 0 | G44: 0 | H44: 0 | U44: 16 | V44: 1788.497023 | W44: 0.4968047286 | X44: 0.4968047286 | Y44: 7.968368401 | AA44: 16 | AB44: 5.060671877 | AC44: 0.001405742188 | AD44: 0.001405742188 | AE44: 0.2338884198
A45: 31 | B45: 1900 | D45: 31 | E45: =IF(A45>$F$6+$B$6,ArrFlow_j(INDIRECT("b"&ROW()-INT($F$6)),E44,$F$7),0) -> 0 | F45: 0 | G45: 0 | H45: 0 | U45: 17 | V45: 1593.53112 | W45: 0.4426475333 | X45: 0.4426475333 | Y45: 8.411015934 | AA45: 17 | AB45: 4.062531833 | AC45: 0.001128481065 | AD45: 0.001128481065 | AE45: 0.2350169009
A46: 32 | B46: 1900 | D46: 32 | E46: =IF(A46>$F$6+$B$6,ArrFlow_j(INDIRECT("b"&ROW()-INT($F$6)),E45,$F$7),0) -> 0 | F46: 0 | G46: 0 | H46: 0 | U46: 18 | V46: 1437.019256 | W46: 0.3991720156 | X46: 0.3991720156 | Y46: 8.81018795 | AA46: 18 | AB46: 3.261259629 | AC46: 0.0009059054526 | AD46: 0.0009059054526 | AE46: 0.2359228064
A47: 33 | B47: 1900 | D47: 33 | E47: =IF(A47>$F$6+$B$6,ArrFlow_j(INDIRECT("b"&ROW()-INT($F$6)),E46,$F$7),0) -> 0 | F47: 0 | G47: 0 | H47: 0 | U47: 19 | V47: 1311.376961 | W47: 0.3642713781 | X47: 0.3642713781 | Y47: 9.174459328 | AA47: 19 | AB47: 2.6180261 | AC47: 0.0007272294723 | AD47: 0.0007272294723 | AE47: 0.2366500358
A48: 34 | B48: 1900 | D48: 34 | E48: =IF(A48>$F$6+$B$6,ArrFlow_j(INDIRECT("b"&ROW()-INT($F$6)),E47,$F$7),0) -> 0 | F48: 0 | G48: 0 | H48: 0 | U48: 20 | V48: 1210.515685 | W48: 0.336254357 | X48: 0.336254357 | Y48: 9.510713685 | AA48: 20 | AB48: 2.101660536 | AC48: 0.0005837945934 | AD48: 0.0005837945934 | AE48: 0.2372338304
A49: 35 | B49: 1900 | D49: 35 | E49: =IF(A49>$F$6+$B$6,ArrFlow_j(INDIRECT("b"&ROW()-INT($F$6)),E48,$F$7),0) -> 0 | F49: 0 | G49: 0 | H49: 0 | U49: 21 | V49: 1129.547752 | W49: 0.3137632644 | X49: 0.3137632644 | Y49: 9.824476949 | AA49: 21 | AB49: 1.687140174 | AC49: 0.0004686500482 | AD49: 0.0004686500482 | AE49: 0.2377024805
A50: 36 | B50: 1900 | D50: 36 | E50: =IF(A50>$F$6+$B$6,ArrFlow_j(INDIRECT("b"&ROW()-INT($F$6)),E49,$F$7),0) -> 0 | F50: 0 | G50: 0 | H50: 0 | U50: 22 | V50: 1064.549503 | W50: 0.2957081954 | X50: 0.2957081954 | Y50: 10.12018514 | AA50: 22 | AB50: 1.354377606 | AC50: 0.0003762160016 | AD50: 0.0003762160016 | AE50: 0.2380786965
A51: 37 | B51: 1900 | D51: 37 | E51: =IF(A51>$F$6+$B$6,ArrFlow_j(INDIRECT("b"&ROW()-INT($F$6)),E50,$F$7),0) -> 0 | F51: 0 | G51: 0 | H51: 0 | U51: 23 | V51: 854.5834129 | W51: 0.2373842814 | X51: 0.2373842814 | Y51: 10.35756943 | AA51: 23 | AB51: 375.8331568 | AC51: 0.1043980991 | AD51: 0.1043980991 | AE51: 0.3424767956
A52: 38 | B52: 1900 | D52: 38 | E52: =IF(A52>$F$6+$B$6,ArrFlow_j(INDIRECT("b"&ROW()-INT($F$6)),E51,$F$7),0) -> 0 | F52: 0 | G52: 0 | H52: 0 | U52: 24 | V52: 686.0299191 | W52: 0.1905638664 | X52: 0.1905638664 | Y52: 10.54813329 | AA52: 24 | AB52: 676.4517303 | AC52: 0.1879032584 | AD52: 0.1879032584 | AE52: 0.530380054
A53: 39 | B53: 1900 | D53: 39 | E53: =IF(A53>$F$6+$B$6,ArrFlow_j(INDIRECT("b"&ROW()-INT($F$6)),E52,$F$7),0) -> 0 | F53: 0 | G53: 0 | H53: 0 | U53: 25 | V53: 550.7210213 | W53: 0.1529780615 | X53: 0.1529780615 | Y53: 10.70111135 | AA53: 25 | AB53: 917.7778929 | AC53: 0.2549383036 | AD53: 0.2549383036 | AE53: 0.7853183576
A54: 40 | B54: 1900 | D54: 40 | E54: =IF(A54>$F$6+$B$6,ArrFlow_j(INDIRECT("b"&ROW()-INT($F$6)),E53,$F$7),0) -> 0 | F54: 0 | G54: 0 | H54: 0 | U54: 26 | V54: 442.0997318 | W54: 0.1228054811 | X54: 0.1228054811 | Y54: 10.82391683 | AA54: 26 | AB54: 1111.506165 | AC54: 0.3087517125 | AD54: 0.3087517125 | AE54: 1.09407007
A55: 41 | B55: 1900 | D55: 41 | E55: =IF(A55>$F$6+$B$6,ArrFlow_j(INDIRECT("b"&ROW()-INT($F$6)),E54,$F$7),0) -> 0 | F55: 0 | G55: 0 | H55: 0 | U55: 27 | V55: 354.9023287 | W55: 0.09858398018 | X55: 0.09858398018 | Y55: 10.92250081 | AA55: 27 | AB55: 1267.024501 | AC55: 0.3519512504 | AD55: 0.3519512504 | AE55: 1.44602132
A56: 42 | B56: 1900 | D56: 42 | E56: =IF(A56>$F$6+$B$6,ArrFlow_j(INDIRECT("b"&ROW()-INT($F$6)),E55,$F$7),0) -> 0 | F56: 0 | G56: 0 | H56: 0 | U56: 28 | V56: 284.9032782 | W56: 0.0791397995 | X56: 0.0791397995 | Y56: 11.00164061 | AA56: 28 | AB56: 1391.869227 | AC56: 0.3866303409 | AD56: 0.3866303409 | AE56: 1.832651661
A57: 43 | B57: 1900 | D57: 43 | E57: =IF(A57>$F$6+$B$6,ArrFlow_j(INDIRECT("b"&ROW()-INT($F$6)),E56,$F$7),0) -> 0 | F57: 0 | G57: 0 | H57: 0 | U57: 29 | V57: 228.7104687 | W57: 0.06353068574 | X57: 0.06353068574 | Y57: 11.0651713 | AA57: 29 | AB57: 1492.090242 | AC57: 0.4144695117 | AD57: 0.4144695117 | AE57: 2.247121173
A58: 44 | B58: 1900 | D58: 44 | E58: =IF(A58>$F$6+$B$6,ArrFlow_j(INDIRECT("b"&ROW()-INT($F$6)),E57,$F$7),0) -> 0 | F58: 0 | G58: 0 | H58: 0 | U58: 30 | V58: 183.6008305 | W58: 0.05100023069 | X58: -0.4767775471 | Y58: 10.58839375 | AA58: 30 | AB58: 1572.544196 | AC58: 0.4368178323 | AD58: -0.09095994544 | AE58: 2.156161228
A59: 45 | B59: 1900 | D59: 45 | E59: =IF(A59>$F$6+$B$6,ArrFlow_j(INDIRECT("b"&ROW()-INT($F$6)),E58,$F$7),0) -> 0 | F59: 0 | G59: 0 | H59: 0 | U59: 31 | V59: 147.3883777 | W59: 0.04094121604 | X59: -0.4868365617 | Y59: 10.10155719 | AA59: 31 | AB59: 1637.12984 | AC59: 0.4547582889 | AD59: -0.07301948887 | AE59: 2.083141739
A60: 46 | B60: 1900 | D60: 46 | E60: =IF(A60>$F$6+$B$6,ArrFlow_j(INDIRECT("b"&ROW()-INT($F$6)),E59,$F$7),0) -> 0 | F60: 0 | G60: 0 | H60: 0 | U60: 32 | V60: 118.3182769 | W60: 0.03286618802 | X60: -0.4949115898 | Y60: 9.606645602 | AA60: 32 | AB60: 1688.976954 | AC60: 0.4691602651 | AD60: -0.05861751268 | AE60: 2.024524226
A61: 47 | B61: 1900 | D61: 47 | E61: =IF(A61>$F$6+$B$6,ArrFlow_j(INDIRECT("b"&ROW()-INT($F$6)),E60,$F$7),0) -> 0 | F61: 0 | G61: 0 | H61: 0 | U61: 33 | V61: 94.98180832 | W61: 0.02638383564 | X61: -0.5013939421 | Y61: 9.10525166 | AA61: 33 | AB61: 1730.598019 | AC61: 0.480721672 | AD61: -0.04705610579 | AE61: 1.97746812
A62: 48 | B62: 1900 | D62: 48 | E62: =IF(A62>$F$6+$B$6,ArrFlow_j(INDIRECT("b"&ROW()-INT($F$6)),E61,$F$7),0) -> 0 | F62: 0 | G62: 0 | H62: 0 | U62: 34 | V62: 76.24810088 | W62: 0.02118002802 | X62: -0.5065977498 | Y62: 8.59865391 | AA62: 34 | AB62: 1764.009966 | AC62: 0.4900027684 | AD62: -0.03777500939 | AE62: 1.939693111
A63: 49 | B63: 1900 | D63: 49 | E63: =IF(A63>$F$6+$B$6,ArrFlow_j(INDIRECT("b"&ROW()-INT($F$6)),E62,$F$7),0) -> 0 | F63: 0 | G63: 0 | H63: 0 | U63: 35 | V63: 61.2093304 | W63: 0.01700259178 | X63: -0.510775186 | Y63: 8.087878724 | AA63: 35 | AB63: 1790.831918 | AC63: 0.4974533106 | AD63: -0.03032446716 | AE63: 1.909368644
A64: 50 | B64: 1900 | D64: 50 | E64: =IF(A64>$F$6+$B$6,ArrFlow_j(INDIRECT("b"&ROW()-INT($F$6)),E63,$F$7),0) -> 0 | F64: 0 | G64: 0 | H64: 0 | U64: 36 | V64: 49.13672715 | W64: 0.01364909087 | X64: -0.5141286869 | Y64: 7.573750037 | AA64: 36 | AB64: 1812.363651 | AC64: 0.5034343475 | AD64: -0.0243434303 | AE64: 1.885025213
A65: 51 | B65: 1900 | D65: 51 | E65: =IF(A65>$F$6+$B$6,ArrFlow_j(INDIRECT("b"&ROW()-INT($F$6)),E64,$F$7),0) -> 0 | F65: 0 | G65: 0 | H65: 0 | U65: 37 | V65: 39.44526004 | W65: 0.01095701668 | X65: -0.5168207611 | Y65: 7.056929276 | AA65: 37 | AB65: 1829.648579 | AC65: 0.5082357164 | AD65: -0.01954206139 | AE65: 1.865483152
A66: 52 | B66: 800 | D66: 52 | E66: =IF(A66>$F$6+$B$6,ArrFlow_j(INDIRECT("b"&ROW()-INT($F$6)),E65,$F$7),0) -> 0 | F66: 0 | G66: 0 | H66: 0 | U66: 38 | V66: 31.66528644 | W66: 0.0087959129 | X66: -0.5189818649 | Y66: 6.537947411 | AA66: 38 | AB66: 1843.52432 | AC66: 0.5120900888 | AD66: -0.01568768899 | AE66: 1.849795463
A67: 53 | B67: 800 | D67: 53 | E67: =IF(A67>$F$6+$B$6,ArrFlow_j(INDIRECT("b"&ROW()-INT($F$6)),E66,$F$7),0) -> 0 | F67: 0 | G67: 0 | H67: 0 | U67: 39 | V67: 25.41979351 | W67: 0.007061053753 | X67: -0.520716724 | Y67: 6.017230687 | AA67: 39 | AB67: 1854.663283 | AC67: 0.5151842452 | AD67: -0.01259353253 | AE67: 1.83720193
A68: 54 | B68: 800 | D68: 54 | E68: =IF(A68>$F$6+$B$6,ArrFlow_j(INDIRECT("b"&ROW()-INT($F$6)),E67,$F$7),0) -> 374.7459094 | F68: 0.1040960859 | G68: 0 | H68: 0 | U68: 40 | V68: 20.40612844 | W68: 0.005668369011 | X68: -0.5221094088 | Y68: 5.495121278 | AA68: 40 | AB68: 1863.605256 | AC68: 0.5176681267 | AD68: -0.01010965105 | AE68: 1.827092279
A69: 55 | B69: 800 | D69: 55 | E69: =IF(A69>$F$6+$B$6,ArrFlow_j(INDIRECT("b"&ROW()-INT($F$6)),E68,$F$7),0) -> 675.5789258 | F69: 0.1876608127 | G69: 0 | H69: 0 | U69: 41 | V69: 16.38133204 | W69: 0.004550370011 | X69: -0.5232274078 | Y69: 4.97189387 | AA69: 41 | AB69: 1870.783562 | AC69: 0.5196621006 | AD69: -0.008115677172 | AE69: 1.818976602
A70: 56 | B70: 800 | D70: 56 | E70: =IF(A70>$F$6+$B$6,ArrFlow_j(INDIRECT("b"&ROW()-INT($F$6)),E69,$F$7),0) -> 917.0772358 | F70: 0.2547436766 | G70: 0 | H70: 0 | U70: 42 | V70: 13.15036511 | W70: 0.003652879197 | X70: -0.5241248986 | Y70: 4.447768972 | AA70: 42 | AB70: 1876.546057 | AC70: 0.5212627937 | AD70: -0.006514984107 | AE70: 1.812461618
A71: 57 | B71: 800 | D71: 57 | E71: =IF(A71>$F$6+$B$6,ArrFlow_j(INDIRECT("b"&ROW()-INT($F$6)),E70,$F$7),0) -> 1110.943702 | F71: 0.3085954727 | G71: 0 | H71: 0 | U71: 43 | V71: 10.55665693 | W71: 0.002932404704 | X71: -0.5248453731 | Y71: 3.922923599 | AA71: 43 | AB71: 1881.171988 | AC71: 0.5225477745 | AD71: -0.005230003242 | AE71: 1.807231615
A72: 58 | B72: 800 | D72: 58 | E72: =IF(A72>$F$6+$B$6,ArrFlow_j(INDIRECT("b"&ROW()-INT($F$6)),E71,$F$7),0) -> 1266.572975 | F72: 0.3518258265 | G72: 0 | H72: 0 | U72: 44 | V72: 8.474517985 | W72: 0.002354032773 | X72: -0.525423745 | Y72: 3.397499854 | AA72: 44 | AB72: 1884.885525 | AC72: 0.5235793126 | AD72: -0.004198465178 | AE72: 1.80303315
A73: 59 | B73: 800 | D73: 59 | E73: =IF(A73>$F$6+$B$6,ArrFlow_j(INDIRECT("b"&ROW()-INT($F$6)),E72,$F$7),0) -> 1391.506758 | F73: 0.3865296549 | G73: 0 | H73: 0 | U73: 45 | V73: 6.803049064 | W73: 0.001889735851 | X73: -0.5258880419 | Y73: 2.871611812 | AA73: 45 | AB73: 1670.908466 | AC73: 0.4641412406 | AD73: -0.06363653722 | AE73: 1.739396612
A74: 60 | B74: 0 | D74: 60 | E74: =IF(A74>$F$6+$B$6,ArrFlow_j(INDIRECT("b"&ROW()-INT($F$6)),E73,$F$7),0) -> 1491.799264 | F74: 0.4143886845 | G74: 0.4143886845 | H74: 0.4143886845 | U74: 46 | V74: 5.461251797 | W74: 0.001517014388 | X74: -0.5262607634 | Y74: 2.345351048 | AA74: 46 | AB74: 1499.135105 | AC74: 0.4164264182 | AD74: -0.1113513596 | AE74: 1.628045253
A75: 61 | B75: 0 | D75: 61 | E75: =IF(A75>$F$6+$B$6,ArrFlow_j(INDIRECT("b"&ROW()-INT($F$6)),E74,$F$7),0) -> 1572.310609 | F75: 0.4367529471 | G75: 0.4367529471 | H75: 0.8511416316 | U75: 47 | V75: 4.384103496 | W75: 0.001217806527 | X75: -0.5265599713 | Y75: 1.818791077 | AA75: 47 | AB75: 1361.24141 | AC75: 0.378122614 | AD75: -0.1496551638 | AE75: 1.478390089
A76: 62 | B76: 0 | D76: 62 | E76: =IF(A76>$F$6+$B$6,ArrFlow_j(INDIRECT("b"&ROW()-INT($F$6)),E75,$F$7),0) -> 1636.942325 | F76: 0.4547062013 | G76: 0.4547062013 | H76: 1.305847833 | U76: 48 | V76: 3.519406206 | W76: 0.000977612835 | X76: -0.5268001649 | Y76: 1.291990912 | AA76: 48 | AB76: 1250.545135 | AC76: 0.3473736487 | AD76: -0.1804041291 | AE76: 1.29798596
A77: 63 | B77: 0 | D77: 63 | E77: =IF(A77>$F$6+$B$6,ArrFlow_j(INDIRECT("b"&ROW()-INT($F$6)),E76,$F$7),0) -> 1688.826423 | F77: 0.4691184509 | G77: 0.4691184509 | H77: 1.774966284 | U77: 49 | V77: 2.825257217 | W77: 0.0007847936713 | X77: -0.5269929841 | Y77: 0.764997928 | AA77: 49 | AB77: 1161.682005 | AC77: 0.322689446 | AD77: -0.2050883318 | AE77: 1.092897628
A78: 64 | B78: =DepFlowi($B$9,$B$5,$B$4,$B$8,$B$7,A78) -> 0 | D78: 64 | E78: =IF(A78>$F$6+$B$6,ArrFlow_j(INDIRECT("b"&ROW()-INT($F$6)),E77,$F$7),0) -> 1730.477178 | F78: 0.480688105 | G78: 0.480688105 | H78: 2.255654389 | U78: 50 | V78: 2.268018488 | W78: 0.0006300051355 | X78: -0.5271477726 | Y78: 0.2378501554 | AA78: 50 | AB78: 1090.345768 | AC78: 0.3028738243 | AD78: -0.2249039535 | AE78: 0.8679936746
A79: 65 | B79: 0 | D79: 65 | E79: =IF(A79>$F$6+$B$6,ArrFlow_j(INDIRECT("b"&ROW()-INT($F$6)),E78,$F$7),0) -> 1763.912959 | F79: =E79/3600 -> 0.489975822 | G79: 0.489975822 | H79: 2.745630211 | U79: 51 | V79: 1.820686566 | W79: 0.0005057462685 | X79: -0.5272720315 | Y79: 0 | AA79: 51 | AB79: 1033.07951 | AC79: 0.2869665306 | AD79: -0.2408112471 | AE79: 0.6271824275
A80: 66 | B80: 0 | D80: 66 | E80: =IF(A80>$F$6+$B$6,ArrFlow_j(INDIRECT("b"&ROW()-INT($F$6)),E79,$F$7),0) -> 1790.754044 | F80: 0.497431679 | G80: =QueueStatus(D80,F80,$N$10,$N$11,$J$9,$N$13,H79) -> 0.497431679 | H80: =QueueLength(D80,$N$10,$N$11,H79,G80,$J$9) -> 3.24306189 | U80: 52 | V80: 1.461584017 | W80: 0.0004059955604 | X80: 0 | Y80: 0 | AA80: 52 | AB80: 987.1081456 | AC80: 0.2741967071 | AD80: 0 | AE80: 0
A81: 67 | B81: 0 | D81: 67 | E81: =IF(A81>$F$6+$B$6,ArrFlow_j(INDIRECT("b"&ROW()-INT($F$6)),E80,$F$7),0) -> 1812.301136 | F81: 0.5034169824 | G81: 0.5034169824 | H81: 3.746478872 | U81: 53 | V81: 356.1957494 | W81: 0.09894326373 | X81: 0 | Y81: 0 | AA81: 53 | AB81: 792.4161773 | AC81: 0.2201156048 | AD81: 0 | AE81: 0
A82: 68 | B82: 0 | D82: 68 | E82: =IF(A82>$F$6+$B$6,ArrFlow_j(INDIRECT("b"&ROW()-INT($F$6)),E81,$F$7),0) -> 1829.598395 | F82: 0.5082217763 | G82: 0.5082217763 | H82: 4.254700649 | U82: 54 | V82: 640.964032 | W82: 0.1780455644 | X82: 0 | Y82: 0 | AA82: 54 | AB82: 636.1242189 | AC82: 0.1767011719 | AD82: 0 | AE82: 0
A83: 69 | B83: 0 | D83: 69 | E83: =IF(A83>$F$6+$B$6,ArrFlow_j(INDIRECT("b"&ROW()-INT($F$6)),E82,$F$7),0) -> 1843.484033 | F83: 0.5120788982 | G83: 0.5120788982 | H83: 4.766779547 | U83: 55 | V83: 869.5661309 | W83: 0.2415461475 | X83: 0 | Y83: 0 | AA83: 55 | AB83: 510.6584563 | AC83: 0.1418495712 | AD83: 0 | AE83: 0
A84: 70 | B84: 0 | D84: 70 | E84: =IF(A84>$F$6+$B$6,ArrFlow_j(INDIRECT("b"&ROW()-INT($F$6)),E83,$F$7),0) -> 1854.630942 | F84: 0.5151752618 | G84: 0.5151752618 | H84: 5.281954808 | U84: 56 | V84: 1053.079966 | W84: 0.2925222127 | X84: 0 | Y84: 0 | AA84: 56 | AB84: 409.9388944 | AC84: 0.1138719151 | AD84: 0 | AE84: 0
A85: 71 | B85: 0 | D85: 71 | E85: =IF(A85>$F$6+$B$6,ArrFlow_j(INDIRECT("b"&ROW()-INT($F$6)),E84,$F$7),0) -> 1863.579294 | F85: 0.5176609151 | G85: 0.5176609151 | H85: 5.799615724 | U85: 57 | V85: 1200.398507 | W85: 0.3334440296 | X85: 0 | Y85: 0 | AA85: 57 | AB85: 329.084724 | AC85: 0.09141242334 | AD85: 0 | AE85: 0
A86: 72 | B86: 0 | D86: 72 | E86: =IF(A86>$F$6+$B$6,ArrFlow_j(INDIRECT("b"&ROW()-INT($F$6)),E85,$F$7),0) -> 1870.762721 | F86: 0.5196563114 | G86: 0.5196563114 | H86: 6.319272035 | U86: 58 | V86: 1318.660721 | W86: 0.3662946447 | X86: 0 | Y86: 0 | AA86: 58 | AB86: 264.1778008 | AC86: 0.07338272243 | AD86: 0 | AE86: 0
A87: 73 | B87: 0 | D87: 73 | E87: =IF(A87>$F$6+$B$6,ArrFlow_j(INDIRECT("b"&ROW()-INT($F$6)),E86,$F$7),0) -> 1876.529327 | F87: 0.5212581463 | G87: 0.5212581463 | H87: 6.840530181 | U87: 59 | V87: 1413.597524 | W87: 0.3926659789 | X87: 0 | Y87: 0 | AA87: 59 | AB87: 212.0727744 | AC87: 0.05890910399 | AD87: 0 | AE87: 0
A88: 74 | B88: 0 | D88: 74 | E88: =IF(A88>$F$6+$B$6,ArrFlow_j(INDIRECT("b"&ROW()-INT($F$6)),E87,$F$7),0) -> 1881.158558 | F88: 0.5225440438 | G88: 0.5225440438 | H88: 7.363074225 | U88: 60 | V88: 1489.809496 | W88: 0.4138359711 | X88: 0 | Y88: 0 | AA88: 60 | AB88: 170.2446666 | AC88: 0.04729018517 | AD88: 0 | AE88: 0
A89: 75 | B89: 0 | D89: 75 | E89: =IF(A89>$F$6+$B$6,ArrFlow_j(INDIRECT("b"&ROW()-INT($F$6)),E88,$F$7),0) -> 1667.916586 | F89: 0.4633101627 | G89: 0.4633101627 | H89: 7.826384388
A90: 76 | B90: 0 | D90: 76 | E90: =IF(A90>$F$6+$B$6,ArrFlow_j(INDIRECT("b"&ROW()-INT($F$6)),E89,$F$7),0) -> 1496.733328 | F90: 0.4157592577 | G90: 0.4157592577 | H90: 8.242143645 | U90: Sum | W90: =SUM(W28:W88) -> 13.63939304 | Y90: =SUM(Y28:Y88) -> 315.5160927 | AC90: =SUM(AC28:AC88) -> 13.43602294 | AE90: =SUM(AE28:AE88) -> 50.14861306
A91: 77 | B91: 0 | D91: 77 | E91: =IF(A91>$F$6+$B$6,ArrFlow_j(INDIRECT("b"&ROW()-INT($F$6)),E90,$F$7),0) -> 1359.313346 | F91: 0.3775870406 | G91: 0.3775870406 | H91: 8.619730686 | U91: Avg delay | Y91: =Y90/W90 -> 23.13270772 | AE91: =AE90/AC90 -> 3.732400076
A92: 78 | B92: 0 | D92: 78 | E92: =IF(A92>$F$6+$B$6,ArrFlow_j(INDIRECT("b"&ROW()-INT($F$6)),E91,$F$7),0) -> 1248.997352 | F92: 0.346943709 | G92: 0.346943709 | H92: 8.966674395
A93: 79 | B93: 0 | D93: 79 | E93: =IF(A93>$F$6+$B$6,ArrFlow_j(INDIRECT("b"&ROW()-INT($F$6)),E92,$F$7),0) -> 1160.439499 | F93: 0.3223443053 | G93: 0.3223443053 | H93: 9.2890187
A94: 80 | B94: 0 | D94: 80 | E94: =IF(A94>$F$6+$B$6,ArrFlow_j(INDIRECT("b"&ROW()-INT($F$6)),E93,$F$7),0) -> 1089.348327 | F94: 0.3025967574 | G94: 0.3025967574 | H94: 9.591615458
A95: 81 | B95: 0 | D95: 81 | E95: =IF(A95>$F$6+$B$6,ArrFlow_j(INDIRECT("b"&ROW()-INT($F$6)),E94,$F$7),0) -> 1032.278799 | F95: 0.2867441109 | G95: 0.2867441109 | H95: 9.878359568
A96: 82 | B96: 0 | D96: 82 | E96: =IF(A96>$F$6+$B$6,ArrFlow_j(INDIRECT("b"&ROW()-INT($F$6)),E95,$F$7),0) -> 986.4653625 | F96: 0.2740181563 | G96: 0.2740181563 | H96: 10.15237772
A97: 83 | B97: 0 | D97: 83 | E97: =IF(A97>$F$6+$B$6,ArrFlow_j(INDIRECT("b"&ROW()-INT($F$6)),E96,$F$7),0) -> 791.9001734 | F97: 0.2199722704 | G97: 0.2199722704 | H97: 10.37235
A98: 84 | B98: 0 | D98: 84 | E98: =IF(A98>$F$6+$B$6,ArrFlow_j(INDIRECT("b"&ROW()-INT($F$6)),E97,$F$7),0) -> 635.7099888 | F98: 0.176586108 | G98: 0.176586108 | H98: 10.5489361
A99: 85 | B99: 0 | D99: 85 | E99: =IF(A99>$F$6+$B$6,ArrFlow_j(INDIRECT("b"&ROW()-INT($F$6)),E98,$F$7),0) -> 510.3259268 | F99: 0.1417572019 | G99: 0.1417572019 | H99: 10.69069331
A100: 86 | B100: 0 | D100: 86 | E100: =IF(A100>$F$6+$B$6,ArrFlow_j(INDIRECT("b"&ROW()-INT($F$6)),E99,$F$7),0) -> 409.6719513 | F100: 0.1137977642 | G100: 0.1137977642 | H100: 10.80449107
A101: 87 | B101: 0 | D101: 87 | E101: =IF(A101>$F$6+$B$6,ArrFlow_j(INDIRECT("b"&ROW()-INT($F$6)),E100,$F$7),0) -> 328.8704313 | F101: 0.09135289758 | G101: 0.09135289758 | H101: 10.89584397
A102: 88 | B102: 0 | D102: 88 | E102: =IF(A102>$F$6+$B$6,ArrFlow_j(INDIRECT("b"&ROW()-INT($F$6)),E101,$F$7),0) -> 264.005774 | F102: 0.07333493722 | G102: 0.07333493722 | H102: 10.9691789
A103: 89 | B103: 0 | D103: 89 | E103: =IF(A103>$F$6+$B$6,ArrFlow_j(INDIRECT("b"&ROW()-INT($F$6)),E102,$F$7),0) -> 211.9346772 | F103: 0.05887074368 | G103: 0.05887074368 | H103: 11.02804965
A104: 90 | B104: 1900 | D104: 90 | E104: =IF(A104>$F$6+$B$6,ArrFlow_j(INDIRECT("b"&ROW()-INT($F$6)),E103,$F$7),0) -> 170.1338071 | F104: 0.04725939085 | G104: -0.4805183869 | H104: 10.54753126
A105: 91 | B105: 1900 | D105: 91 | E105: =IF(A105>$F$6+$B$6,ArrFlow_j(INDIRECT("b"&ROW()-INT($F$6)),E104,$F$7),0) -> 136.5775185 | F105: 0.03793819958 | G105: -0.4898395782 | H105: 10.05769168
A106: 92 | B106: 1900 | D106: 92 | E106: =IF(A106>$F$6+$B$6,ArrFlow_j(INDIRECT("b"&ROW()-INT($F$6)),E105,$F$7),0) -> 109.6396941 | F106: 0.03045547058 | G106: -0.4973223072 | H106: 9.560369375
A107: 93 | B107: 1900 | D107: 93 | E107: =IF(A107>$F$6+$B$6,ArrFlow_j(INDIRECT("b"&ROW()-INT($F$6)),E106,$F$7),0) -> 88.01494311 | F107: 0.02444859531 | G107: -0.5033291825 | H107: 9.057040193
A108: 94 | B108: 1900 | D108: 94 | E108: =IF(A108>$F$6+$B$6,ArrFlow_j(INDIRECT("b"&ROW()-INT($F$6)),E107,$F$7),0) -> 70.65534317 | F108: 0.01962648421 | G108: -0.5081512936 | H108: 8.548888899
A109: 95 | B109: 1900 | D109: 95 | E109: =IF(A109>$F$6+$B$6,ArrFlow_j(INDIRECT("b"&ROW()-INT($F$6)),E108,$F$7),0) -> 56.71965852 | F109: 0.0157554607 | G109: -0.5120223171 | H109: 8.036866582
A110: 96 | B110: 1900 | D110: 96 | E110: =IF(A110>$F$6+$B$6,ArrFlow_j(INDIRECT("b"&ROW()-INT($F$6)),E109,$F$7),0) -> 45.5325743 | F110: 0.01264793731 | G110: -0.5151298405 | H110: 7.521736742
A111: 97 | B111: 1900 | D111: 97 | E111: =IF(A111>$F$6+$B$6,ArrFlow_j(INDIRECT("b"&ROW()-INT($F$6)),E110,$F$7),0) -> 36.55197116 | F111: 0.01015332532 | G111: -0.5176244525 | H111: 7.004112289
A112: 98 | B112: 1900 | D112: 98 | E112: =IF(A112>$F$6+$B$6,ArrFlow_j(INDIRECT("b"&ROW()-INT($F$6)),E111,$F$7),0) -> 29.34265449 | F112: 0.008150737359 | G112: -0.5196270404 | H112: 6.484485249
A113: 99 | B113: 1900 | D113: 99 | E113: =IF(A113>$F$6+$B$6,ArrFlow_j(INDIRECT("b"&ROW()-INT($F$6)),E112,$F$7),0) -> 23.55526516 | F113: 0.00654312921 | G113: -0.5212346486 | H113: 5.9632506
A114: 100 | B114: 1900 | D114: 100 | E114: =IF(A114>$F$6+$B$6,ArrFlow_j(INDIRECT("b"&ROW()-INT($F$6)),E113,$F$7),0) -> 18.90934975 | F114: 0.005252597154 | G114: -0.5225251806 | H114: 5.44072542
A115: 101 | B115: 1900 | D115: 101 | E115: =IF(A115>$F$6+$B$6,ArrFlow_j(INDIRECT("b"&ROW()-INT($F$6)),E114,$F$7),0) -> 15.17977003 | F115: 0.004216602787 | G115: -0.523561175 | H115: 4.917164245
A116: 102 | B116: 1900 | D116: 102 | E116: =IF(A116>$F$6+$B$6,ArrFlow_j(INDIRECT("b"&ROW()-INT($F$6)),E115,$F$7),0) -> 12.18579281 | F116: 0.003384942447 | G116: -0.5243928353 | H116: 4.392771409
A117: 103 | B117: 1900 | D117: 103 | E117: =IF(A117>$F$6+$B$6,ArrFlow_j(INDIRECT("b"&ROW()-INT($F$6)),E116,$F$7),0) -> 9.782331753 | F117: 0.002717314376 | G117: -0.5250604634 | H117: 3.867710946
A118: 104 | B118: 1900 | D118: 104 | E118: =IF(A118>$F$6+$B$6,ArrFlow_j(INDIRECT("b"&ROW()-INT($F$6)),E117,$F$7),0) -> 7.85291659 | F118: 0.00218136572 | G118: -0.5255964121 | H118: 3.342114534
A119: 105 | B119: 1900 | D119: 105 | E119: =IF(A119>$F$6+$B$6,ArrFlow_j(INDIRECT("b"&ROW()-INT($F$6)),E118,$F$7),0) -> 6.304049028 | F119: 0.00175112473 | G119: -0.526026653 | H119: 2.816087881
A120: 106 | B120: 1900 | D120: 106 | E120: =IF(A120>$F$6+$B$6,ArrFlow_j(INDIRECT("b"&ROW()-INT($F$6)),E119,$F$7),0) -> 5.060671877 | F120: 0.001405742188 | G120: -0.5263720356 | H120: 2.289715845
A121: 107 | B121: 1900 | D121: 107 | E121: =IF(A121>$F$6+$B$6,ArrFlow_j(INDIRECT("b"&ROW()-INT($F$6)),E120,$F$7),0) -> 4.062531833 | F121: 0.001128481065 | G121: -0.5266492967 | H121: 1.763066549
A122: 108 | B122: 1900 | D122: 108 | E122: =IF(A122>$F$6+$B$6,ArrFlow_j(INDIRECT("b"&ROW()-INT($F$6)),E121,$F$7),0) -> 3.261259629 | F122: 0.0009059054526 | G122: -0.5268718723 | H122: 1.236194676
A123: 109 | B123: 1900 | D123: 109 | E123: =IF(A123>$F$6+$B$6,ArrFlow_j(INDIRECT("b"&ROW()-INT($F$6)),E122,$F$7),0) -> 2.6180261 | F123: 0.0007272294723 | G123: -0.5270505483 | H123: 0.709144128
A124: 110 | B124: 1900 | D124: 110 | E124: =IF(A124>$F$6+$B$6,ArrFlow_j(INDIRECT("b"&ROW()-INT($F$6)),E123,$F$7),0) -> 2.101660536 | F124: 0.0005837945934 | G124: -0.5271939832 | H124: 0.1819501448
A125: 111 | B125: 1900 | D125: 111 | E125: =IF(A125>$F$6+$B$6,ArrFlow_j(INDIRECT("b"&ROW()-INT($F$6)),E124,$F$7),0) -> 1.687140174 | F125: 0.0004686500482 | G125: -0.5273091277 | H125: 0
A126: 112 | B126: 800 | D126: 112 | E126: =IF(A126>$F$6+$B$6,ArrFlow_j(INDIRECT("b"&ROW()-INT($F$6)),E125,$F$7),0) -> 1.354377606 | F126: 0.0003762160016 | G126: 0 | H126: 0
A127: 113 | B127: 800 | D127: 113 | E127: =IF(A127>$F$6+$B$6,ArrFlow_j(INDIRECT("b"&ROW()-INT($F$6)),E126,$F$7),0) -> 375.8331568 | F127: 0.1043980991 | G127: 0 | H127: 0
A128: 114 | B128: 800 | D128: 114 | E128: =IF(A128>$F$6+$B$6,ArrFlow_j(INDIRECT("b"&ROW()-INT($F$6)),E127,$F$7),0) -> 676.4517303 | F128: 0.1879032584 | G128: 0 | H128: 0
A129: 115 | B129: 800 | D129: 115 | E129: =IF(A129>$F$6+$B$6,ArrFlow_j(INDIRECT("b"&ROW()-INT($F$6)),E128,$F$7),0) -> 917.7778929 | F129: 0.2549383036 | G129: 0 | H129: 0
A130: 116 | B130: 800 | D130: 116 | E130: =IF(A130>$F$6+$B$6,ArrFlow_j(INDIRECT("b"&ROW()-INT($F$6)),E129,$F$7),0) -> 1111.506165 | F130: 0.3087517125 | G130: 0 | H130: 0
A131: 117 | B131: 800 | D131: 117 | E131: =IF(A131>$F$6+$B$6,ArrFlow_j(INDIRECT("b"&ROW()-INT($F$6)),E130,$F$7),0) -> 1267.024501 | F131: 0.3519512504 | G131: 0 | H131: 0
A132: 118 | B132: 800 | D132: 118 | E132: =IF(A132>$F$6+$B$6,ArrFlow_j(INDIRECT("b"&ROW()-INT($F$6)),E131,$F$7),0) -> 1391.869227 | F132: 0.3866303409 | G132: 0 | H132: 0
A133: 119 | B133: 800 | D133: 119 | E133: =IF(A133>$F$6+$B$6,ArrFlow_j(INDIRECT("b"&ROW()-INT($F$6)),E132,$F$7),0) -> 1492.090242 | F133: 0.4144695117 | G133: 0 | H133: 0
A134: 120 | B134: 0 | D134: 120 | E134: =IF(A134>$F$6+$B$6,ArrFlow_j(INDIRECT("b"&ROW()-INT($F$6)),E133,$F$7),0) -> 1572.544196 | F134: 0.4368178323 | G134: 0 | H134: 0
A135: 121 | B135: 0 | D135: 121 | E135: =IF(A135>$F$6+$B$6,ArrFlow_j(INDIRECT("b"&ROW()-INT($F$6)),E134,$F$7),0) -> 1637.12984 | F135: 0.4547582889 | G135: 0 | H135: 0
A136: 122 | B136: 0 | D136: 122 | E136: =IF(A136>$F$6+$B$6,ArrFlow_j(INDIRECT("b"&ROW()-INT($F$6)),E135,$F$7),0) -> 1688.976954 | F136: 0.4691602651 | G136: 0 | H136: 0
A137: 123 | B137: 0 | D137: 123 | E137: =IF(A137>$F$6+$B$6,ArrFlow_j(INDIRECT("b"&ROW()-INT($F$6)),E136,$F$7),0) -> 1730.598019 | F137: 0.480721672 | G137: 0 | H137: 0
A138: 124 | B138: 0 | D138: 124 | E138: =IF(A138>$F$6+$B$6,ArrFlow_j(INDIRECT("b"&ROW()-INT($F$6)),E137,$F$7),0) -> 1764.009966 | F138: 0.4900027684 | G138: 0 | H138: 0
A139: 125 | B139: 0 | D139: 125 | E139: =IF(A139>$F$6+$B$6,ArrFlow_j(INDIRECT("b"&ROW()-INT($F$6)),E138,$F$7),0) -> 1790.831918 | F139: 0.4974533106 | G139: 0 | H139: 0
A140: 126 | B140: 0 | D140: 126 | E140: =IF(A140>$F$6+$B$6,ArrFlow_j(INDIRECT("b"&ROW()-INT($F$6)),E139,$F$7),0) -> 1812.363651 | F140: 0.5034343475 | G140: 0 | H140: 0
A141: 127 | B141: 0 | D141: 127 | E141: =IF(A141>$F$6+$B$6,ArrFlow_j(INDIRECT("b"&ROW()-INT($F$6)),E140,$F$7),0) -> 1829.648579 | F141: 0.5082357164 | G141: 0 | H141: 0
A142: 128 | B142: =DepFlowi($B$9,$B$5,$B$4,$B$8,$B$7,A142) -> 0 | D142: 128 | E142: =IF(A142>$F$6+$B$6,ArrFlow_j(INDIRECT("b"&ROW()-INT($F$6)),E141,$F$7),0) -> 1843.52432 | F142: 0.5120900888 | G142: 0 | H142: 0
A143: 129 | B143: 0 | D143: 129 | E143: =IF(A143>$F$6+$B$6,ArrFlow_j(INDIRECT("b"&ROW()-INT($F$6)),E142,$F$7),0) -> 1854.663283 | F143: =E143/3600 -> 0.5151842452 | G143: 0 | H143: 0
A144: 130 | B144: 0 | D144: 130 | E144: =IF(A144>$F$6+$B$6,ArrFlow_j(INDIRECT("b"&ROW()-INT($F$6)),E143,$F$7),0) -> 1863.605256 | F144: 0.5176681267 | G144: =QueueStatus(D144,F144,$N$10,$N$11,$J$9,$N$13,H143) -> 0 | H144: =QueueLength(D144,$N$10,$N$11,H143,G144,$J$9) -> 0
A145: 131 | B145: 0 | D145: 131 | E145: =IF(A145>$F$6+$B$6,ArrFlow_j(INDIRECT("b"&ROW()-INT($F$6)),E144,$F$7),0) -> 1870.783562 | F145: 0.5196621006 | G145: 0 | H145: 0
A146: 132 | B146: 0 | D146: 132 | E146: =IF(A146>$F$6+$B$6,ArrFlow_j(INDIRECT("b"&ROW()-INT($F$6)),E145,$F$7),0) -> 1876.546057 | F146: 0.5212627937 | G146: 0 | H146: 0
A147: 133 | B147: 0 | D147: 133 | E147: =IF(A147>$F$6+$B$6,ArrFlow_j(INDIRECT("b"&ROW()-INT($F$6)),E146,$F$7),0) -> 1881.171988 | F147: 0.5225477745 | G147: 0 | H147: 0
A148: 134 | B148: 0 | D148: 134 | E148: =IF(A148>$F$6+$B$6,ArrFlow_j(INDIRECT("b"&ROW()-INT($F$6)),E147,$F$7),0) -> 1884.885525 | F148: 0.5235793126 | G148: 0 | H148: 0
A149: 135 | B149: 0 | D149: 135 | E149: =IF(A149>$F$6+$B$6,ArrFlow_j(INDIRECT("b"&ROW()-INT($F$6)),E148,$F$7),0) -> 1670.908466 | F149: 0.4641412406 | G149: 0 | H149: 0
A150: 136 | B150: 0 | D150: 136 | E150: =IF(A150>$F$6+$B$6,ArrFlow_j(INDIRECT("b"&ROW()-INT($F$6)),E149,$F$7),0) -> 1499.135105 | F150: 0.4164264182 | G150: 0 | H150: 0
A151: 137 | B151: 0 | D151: 137 | E151: =IF(A151>$F$6+$B$6,ArrFlow_j(INDIRECT("b"&ROW()-INT($F$6)),E150,$F$7),0) -> 1361.24141 | F151: 0.378122614 | G151: 0 | H151: 0
A152: 138 | B152: 0 | D152: 138 | E152: =IF(A152>$F$6+$B$6,ArrFlow_j(INDIRECT("b"&ROW()-INT($F$6)),E151,$F$7),0) -> 1250.545135 | F152: 0.3473736487 | G152: 0 | H152: 0
A153: 139 | B153: 0 | D153: 139 | E153: =IF(A153>$F$6+$B$6,ArrFlow_j(INDIRECT("b"&ROW()-INT($F$6)),E152,$F$7),0) -> 1161.682005 | F153: 0.322689446 | G153: 0 | H153: 0
A154: 140 | B154: 0 | D154: 140 | E154: =IF(A154>$F$6+$B$6,ArrFlow_j(INDIRECT("b"&ROW()-INT($F$6)),E153,$F$7),0) -> 1090.345768 | F154: 0.3028738243 | G154: 0 | H154: 0
A155: 141 | B155: 0 | D155: 141 | E155: =IF(A155>$F$6+$B$6,ArrFlow_j(INDIRECT("b"&ROW()-INT($F$6)),E154,$F$7),0) -> 1033.07951 | F155: 0.2869665306 | G155: 0 | H155: 0
A156: 142 | B156: 0 | D156: 142 | E156: =IF(A156>$F$6+$B$6,ArrFlow_j(INDIRECT("b"&ROW()-INT($F$6)),E155,$F$7),0) -> 987.1081456 | F156: 0.2741967071 | G156: 0 | H156: 0
A157: 143 | B157: 0 | D157: 143 | E157: =IF(A157>$F$6+$B$6,ArrFlow_j(INDIRECT("b"&ROW()-INT($F$6)),E156,$F$7),0) -> 792.4161773 | F157: 0.2201156048 | G157: 0 | H157: 0
A158: 144 | B158: 0 | D158: 144 | E158: =IF(A158>$F$6+$B$6,ArrFlow_j(INDIRECT("b"&ROW()-INT($F$6)),E157,$F$7),0) -> 636.1242189 | F158: 0.1767011719 | G158: 0 | H158: 0
A159: 145 | B159: 0 | D159: 145 | E159: =IF(A159>$F$6+$B$6,ArrFlow_j(INDIRECT("b"&ROW()-INT($F$6)),E158,$F$7),0) -> 510.6584563 | F159: 0.1418495712 | G159: 0 | H159: 0
A160: 146 | B160: 0 | D160: 146 | E160: =IF(A160>$F$6+$B$6,ArrFlow_j(INDIRECT("b"&ROW()-INT($F$6)),E159,$F$7),0) -> 409.9388944 | F160: 0.1138719151 | G160: 0 | H160: 0
A161: 147 | B161: 0 | D161: 147 | E161: =IF(A161>$F$6+$B$6,ArrFlow_j(INDIRECT("b"&ROW()-INT($F$6)),E160,$F$7),0) -> 329.084724 | F161: 0.09141242334 | G161: 0 | H161: 0
A162: 148 | B162: 0 | D162: 148 | E162: =IF(A162>$F$6+$B$6,ArrFlow_j(INDIRECT("b"&ROW()-INT($F$6)),E161,$F$7),0) -> 264.1778008 | F162: 0.07338272243 | G162: 0 | H162: 0
A163: 149 | B163: 0 | D163: 149 | E163: =IF(A163>$F$6+$B$6,ArrFlow_j(INDIRECT("b"&ROW()-INT($F$6)),E162,$F$7),0) -> 212.0727744 | F163: 0.05890910399 | G163: 0 | H163: 0
A164: 150 | B164: 1900 | D164: 150 | E164: =IF(A164>$F$6+$B$6,ArrFlow_j(INDIRECT("b"&ROW()-INT($F$6)),E163,$F$7),0) -> 170.2446666 | F164: 0.04729018517 | G164: 0 | H164: 0
A165: 151 | B165: 1900 | D165: 151 | E165: =IF(A165>$F$6+$B$6,ArrFlow_j(INDIRECT("b"&ROW()-INT($F$6)),E164,$F$7),0) -> 136.6665127 | F165: 0.0379629202 | G165: 0 | H165: 0
A166: 152 | B166: 1900 | D166: 152 | E166: =IF(A166>$F$6+$B$6,ArrFlow_j(INDIRECT("b"&ROW()-INT($F$6)),E165,$F$7),0) -> 109.7111356 | F166: 0.03047531544 | G166: 0 | H166: 0
A167: 153 | B167: 1900 | D167: 153 | E167: =IF(A167>$F$6+$B$6,ArrFlow_j(INDIRECT("b"&ROW()-INT($F$6)),E166,$F$7),0) -> 88.07229385 | F167: 0.02446452607 | G167: 0 | H167: 0
A168: 154 | B168: 1900 | D168: 154 | E168: =IF(A168>$F$6+$B$6,ArrFlow_j(INDIRECT("b"&ROW()-INT($F$6)),E167,$F$7),0) -> 70.70138235 | F168: 0.01963927287 | G168: 0 | H168: 0
A169: 155 | B169: 1900 | D169: 155 | E169: =IF(A169>$F$6+$B$6,ArrFlow_j(INDIRECT("b"&ROW()-INT($F$6)),E168,$F$7),0) -> 56.75661718 | F169: 0.01576572699 | G169: 0 | H169: 0
A170: 156 | B170: 1900 | D170: 156 | E170: =IF(A170>$F$6+$B$6,ArrFlow_j(INDIRECT("b"&ROW()-INT($F$6)),E169,$F$7),0) -> 45.56224343 | F170: 0.01265617873 | G170: 0 | H170: 0
A171: 157 | B171: 1900 | D171: 157 | E171: =IF(A171>$F$6+$B$6,ArrFlow_j(INDIRECT("b"&ROW()-INT($F$6)),E170,$F$7),0) -> 36.57578851 | F171: 0.01015994125 | G171: 0 | H171: 0
A172: 158 | B172: 1900 | D172: 158 | E172: =IF(A172>$F$6+$B$6,ArrFlow_j(INDIRECT("b"&ROW()-INT($F$6)),E171,$F$7),0) -> 29.36177423 | F172: 0.008156048398 | G172: 0 | H172: 0
A173: 159 | B173: 1900 | D173: 159 | E173: =IF(A173>$F$6+$B$6,ArrFlow_j(INDIRECT("b"&ROW()-INT($F$6)),E172,$F$7),0) -> 23.57061382 | F173: 0.006547392728 | G173: 0 | H173: 0
A174: 160 | B174: 1900 | D174: 160 | E174: =IF(A174>$F$6+$B$6,ArrFlow_j(INDIRECT("b"&ROW()-INT($F$6)),E173,$F$7),0) -> 18.92167113 | F174: 0.005256019758 | G174: 0 | H174: 0
A175: 161 | B175: 1900 | D175: 161 | E175: =IF(A175>$F$6+$B$6,ArrFlow_j(INDIRECT("b"&ROW()-INT($F$6)),E174,$F$7),0) -> 15.18966121 | F175: 0.004219350335 | G175: 0 | H175: 0
A176: 162 | B176: 1900 | D176: 162 | E176: =IF(A176>$F$6+$B$6,ArrFlow_j(INDIRECT("b"&ROW()-INT($F$6)),E175,$F$7),0) -> 12.1937331 | F176: 0.003387148083 | G176: 0 | H176: 0
A177: 163 | B177: 1900 | D177: 163 | E177: =IF(A177>$F$6+$B$6,ArrFlow_j(INDIRECT("b"&ROW()-INT($F$6)),E176,$F$7),0) -> 9.788705942 | F177: 0.002719084984 | G177: 0 | H177: 0
A178: 164 | B178: 1900 | D178: 164 | E178: =IF(A178>$F$6+$B$6,ArrFlow_j(INDIRECT("b"&ROW()-INT($F$6)),E177,$F$7),0) -> 7.858033568 | F178: 0.002182787102 | G178: 0 | H178: 0
A179: 165 | B179: 1900 | D179: 165 | E179: =IF(A179>$F$6+$B$6,ArrFlow_j(INDIRECT("b"&ROW()-INT($F$6)),E178,$F$7),0) -> 6.30815676 | F179: 0.001752265767 | G179: 0 | H179: 0
A180: 166 | B180: 1900 | D180: 166 | E180: =IF(A180>$F$6+$B$6,ArrFlow_j(INDIRECT("b"&ROW()-INT($F$6)),E179,$F$7),0) -> 5.063969422 | F180: 0.001406658173 | G180: 0 | H180: 0
A181: 167 | B181: 1900 | D181: 167 | E181: =IF(A181>$F$6+$B$6,ArrFlow_j(INDIRECT("b"&ROW()-INT($F$6)),E180,$F$7),0) -> 4.065178987 | F181: 0.001129216385 | G181: 0 | H181: 0
A182: 168 | B182: 1900 | D182: 168 | E182: =IF(A182>$F$6+$B$6,ArrFlow_j(INDIRECT("b"&ROW()-INT($F$6)),E181,$F$7),0) -> 3.263384674 | F182: 0.0009064957427 | G182: 0 | H182: 0
A183: 169 | B183: 1900 | D183: 169 | E183: =IF(A183>$F$6+$B$6,ArrFlow_j(INDIRECT("b"&ROW()-INT($F$6)),E182,$F$7),0) -> 2.619732012 | F183: 0.0007277033366 | G183: 0 | H183: 0
A184: 170 | B184: 1900 | D184: 170 | E184: =IF(A184>$F$6+$B$6,ArrFlow_j(INDIRECT("b"&ROW()-INT($F$6)),E183,$F$7),0) -> 2.103029983 | F184: 0.0005841749952 | G184: 0 | H184: 0
A185: 171 | B185: 1900 | D185: 171 | E185: =IF(A185>$F$6+$B$6,ArrFlow_j(INDIRECT("b"&ROW()-INT($F$6)),E184,$F$7),0) -> 1.688239518 | F185: 0.0004689554216 | G185: 0 | H185: 0
A186: 172 | B186: 800 | D186: 172 | E186: =IF(A186>$F$6+$B$6,ArrFlow_j(INDIRECT("b"&ROW()-INT($F$6)),E185,$F$7),0) -> 1.355260121 | F186: 0.0003764611448 | G186: 0 | H186: 0
A187: 173 | B187: 800 | D187: 173 | E187: =IF(A187>$F$6+$B$6,ArrFlow_j(INDIRECT("b"&ROW()-INT($F$6)),E186,$F$7),0) -> 375.8338652 | F187: 0.1043982959 | G187: 0 | H187: 0
A188: 174 | B188: 800 | D188: 174 | E188: =IF(A188>$F$6+$B$6,ArrFlow_j(INDIRECT("b"&ROW()-INT($F$6)),E187,$F$7),0) -> 676.452299 | F188: 0.1879034164 | G188: 0 | H188: 0
A189: 175 | B189: 800 | D189: 175 | E189: =IF(A189>$F$6+$B$6,ArrFlow_j(INDIRECT("b"&ROW()-INT($F$6)),E188,$F$7),0) -> 917.7783495 | F189: 0.2549384304 | G189: 0 | H189: 0
A190: 176 | B190: 800 | D190: 176 | E190: =IF(A190>$F$6+$B$6,ArrFlow_j(INDIRECT("b"&ROW()-INT($F$6)),E189,$F$7),0) -> 1111.506531 | F190: 0.3087518143 | G190: 0 | H190: 0
A191: 177 | B191: 800 | D191: 177 | E191: =IF(A191>$F$6+$B$6,ArrFlow_j(INDIRECT("b"&ROW()-INT($F$6)),E190,$F$7),0) -> 1267.024796 | F191: 0.3519513321 | G191: 0 | H191: 0
A192: 178 | B192: 800 | D192: 178 | E192: =IF(A192>$F$6+$B$6,ArrFlow_j(INDIRECT("b"&ROW()-INT($F$6)),E191,$F$7),0) -> 1391.869463 | F192: 0.3866304065 | G192: 0 | H192: 0
A193: 179 | B193: 800 | D193: 179 | E193: =IF(A193>$F$6+$B$6,ArrFlow_j(INDIRECT("b"&ROW()-INT($F$6)),E192,$F$7),0) -> 1492.090432 | F193: 0.4144695644 | G193: 0 | H193: 0
A194: 180 | B194: 0 | D194: 180 | E194: =IF(A194>$F$6+$B$6,ArrFlow_j(INDIRECT("b"&ROW()-INT($F$6)),E193,$F$7),0) -> 1572.544349 | F194: 0.4368178746 | G194: 0 | H194: 0
A195: 181 | B195: 0 | D195: 181 | E195: =IF(A195>$F$6+$B$6,ArrFlow_j(INDIRECT("b"&ROW()-INT($F$6)),E194,$F$7),0) -> 1637.129962 | F195: 0.4547583228 | G195: 0 | H195: 0
A196: 182 | B196: 0 | D196: 182 | E196: =IF(A196>$F$6+$B$6,ArrFlow_j(INDIRECT("b"&ROW()-INT($F$6)),E195,$F$7),0) -> 1688.977052 | F196: 0.4691602923 | G196: 0 | H196: 0
A197: 183 | B197: 0 | D197: 183 | E197: =IF(A197>$F$6+$B$6,ArrFlow_j(INDIRECT("b"&ROW()-INT($F$6)),E196,$F$7),0) -> 1730.598098 | F197: 0.4807216939 | G197: 0 | H197: 0
A198: 184 | B198: 0 | D198: 184 | E198: =IF(A198>$F$6+$B$6,ArrFlow_j(INDIRECT("b"&ROW()-INT($F$6)),E197,$F$7),0) -> 1764.010029 | F198: 0.4900027859 | G198: 0 | H198: 0
A199: 185 | B199: 0 | D199: 185 | E199: =IF(A199>$F$6+$B$6,ArrFlow_j(INDIRECT("b"&ROW()-INT($F$6)),E198,$F$7),0) -> 1790.831969 | F199: 0.4974533247 | G199: 0 | H199: 0
A200: 186 | B200: 0 | D200: 186 | E200: =IF(A200>$F$6+$B$6,ArrFlow_j(INDIRECT("b"&ROW()-INT($F$6)),E199,$F$7),0) -> 1812.363692 | F200: 0.5034343588 | G200: 0 | H200: 0
A201: 187 | B201: 0 | D201: 187 | E201: =IF(A201>$F$6+$B$6,ArrFlow_j(INDIRECT("b"&ROW()-INT($F$6)),E200,$F$7),0) -> 1829.648612 | F201: 0.5082357255 | G201: 0 | H201: 0
... 13 more rows
